extractdate,publisheruri,publisherlabel,serviceyypeuri,servicetypelabel,DATE OF TRANSACTION,LA DEPARTMENT INCURRING SPEND,BENEFICIARY,GROSS AMOUNT,SUMMARY OF PURPOSE OF SPEND,MERCHANT CATEGORY
24/10/2016,http://opendatacommunities.org/id/county-council/surrey,Surrey,http://id.esd.org.uk/service/1465,Council expenditure,27/06/2016,ASYLUM SEEKERS 18+,BRITISH A,291.41,NON-STAFF RELATED TRANSPORT COSTS,BRITISH A
24/10/2016,http://opendatacommunities.org/id/county-council/surrey,Surrey,http://id.esd.org.uk/service/1465,Council expenditure,27/06/2016,TARGETED INTERVENTION,WOKING BOROUGH COUNCIL,2.60,EDUC VISITS/HOLS/CAMPS/TOYS,AUTOMOBILE PARKING LOTS AND GARAGES
24/10/2016,http://opendatacommunities.org/id/county-council/surrey,Surrey,http://id.esd.org.uk/service/1465,Council expenditure,27/06/2016,ENSEMBLES & TOURS,WWW.MUSICROOM.COM,179.90,CURRIC BOOKS,"MUSIC STORES-INSTRUMENTS, PIANOS, SHEET MUSIC"
24/10/2016,http://opendatacommunities.org/id/county-council/surrey,Surrey,http://id.esd.org.uk/service/1465,Council expenditure,27/06/2016,SW SECTION 17 CARE,TRAVELODGE,400.00,CHILDREN ACT SEC 17 PAYMENTS,TRAVELODGE
24/10/2016,http://opendatacommunities.org/id/county-council/surrey,Surrey,http://id.esd.org.uk/service/1465,Council expenditure,27/06/2016,IMT CRITICAL ENVIRONMENTS,AMAZON UK MARKETPLACE,14.24,EQUIPMENT,BOOK STORES
24/10/2016,http://opendatacommunities.org/id/county-council/surrey,Surrey,http://id.esd.org.uk/service/1465,Council expenditure,27/06/2016,HOPE SERVICE - EAST,SAINSBURYS 0683,124.03,PURCHASE OF FOOD (RAW MATERIALS),"GROCERY STORES, SUPERMARKETS"
24/10/2016,http://opendatacommunities.org/id/county-council/surrey,Surrey,http://id.esd.org.uk/service/1465,Council expenditure,27/06/2016,COVEHAM,SAINSBURYS TO YOU 0687,154.83,REFRESHMENT COSTS,"GROCERY STORES, SUPERMARKETS"
24/10/2016,http://opendatacommunities.org/id/county-council/surrey,Surrey,http://id.esd.org.uk/service/1465,Council expenditure,27/06/2016,RUTH HOUSE,HOMEBASE LTD 084,35.21,EQUIPMENT,"BUILDING MATERIALS, LUMBER STORES"
24/10/2016,http://opendatacommunities.org/id/county-council/surrey,Surrey,http://id.esd.org.uk/service/1465,Council expenditure,27/06/2016,IMT SUPPORT FOR FIRE & RESCUE,AMAZON UK RETAIL AMAZO,26.99,COMPUTER CONSUMABLES,MISCELLANEOUS AND SPECIALTY RETAIL STORES
24/10/2016,http://opendatacommunities.org/id/county-council/surrey,Surrey,http://id.esd.org.uk/service/1465,Council expenditure,27/06/2016,TRANSPORT,AMAZON UK MARKETPLACE,26.00,FURNITURE,BOOK STORES
24/10/2016,http://opendatacommunities.org/id/county-council/surrey,Surrey,http://id.esd.org.uk/service/1465,Council expenditure,27/06/2016,ACL CENTRAL EXPENDITURE,TESCO STORE 3149,34.56,REFRESHMENT COSTS,"GROCERY STORES, SUPERMARKETS"
24/10/2016,http://opendatacommunities.org/id/county-council/surrey,Surrey,http://id.esd.org.uk/service/1465,Council expenditure,27/06/2016,THE EDGE YC,POOLE FOOD & WINE LTD,9.62,REFRESHMENT COSTS,NEWS DEALERS AND NEWSSTANDS
24/10/2016,http://opendatacommunities.org/id/county-council/surrey,Surrey,http://id.esd.org.uk/service/1465,Council expenditure,27/06/2016,HOPE SERVICE - EAST,SAINSBURYS SACAT 0683,1.00,E25 CATERING EQUIPMENT,"GROCERY STORES, SUPERMARKETS"
24/10/2016,http://opendatacommunities.org/id/county-council/surrey,Surrey,http://id.esd.org.uk/service/1465,Council expenditure,27/06/2016,HARRY'S YC,WAITROSE 838,11.73,PURCHASE OF FOOD (RAW MATERIALS),"GROCERY STORES, SUPERMARKETS"
24/10/2016,http://opendatacommunities.org/id/county-council/surrey,Surrey,http://id.esd.org.uk/service/1465,Council expenditure,27/06/2016,CSF BUSINESS SUPPORT EDUCATION,AMAZON UK MARKETPLACE,1.87,STATIONERY,BOOK STORES
24/10/2016,http://opendatacommunities.org/id/county-council/surrey,Surrey,http://id.esd.org.uk/service/1465,Council expenditure,27/06/2016,MERSTHAM YC,AMAZON UK MARKETPLACE,16.61,EQUIPMENT,BOOK STORES
24/10/2016,http://opendatacommunities.org/id/county-council/surrey,Surrey,http://id.esd.org.uk/service/1465,Council expenditure,27/06/2016,BUSINESS OPERATIONS TRAINING,WWW.PMGLTD.CO.UK,474.00,TRAINING EXPENSES EXTERNAL GENERAL,BUSINESS SERVICES-NOT ELSEWHERE CLASSIFIED
24/10/2016,http://opendatacommunities.org/id/county-council/surrey,Surrey,http://id.esd.org.uk/service/1465,Council expenditure,27/06/2016,WOODLANDS COMMUNITY HOME,SIENNA FLORA,14.98,EQUIPMENT,LAWN AND GARDEN SUPPLY STORES
24/10/2016,http://opendatacommunities.org/id/county-council/surrey,Surrey,http://id.esd.org.uk/service/1465,Council expenditure,27/06/2016,IMT SUPPORT FOR FIRE & RESCUE,"AMAZON SVCS EUROPE,SAR",34.96,COMPUTER CONSUMABLES,BOOK STORES
24/10/2016,http://opendatacommunities.org/id/county-council/surrey,Surrey,http://id.esd.org.uk/service/1465,Council expenditure,27/06/2016,ADDLESTONE YC,TESCO STORES 5371,5.44,REFRESHMENT COSTS,"GROCERY STORES, SUPERMARKETS"
24/10/2016,http://opendatacommunities.org/id/county-council/surrey,Surrey,http://id.esd.org.uk/service/1465,Council expenditure,27/06/2016,PROPERTY OPERATIONS TEAM,B & Q 1029,25.28,PURCHASE OF BUILDING MATERIALS,"BUILDING MATERIALS, LUMBER STORES"
24/10/2016,http://opendatacommunities.org/id/county-council/surrey,Surrey,http://id.esd.org.uk/service/1465,Council expenditure,27/06/2016,ACL CENTRAL EXPENDITURE,TESCO STORE 2160,72.78,REFRESHMENT COSTS,"GROCERY STORES, SUPERMARKETS"
24/10/2016,http://opendatacommunities.org/id/county-council/surrey,Surrey,http://id.esd.org.uk/service/1465,Council expenditure,27/06/2016,DEMOCRATIC SERVICES TEAM,AMAZON UK MARKETPLACE,24.99,COMPUTER CONSUMABLES,BOOK STORES
24/10/2016,http://opendatacommunities.org/id/county-council/surrey,Surrey,http://id.esd.org.uk/service/1465,Council expenditure,27/06/2016,THE STREET YC,WAITROSE 838,8.08,PURCHASE OF FOOD (RAW MATERIALS),"GROCERY STORES, SUPERMARKETS"
24/10/2016,http://opendatacommunities.org/id/county-council/surrey,Surrey,http://id.esd.org.uk/service/1465,Council expenditure,27/06/2016,NW TEACHERS,PAYPAL  ALDERTREEPR,36.00,BOOKS,BOOK STORES
24/10/2016,http://opendatacommunities.org/id/county-council/surrey,Surrey,http://id.esd.org.uk/service/1465,Council expenditure,27/06/2016,IMT CRITICAL ENVIRONMENTS,AMAZON EU,16.86,REFRESHMENT COSTS,DIRECT MARKETING-OTHER DIRECT MARKETERS/NOT ELSEW.
24/10/2016,http://opendatacommunities.org/id/county-council/surrey,Surrey,http://id.esd.org.uk/service/1465,Council expenditure,27/06/2016,HOPE SERVICE - WEST,SAINSBURYS TO YOU 0686,157.74,PURCHASE OF FOOD (RAW MATERIALS),"GROCERY STORES, SUPERMARKETS"
24/10/2016,http://opendatacommunities.org/id/county-council/surrey,Surrey,http://id.esd.org.uk/service/1465,Council expenditure,27/06/2016,TRAINING AND DEVELOPMENT,EB  FIRE INVESTIGATION,28.76,TRAINING EXPENSES EXTERNAL GENERAL,BUSINESS SERVICES-NOT ELSEWHERE CLASSIFIED
24/10/2016,http://opendatacommunities.org/id/county-council/surrey,Surrey,http://id.esd.org.uk/service/1465,Council expenditure,27/06/2016,GODALMING YC,SAINSBURYS SACAT 0670,8.29,PURCHASE OF FOOD (RAW MATERIALS),"GROCERY STORES, SUPERMARKETS"
24/10/2016,http://opendatacommunities.org/id/county-council/surrey,Surrey,http://id.esd.org.uk/service/1465,Council expenditure,27/06/2016,EXTENDED HOPE,SAINSBURYS TO YOU 0652,74.68,PURCHASE OF FOOD (RAW MATERIALS),"GROCERY STORES, SUPERMARKETS"
24/10/2016,http://opendatacommunities.org/id/county-council/surrey,Surrey,http://id.esd.org.uk/service/1465,Council expenditure,27/06/2016,OLD DEAN YC,SAINSBURYS SACAT (4115,14.05,PURCHASE OF FOOD (RAW MATERIALS),"GROCERY STORES, SUPERMARKETS"
24/10/2016,http://opendatacommunities.org/id/county-council/surrey,Surrey,http://id.esd.org.uk/service/1465,Council expenditure,27/06/2016,LIBERTAS COMMUNITY HOME,SAINSBURYS SACAT 0652,12.00,LIBRARY RESOURCES,"GROCERY STORES, SUPERMARKETS"
24/10/2016,http://opendatacommunities.org/id/county-council/surrey,Surrey,http://id.esd.org.uk/service/1465,Council expenditure,27/06/2016,HOPE SERVICE - EAST,AMAZON UK MARKETPLACE,4.29,EQUIPMENT,BOOK STORES
24/10/2016,http://opendatacommunities.org/id/county-council/surrey,Surrey,http://id.esd.org.uk/service/1465,Council expenditure,27/06/2016,APPLEWOOD,ASDA HOME SHOPPING,135.92,PURCHASE OF FOOD (RAW MATERIALS),"GROCERY STORES, SUPERMARKETS"
24/10/2016,http://opendatacommunities.org/id/county-council/surrey,Surrey,http://id.esd.org.uk/service/1465,Council expenditure,27/06/2016,RUTH HOUSE,B & Q 1029,180.00,EQUIPMENT,"BUILDING MATERIALS, LUMBER STORES"
24/10/2016,http://opendatacommunities.org/id/county-council/surrey,Surrey,http://id.esd.org.uk/service/1465,Council expenditure,27/06/2016,ASH YC,THE RANGE,8.99,STATIONERY,DEPARTMENT STORES
24/10/2016,http://opendatacommunities.org/id/county-council/surrey,Surrey,http://id.esd.org.uk/service/1465,Council expenditure,27/06/2016,MALLOW CRESCENT,TESCO STORE 2590,85.75,PURCHASE OF FOOD (RAW MATERIALS),"GROCERY STORES, SUPERMARKETS"
24/10/2016,http://opendatacommunities.org/id/county-council/surrey,Surrey,http://id.esd.org.uk/service/1465,Council expenditure,27/06/2016,ISPSB - ADAPTATIONS & IMPROVEMENTS,AMAZON UK MARKETPLACE,48.00,EQUIPMENT,BOOK STORES
24/10/2016,http://opendatacommunities.org/id/county-council/surrey,Surrey,http://id.esd.org.uk/service/1465,Council expenditure,27/06/2016,TS SERVICE MANAGEMENT,TRUE CALL LTD,45.00,EQUIPMENT,TELECOMMUNICATION EQUIPMENT INCL TELEPHONE SALES
24/10/2016,http://opendatacommunities.org/id/county-council/surrey,Surrey,http://id.esd.org.uk/service/1465,Council expenditure,27/06/2016,MALLOW CRESCENT,SAINSBURYS TO YOU 0686,-2.00,PURCHASE OF FOOD (RAW MATERIALS),"GROCERY STORES, SUPERMARKETS"
24/10/2016,http://opendatacommunities.org/id/county-council/surrey,Surrey,http://id.esd.org.uk/service/1465,Council expenditure,27/06/2016,LIBERTAS COMMUNITY HOME,SAINSBURYS 0652,20.00,PURCHASE OF FOOD (RAW MATERIALS),"GROCERY STORES, SUPERMARKETS"
24/10/2016,http://opendatacommunities.org/id/county-council/surrey,Surrey,http://id.esd.org.uk/service/1465,Council expenditure,27/06/2016,LIBERTAS COMMUNITY HOME,SAINSBURYS 0652,139.00,PURCHASE OF FOOD (RAW MATERIALS),"GROCERY STORES, SUPERMARKETS"
24/10/2016,http://opendatacommunities.org/id/county-council/surrey,Surrey,http://id.esd.org.uk/service/1465,Council expenditure,27/06/2016,READY FOR WORK YSS,VUE NCS CITB HS&E TEST,19.50,EDUC VISITS/HOLS/CAMPS/TOYS,SCHOOLS & EDUCATIONAL SVC-NOT ELSEWHERE CLASSIFIED
24/10/2016,http://opendatacommunities.org/id/county-council/surrey,Surrey,http://id.esd.org.uk/service/1465,Council expenditure,27/06/2016,NE CARE - LAC,HM PASSPORT,90.00,FEES,GOVERNMENT SERVICES-NOT ELSEWHERE CLASSIFIED
24/10/2016,http://opendatacommunities.org/id/county-council/surrey,Surrey,http://id.esd.org.uk/service/1465,Council expenditure,27/06/2016,FAIRCROFT COMMUNITY HOME,TESCO STORE 2160,202.40,PURCHASE OF FOOD (RAW MATERIALS),"GROCERY STORES, SUPERMARKETS"
24/10/2016,http://opendatacommunities.org/id/county-council/surrey,Surrey,http://id.esd.org.uk/service/1465,Council expenditure,27/06/2016,NW CARE - LAC,SURREY CC CARD PAY,21.00,FEES,COMPUTER NETWORK/INFORMATION SERVICES
24/10/2016,http://opendatacommunities.org/id/county-council/surrey,Surrey,http://id.esd.org.uk/service/1465,Council expenditure,27/06/2016,FOSTERING SERVICE CENTRAL COSTS,WWW.CORAM.ORG.UK,45.30,BOOKS,"ORGANIZATIONS, CHARITABLE AND SOCIAL SERVICES"
24/10/2016,http://opendatacommunities.org/id/county-council/surrey,Surrey,http://id.esd.org.uk/service/1465,Council expenditure,27/06/2016,MALLOW CRESCENT,SAINSBURYS TO YOU 0686,12.10,PURCHASE OF FOOD (RAW MATERIALS),"GROCERY STORES, SUPERMARKETS"
24/10/2016,http://opendatacommunities.org/id/county-council/surrey,Surrey,http://id.esd.org.uk/service/1465,Council expenditure,27/06/2016,MALLOW CRESCENT,SAINSBURYS TO YOU 0686,105.17,PURCHASE OF FOOD (RAW MATERIALS),"GROCERY STORES, SUPERMARKETS"
24/10/2016,http://opendatacommunities.org/id/county-council/surrey,Surrey,http://id.esd.org.uk/service/1465,Council expenditure,27/06/2016,IMT CRITICAL ENVIRONMENTS,AMAZON EU,33.72,REFRESHMENT COSTS,DIRECT MARKETING-OTHER DIRECT MARKETERS/NOT ELSEW.
24/10/2016,http://opendatacommunities.org/id/county-council/surrey,Surrey,http://id.esd.org.uk/service/1465,Council expenditure,27/06/2016,HARRY'S YC,WAITROSE 838,4.00,PURCHASE OF FOOD (RAW MATERIALS),"GROCERY STORES, SUPERMARKETS"
24/10/2016,http://opendatacommunities.org/id/county-council/surrey,Surrey,http://id.esd.org.uk/service/1465,Council expenditure,27/06/2016,MALLOW CRESCENT,SAINSBURYS TO YOU 0686,3.00,PURCHASE OF FOOD (RAW MATERIALS),"GROCERY STORES, SUPERMARKETS"
24/10/2016,http://opendatacommunities.org/id/county-council/surrey,Surrey,http://id.esd.org.uk/service/1465,Council expenditure,27/06/2016,MALLOW CRESCENT,SAINSBURYS TO YOU 0686,102.74,PURCHASE OF FOOD (RAW MATERIALS),"GROCERY STORES, SUPERMARKETS"
24/10/2016,http://opendatacommunities.org/id/county-council/surrey,Surrey,http://id.esd.org.uk/service/1465,Council expenditure,27/06/2016,TARGETED INTERVENTION,STARBUCKS,10.50,EDUC VISITS/HOLS/CAMPS/TOYS,"EATING PLACES, RESTAURANTS"
24/10/2016,http://opendatacommunities.org/id/county-council/surrey,Surrey,http://id.esd.org.uk/service/1465,Council expenditure,27/06/2016,TRANSPORT,HI RUGBY NORTHAMPT,291.90,SUBSISTENCE AND CONFERENCE EXPENSES,"LODGING-HOTELS,MOTELS,RESORTS-NOT CLASSIFIED"
24/10/2016,http://opendatacommunities.org/id/county-council/surrey,Surrey,http://id.esd.org.uk/service/1465,Council expenditure,27/06/2016,ASH YC,CO-OP GROUP FOOD,9.21,PURCHASE OF FOOD (RAW MATERIALS),"GROCERY STORES, SUPERMARKETS"
24/10/2016,http://opendatacommunities.org/id/county-council/surrey,Surrey,http://id.esd.org.uk/service/1465,Council expenditure,27/06/2016,FRIMLEY YC,TESCO STORES 2812,3.00,REFRESHMENT COSTS,"GROCERY STORES, SUPERMARKETS"
24/10/2016,http://opendatacommunities.org/id/county-council/surrey,Surrey,http://id.esd.org.uk/service/1465,Council expenditure,27/06/2016,EMERGENCY MANAGEMENT,RAVEN WASTE PAPER,294.00,EQUIPMENT,"UTLTS-ELCTRC, GAS, HEATING OIL, SANITARY, WATER"
24/10/2016,http://opendatacommunities.org/id/county-council/surrey,Surrey,http://id.esd.org.uk/service/1465,Council expenditure,27/06/2016,MALLOW CRESCENT,AMAZON UK MARKETPLACE,13.98,EQUIPMENT,BOOK STORES
24/10/2016,http://opendatacommunities.org/id/county-council/surrey,Surrey,http://id.esd.org.uk/service/1465,Council expenditure,27/06/2016,TARGETED INTERVENTION,GMS/GLORYDALE,7.45,REFRESHMENT COSTS,MISCELLANEOUS GENERAL MERCHANDISE
24/10/2016,http://opendatacommunities.org/id/county-council/surrey,Surrey,http://id.esd.org.uk/service/1465,Council expenditure,27/06/2016,SW SECTION 17 CARE,TRAVELODGE,678.00,CHILDREN ACT SEC 17 PAYMENTS,TRAVELODGE
24/10/2016,http://opendatacommunities.org/id/county-council/surrey,Surrey,http://id.esd.org.uk/service/1465,Council expenditure,27/06/2016,APPLEWOOD,ASDA HOME SHOPPING,-4.55,PURCHASE OF FOOD (RAW MATERIALS),"GROCERY STORES, SUPERMARKETS"
24/10/2016,http://opendatacommunities.org/id/county-council/surrey,Surrey,http://id.esd.org.uk/service/1465,Council expenditure,27/06/2016,MALLOW CRESCENT,SAINSBURYS TO YOU 0686,7.00,PURCHASE OF FOOD (RAW MATERIALS),"GROCERY STORES, SUPERMARKETS"
24/10/2016,http://opendatacommunities.org/id/county-council/surrey,Surrey,http://id.esd.org.uk/service/1465,Council expenditure,27/06/2016,MALLOW CRESCENT,SAINSBURYS TO YOU 0686,99.50,PURCHASE OF FOOD (RAW MATERIALS),"GROCERY STORES, SUPERMARKETS"
24/10/2016,http://opendatacommunities.org/id/county-council/surrey,Surrey,http://id.esd.org.uk/service/1465,Council expenditure,27/06/2016,WOODLANDS COMMUNITY HOME,LONGACRES NURSERY,25.47,EQUIPMENT,LAWN AND GARDEN SUPPLY STORES
24/10/2016,http://opendatacommunities.org/id/county-council/surrey,Surrey,http://id.esd.org.uk/service/1465,Council expenditure,27/06/2016,MERSTHAM YC,AMAZON UK MARKETPLACE,7.60,EQUIPMENT,BOOK STORES
24/10/2016,http://opendatacommunities.org/id/county-council/surrey,Surrey,http://id.esd.org.uk/service/1465,Council expenditure,27/06/2016,HILLSIDE,SAINSBURYS 0784,3.00,PURCHASE OF FOOD (RAW MATERIALS),"GROCERY STORES, SUPERMARKETS"
24/10/2016,http://opendatacommunities.org/id/county-council/surrey,Surrey,http://id.esd.org.uk/service/1465,Council expenditure,27/06/2016,HILLSIDE,SAINSBURYS 0784,33.45,PURCHASE OF FOOD (RAW MATERIALS),"GROCERY STORES, SUPERMARKETS"
24/10/2016,http://opendatacommunities.org/id/county-council/surrey,Surrey,http://id.esd.org.uk/service/1465,Council expenditure,27/06/2016,OCCUPATIONAL HEALTH,AMAZON UK MARKETPLACE,10.75,EQUIPMENT,BOOK STORES
24/10/2016,http://opendatacommunities.org/id/county-council/surrey,Surrey,http://id.esd.org.uk/service/1465,Council expenditure,27/06/2016,FAIRCROFT COMMUNITY HOME,SAINSBURYS PFS0473,3.00,PURCHASE OF FOOD (RAW MATERIALS),SERVICE STATIONS WITH OR WITHOUT ANCILLARY SERVICE
24/10/2016,http://opendatacommunities.org/id/county-council/surrey,Surrey,http://id.esd.org.uk/service/1465,Council expenditure,27/06/2016,IMT CRITICAL ENVIRONMENTS,MILK@MORE ONLINE,45.60,REFRESHMENT COSTS,"MISC FOOD STORE-CONVENIENCE,MRKT,SPLTY,VENDNG MACS"
24/10/2016,http://opendatacommunities.org/id/county-council/surrey,Surrey,http://id.esd.org.uk/service/1465,Council expenditure,27/06/2016,SOLD MANAGEMENT AND OVERHEADS,WWW.OUTDOOR-LEARNING.O,235.00,TRAINING EXPENSES EXTERNAL GENERAL,"ORGANIZATIONS, CHARITABLE AND SOCIAL SERVICES"
24/10/2016,http://opendatacommunities.org/id/county-council/surrey,Surrey,http://id.esd.org.uk/service/1465,Council expenditure,27/06/2016,BURBANK COMMUNITY HOME,BT BILL PAYMENT 1,108.78,TELECOMMUNICATION CHARGES,TELECOMMUNICATION EQUIPMENT INCL TELEPHONE SALES
24/10/2016,http://opendatacommunities.org/id/county-council/surrey,Surrey,http://id.esd.org.uk/service/1465,Council expenditure,27/06/2016,LAKERS YC,SAINSBURYS 0686,11.60,REFRESHMENT COSTS,"GROCERY STORES, SUPERMARKETS"
24/10/2016,http://opendatacommunities.org/id/county-council/surrey,Surrey,http://id.esd.org.uk/service/1465,Council expenditure,27/06/2016,ENSURING QUALITY - PLAY,AMAZON EU,15.53,EQUIPMENT,DIRECT MARKETING-OTHER DIRECT MARKETERS/NOT ELSEW.
24/10/2016,http://opendatacommunities.org/id/county-council/surrey,Surrey,http://id.esd.org.uk/service/1465,Council expenditure,28/06/2016,CORONER,HP INC UK LIMITED,159.00,EQUIPMENT,"COMPUTERS, COMPUTER PERIPHERAL EQUIPMENT, SOFTWARE"
24/10/2016,http://opendatacommunities.org/id/county-council/surrey,Surrey,http://id.esd.org.uk/service/1465,Council expenditure,28/06/2016,IMT SUPPORT FOR FIRE & RESCUE,CPC,50.39,COMPUTER CONSUMABLES,ELECTRICAL PARTS AND EQUIPMENT
24/10/2016,http://opendatacommunities.org/id/county-council/surrey,Surrey,http://id.esd.org.uk/service/1465,Council expenditure,28/06/2016,ARUNDEL,WVR.UK (HOSEASONS GP),474.25,EDUC VISITS/HOLS/CAMPS/TOYS,TRAVEL AGENCIES AND TOUR OPERATORS
24/10/2016,http://opendatacommunities.org/id/county-council/surrey,Surrey,http://id.esd.org.uk/service/1465,Council expenditure,28/06/2016,IMT SUPPORT FOR FIRE & RESCUE,CPC,53.36,COMPUTER CONSUMABLES,ELECTRICAL PARTS AND EQUIPMENT
24/10/2016,http://opendatacommunities.org/id/county-council/surrey,Surrey,http://id.esd.org.uk/service/1465,Council expenditure,28/06/2016,ARUNDEL,WVR.UK (HOSEASONS GP),474.25,EDUC VISITS/HOLS/CAMPS/TOYS,TRAVEL AGENCIES AND TOUR OPERATORS
24/10/2016,http://opendatacommunities.org/id/county-council/surrey,Surrey,http://id.esd.org.uk/service/1465,Council expenditure,28/06/2016,RBDM - GENERAL,WWW.ARCHERSIGNS.CO.UK,62.94,EQUIPMENT,MISCELLANEOUS PUBLISHING AND PRINTING
24/10/2016,http://opendatacommunities.org/id/county-council/surrey,Surrey,http://id.esd.org.uk/service/1465,Council expenditure,28/06/2016,SW SECTION 17 CARE,TRAVELODGE,345.00,CHILDREN ACT SEC 24 PAYMENTS,TRAVELODGE
24/10/2016,http://opendatacommunities.org/id/county-council/surrey,Surrey,http://id.esd.org.uk/service/1465,Council expenditure,28/06/2016,EGHAM YC,TESCO STORES 2017,19.45,CURRICULUM CONSUMABLES,"GROCERY STORES, SUPERMARKETS"
24/10/2016,http://opendatacommunities.org/id/county-council/surrey,Surrey,http://id.esd.org.uk/service/1465,Council expenditure,28/06/2016,CHILDREN'S RIGHTS TEAM,WILKO WOKING,23.60,EQUIPMENT,HOUSEHOLD APPLIANCE STORES
24/10/2016,http://opendatacommunities.org/id/county-council/surrey,Surrey,http://id.esd.org.uk/service/1465,Council expenditure,28/06/2016,ARUNDEL,PARKDEAN HOLIDAY P,425.29,EDUC VISITS/HOLS/CAMPS/TOYS,CAMPGROUNDS AND TRAILER PARKS
24/10/2016,http://opendatacommunities.org/id/county-council/surrey,Surrey,http://id.esd.org.uk/service/1465,Council expenditure,28/06/2016,MALLOW CRESCENT,WWW.VIKING-DIRECT.CO.U,30.44,EQUIPMENT,STATIONERY/OFFICE SUPPLIES/PRINTING & WRITING PAP.
24/10/2016,http://opendatacommunities.org/id/county-council/surrey,Surrey,http://id.esd.org.uk/service/1465,Council expenditure,28/06/2016,ARUNDEL,PARKDEAN HOLIDAY P,20.30,EDUC VISITS/HOLS/CAMPS/TOYS,CAMPGROUNDS AND TRAILER PARKS
24/10/2016,http://opendatacommunities.org/id/county-council/surrey,Surrey,http://id.esd.org.uk/service/1465,Council expenditure,28/06/2016,MAINTENANCE SURVEYING TEAM,AMAZON UK MARKETPLACE,68.18,EQUIPMENT,BOOK STORES
24/10/2016,http://opendatacommunities.org/id/county-council/surrey,Surrey,http://id.esd.org.uk/service/1465,Council expenditure,28/06/2016,SOLD CATERING,MILK & MORE OFFLINE,83.16,PURCHASE OF FOOD (RAW MATERIALS),"MISC FOOD STORE-CONVENIENCE,MRKT,SPLTY,VENDNG MACS"
24/10/2016,http://opendatacommunities.org/id/county-council/surrey,Surrey,http://id.esd.org.uk/service/1465,Council expenditure,28/06/2016,SW SECTION 17 CARE,TRAVELODGE,99.00,CHILDREN ACT SEC 17 PAYMENTS,TRAVELODGE
24/10/2016,http://opendatacommunities.org/id/county-council/surrey,Surrey,http://id.esd.org.uk/service/1465,Council expenditure,28/06/2016,NIL RECOURSE PUBLIC FNDG 18+ ASYLUM SKR,LOVE2SHOP.CO.UK,453.17,CHILDREN ACT SEC 17 PAYMENTS,"ASSOCIATIONS-CIVIC, SOCIAL, AND FRATERNAL"
24/10/2016,http://opendatacommunities.org/id/county-council/surrey,Surrey,http://id.esd.org.uk/service/1465,Council expenditure,28/06/2016,ASYLUM SEEKERS 18+,LOVE2SHOP.CO.UK,453.17,CHILDREN ACT SEC 17 PAYMENTS,"ASSOCIATIONS-CIVIC, SOCIAL, AND FRATERNAL"
24/10/2016,http://opendatacommunities.org/id/county-council/surrey,Surrey,http://id.esd.org.uk/service/1465,Council expenditure,28/06/2016,LEAVING CARE PACKAGES,LOVE2SHOP.CO.UK,453.16,CHILDREN ACT SEC 17 PAYMENTS,"ASSOCIATIONS-CIVIC, SOCIAL, AND FRATERNAL"
24/10/2016,http://opendatacommunities.org/id/county-council/surrey,Surrey,http://id.esd.org.uk/service/1465,Council expenditure,28/06/2016,ACL CENTRAL EXPENDITURE,TESCO STORE 3220,75.18,REFRESHMENT COSTS,"GROCERY STORES, SUPERMARKETS"
24/10/2016,http://opendatacommunities.org/id/county-council/surrey,Surrey,http://id.esd.org.uk/service/1465,Council expenditure,28/06/2016,NW YOUTH WORKERS - SPELTHORNE,SAINSBURYS SACAT 0679,4.90,REFRESHMENT COSTS,"GROCERY STORES, SUPERMARKETS"
24/10/2016,http://opendatacommunities.org/id/county-council/surrey,Surrey,http://id.esd.org.uk/service/1465,Council expenditure,28/06/2016,KARIBU COMMUNITY HOME,TESCO STORE 2812,464.36,PURCHASE OF FOOD (RAW MATERIALS),"GROCERY STORES, SUPERMARKETS"
24/10/2016,http://opendatacommunities.org/id/county-council/surrey,Surrey,http://id.esd.org.uk/service/1465,Council expenditure,28/06/2016,HILLSIDE,SAINSBURYS 0675,68.03,PURCHASE OF FOOD (RAW MATERIALS),"GROCERY STORES, SUPERMARKETS"
24/10/2016,http://opendatacommunities.org/id/county-council/surrey,Surrey,http://id.esd.org.uk/service/1465,Council expenditure,28/06/2016,HILLSIDE,SHOECARE - CAMBERLEY,37.85,DAY TO DAY MAINTENANCE,"HAT CLEANING SHOPS, SHOE REPAIR SHOPS, SHOE SHINE"
24/10/2016,http://opendatacommunities.org/id/county-council/surrey,Surrey,http://id.esd.org.uk/service/1465,Council expenditure,28/06/2016,TRAINING AND DEVELOPMENT,FIRE INDUSTRY ASSOCIAT,60.00,TRAINING EXPENSES EXTERNAL GENERAL,SCHOOLS & EDUCATIONAL SVC-NOT ELSEWHERE CLASSIFIED
24/10/2016,http://opendatacommunities.org/id/county-council/surrey,Surrey,http://id.esd.org.uk/service/1465,Council expenditure,28/06/2016,SURREY ARTS GENERAL,AMAZON UK MARKETPLACE,14.14,EQUIPMENT,BOOK STORES
24/10/2016,http://opendatacommunities.org/id/county-council/surrey,Surrey,http://id.esd.org.uk/service/1465,Council expenditure,28/06/2016,CHILDREN'S RIGHTS TEAM,ASDA  STORES 4775,29.11,REFRESHMENT COSTS,"GROCERY STORES, SUPERMARKETS"
24/10/2016,http://opendatacommunities.org/id/county-council/surrey,Surrey,http://id.esd.org.uk/service/1465,Council expenditure,28/06/2016,WOODLANDS COMMUNITY HOME,AMAZON UK MARKETPLACE,19.59,EQUIPMENT,BOOK STORES
24/10/2016,http://opendatacommunities.org/id/county-council/surrey,Surrey,http://id.esd.org.uk/service/1465,Council expenditure,28/06/2016,FRIMLEY YC,SAINSBURYS SACAT 0675,22.30,PURCHASE OF FOOD (RAW MATERIALS),"GROCERY STORES, SUPERMARKETS"
24/10/2016,http://opendatacommunities.org/id/county-council/surrey,Surrey,http://id.esd.org.uk/service/1465,Council expenditure,28/06/2016,HOPE SERVICE - EAST,SAINSBURYS 0687,31.23,PURCHASE OF FOOD (RAW MATERIALS),"GROCERY STORES, SUPERMARKETS"
24/10/2016,http://opendatacommunities.org/id/county-council/surrey,Surrey,http://id.esd.org.uk/service/1465,Council expenditure,28/06/2016,E&I - LOVE FOOD HATE WASTE              ,GOOGLE  ADWS2060179426,500.00,PUBLICITY,DIRECT MARKETING-CONTINUITY/SUBSCRIPTION MERCHANTS
24/10/2016,http://opendatacommunities.org/id/county-council/surrey,Surrey,http://id.esd.org.uk/service/1465,Council expenditure,28/06/2016,TARGETED INTERVENTION,TOP GOLF ADDLESTON,9.20,EDUC VISITS/HOLS/CAMPS/TOYS,"CLUBS-CNTRY,MBRSHIP(ATHLET,REC,SPRTS,PRIVATE GOLF"
24/10/2016,http://opendatacommunities.org/id/county-council/surrey,Surrey,http://id.esd.org.uk/service/1465,Council expenditure,28/06/2016,CHILDREN'S RIGHTS TEAM,SPORTSDIRECT 174,31.98,EQUIPMENT,SPORTING GOODS STORES
24/10/2016,http://opendatacommunities.org/id/county-council/surrey,Surrey,http://id.esd.org.uk/service/1465,Council expenditure,28/06/2016,FAIRCROFT COMMUNITY HOME,TESCO STORE 2160,131.10,PURCHASE OF FOOD (RAW MATERIALS),"GROCERY STORES, SUPERMARKETS"
24/10/2016,http://opendatacommunities.org/id/county-council/surrey,Surrey,http://id.esd.org.uk/service/1465,Council expenditure,28/06/2016,PROPERTY OPERATIONS TEAM,TOOLSTATION LTD,15.11,PURCHASE OF BUILDING MATERIALS,HARDWARE STORES
24/10/2016,http://opendatacommunities.org/id/county-council/surrey,Surrey,http://id.esd.org.uk/service/1465,Council expenditure,28/06/2016,SW SECTION 17 CARE,TRAVELODGE,322.00,CHILDREN ACT SEC 17 PAYMENTS,TRAVELODGE
24/10/2016,http://opendatacommunities.org/id/county-council/surrey,Surrey,http://id.esd.org.uk/service/1465,Council expenditure,28/06/2016,ROW VOLUNTEERS WEST                     ,WILLIAM WAY (GODSTONE),190.80,EQUIPMENT,"BUILDING MATERIALS, LUMBER STORES"
24/10/2016,http://opendatacommunities.org/id/county-council/surrey,Surrey,http://id.esd.org.uk/service/1465,Council expenditure,28/06/2016,PERFORMANCE TEAM,"AMAZON SVCS EUROPE,SAR",130.00,EQUIPMENT,BOOK STORES
24/10/2016,http://opendatacommunities.org/id/county-council/surrey,Surrey,http://id.esd.org.uk/service/1465,Council expenditure,28/06/2016,HOLLAND CLOSE RESIDENTIAL HOME,ROBERT DYAS HOLDNG LTD,14.21,CLEANING AND DOMESTIC SUPPLIES,HARDWARE STORES
24/10/2016,http://opendatacommunities.org/id/county-council/surrey,Surrey,http://id.esd.org.uk/service/1465,Council expenditure,28/06/2016,SOVEREIGNS YC,LIDL UK,4.57,PURCHASE OF FOOD (RAW MATERIALS),"GROCERY STORES, SUPERMARKETS"
24/10/2016,http://opendatacommunities.org/id/county-council/surrey,Surrey,http://id.esd.org.uk/service/1465,Council expenditure,28/06/2016,WOODLANDS COMMUNITY HOME,SAINSBURYS 0686,141.13,PURCHASE OF FOOD (RAW MATERIALS),"GROCERY STORES, SUPERMARKETS"
24/10/2016,http://opendatacommunities.org/id/county-council/surrey,Surrey,http://id.esd.org.uk/service/1465,Council expenditure,28/06/2016,TARGETED INTERVENTION,GERRY'S OFFSHORE I,4.60,EDUC VISITS/HOLS/CAMPS/TOYS,FAST FOOD RESTAURANTS
24/10/2016,http://opendatacommunities.org/id/county-council/surrey,Surrey,http://id.esd.org.uk/service/1465,Council expenditure,28/06/2016,TRANSPORT,PAYPAL  SAFEISLTD,107.99,DAY TO DAY MAINTENANCE,ADVERTISING SERVICES
24/10/2016,http://opendatacommunities.org/id/county-council/surrey,Surrey,http://id.esd.org.uk/service/1465,Council expenditure,28/06/2016,ACL CENTRAL EXPENDITURE,W M MORRISONS,11.20,REFRESHMENT COSTS,"GROCERY STORES, SUPERMARKETS"
24/10/2016,http://opendatacommunities.org/id/county-council/surrey,Surrey,http://id.esd.org.uk/service/1465,Council expenditure,28/06/2016,SW SECTION 17 CARE,TRAVELODGE,201.00,CHILDREN ACT SEC 17 PAYMENTS,TRAVELODGE
24/10/2016,http://opendatacommunities.org/id/county-council/surrey,Surrey,http://id.esd.org.uk/service/1465,Council expenditure,28/06/2016,ARUNDEL,PARKDEAN HOLIDAY P,425.29,EDUC VISITS/HOLS/CAMPS/TOYS,CAMPGROUNDS AND TRAILER PARKS
24/10/2016,http://opendatacommunities.org/id/county-council/surrey,Surrey,http://id.esd.org.uk/service/1465,Council expenditure,28/06/2016,WOODLANDS COMMUNITY HOME,AMAZON EU,38.98,EQUIPMENT,DIRECT MARKETING-OTHER DIRECT MARKETERS/NOT ELSEW.
24/10/2016,http://opendatacommunities.org/id/county-council/surrey,Surrey,http://id.esd.org.uk/service/1465,Council expenditure,28/06/2016,CHILDREN'S RIGHTS TEAM,HOBBYCRAFT,26.49,EQUIPMENT,"ARTIST SUPPLY STORES, CRAFT SHOPS"
24/10/2016,http://opendatacommunities.org/id/county-council/surrey,Surrey,http://id.esd.org.uk/service/1465,Council expenditure,28/06/2016,ARUNDEL,PARKDEAN HOLIDAY P,20.30,EDUC VISITS/HOLS/CAMPS/TOYS,CAMPGROUNDS AND TRAILER PARKS
24/10/2016,http://opendatacommunities.org/id/county-council/surrey,Surrey,http://id.esd.org.uk/service/1465,Council expenditure,28/06/2016,TARGETED INTERVENTION,MERCEDES-BENZ WORLD,5.60,EDUC VISITS/HOLS/CAMPS/TOYS,"EATING PLACES, RESTAURANTS"
24/10/2016,http://opendatacommunities.org/id/county-council/surrey,Surrey,http://id.esd.org.uk/service/1465,Council expenditure,28/06/2016,PERFORMANCE TEAM,AMAZON UK RETAIL AMAZO,11.25,EQUIPMENT,MISCELLANEOUS AND SPECIALTY RETAIL STORES
24/10/2016,http://opendatacommunities.org/id/county-council/surrey,Surrey,http://id.esd.org.uk/service/1465,Council expenditure,28/06/2016,NORTH EAST AREA TEAM,BROOK LANDS MUSEUM TRU,30.00,EDUC VISITS/HOLS/CAMPS/TOYS,RECREATION SERVICES (NOT ELSEWHERE CLASSIFIED)
24/10/2016,http://opendatacommunities.org/id/county-council/surrey,Surrey,http://id.esd.org.uk/service/1465,Council expenditure,28/06/2016,EXTENDED HOPE,SAINSBURYS SACAT 0652,21.68,PURCHASE OF FOOD (RAW MATERIALS),"GROCERY STORES, SUPERMARKETS"
24/10/2016,http://opendatacommunities.org/id/county-council/surrey,Surrey,http://id.esd.org.uk/service/1465,Council expenditure,28/06/2016,TRANSPORT,PAYPAL  SIGNMAX AB,191.54,DAY TO DAY MAINTENANCE,CHEMICALS/ALLIED PRODUCTS NOT ELSEWHERE CLASSIFIED
24/10/2016,http://opendatacommunities.org/id/county-council/surrey,Surrey,http://id.esd.org.uk/service/1465,Council expenditure,28/06/2016,HOPE SERVICE - EAST,WICKES,6.99,CURRICULUM CONSUMABLES,"BUILDING MATERIALS, LUMBER STORES"
24/10/2016,http://opendatacommunities.org/id/county-council/surrey,Surrey,http://id.esd.org.uk/service/1465,Council expenditure,28/06/2016,HOPE SERVICE - EAST,AMAZON UK MARKETPLACE,11.29,EQUIPMENT,BOOK STORES
24/10/2016,http://opendatacommunities.org/id/county-council/surrey,Surrey,http://id.esd.org.uk/service/1465,Council expenditure,28/06/2016,RUTH HOUSE,ESTEEEM DOMESTIC APPLI,73.38,DAY TO DAY MAINTENANCE,ELECTRICAL AND SMALL APPLIANCE REPAIR SHOPS
24/10/2016,http://opendatacommunities.org/id/county-council/surrey,Surrey,http://id.esd.org.uk/service/1465,Council expenditure,28/06/2016,TARGETED INTERVENTION,TOP GOLF LTD,53.50,EDUC VISITS/HOLS/CAMPS/TOYS,"CLUBS-CNTRY,MBRSHIP(ATHLET,REC,SPRTS,PRIVATE GOLF"
24/10/2016,http://opendatacommunities.org/id/county-council/surrey,Surrey,http://id.esd.org.uk/service/1465,Council expenditure,28/06/2016,CORONER,AMAZON EU,68.95,EQUIPMENT,DIRECT MARKETING-OTHER DIRECT MARKETERS/NOT ELSEW.
24/10/2016,http://opendatacommunities.org/id/county-council/surrey,Surrey,http://id.esd.org.uk/service/1465,Council expenditure,28/06/2016,CAMHS SOCIAL WORKERS,WWW.LIFESTYLEBENEFITS.,467.02,EDUC VISITS/HOLS/CAMPS/TOYS,BUSINESS SERVICES-NOT ELSEWHERE CLASSIFIED
24/10/2016,http://opendatacommunities.org/id/county-council/surrey,Surrey,http://id.esd.org.uk/service/1465,Council expenditure,28/06/2016,TARGETED INTERVENTION,BEL & THE DRAGON,3.80,EDUC VISITS/HOLS/CAMPS/TOYS,"EATING PLACES, RESTAURANTS"
24/10/2016,http://opendatacommunities.org/id/county-council/surrey,Surrey,http://id.esd.org.uk/service/1465,Council expenditure,28/06/2016,WOODLANDS COMMUNITY HOME,AMAZON UK MARKETPLACE,4.88,EQUIPMENT,BOOK STORES
24/10/2016,http://opendatacommunities.org/id/county-council/surrey,Surrey,http://id.esd.org.uk/service/1465,Council expenditure,28/06/2016,HILLSIDE,SAINSBURYS SACAT 0784,7.65,PURCHASE OF FOOD (RAW MATERIALS),"GROCERY STORES, SUPERMARKETS"
24/10/2016,http://opendatacommunities.org/id/county-council/surrey,Surrey,http://id.esd.org.uk/service/1465,Council expenditure,28/06/2016,WASTE MINIMISATION,CHESSINGTON WORLD,110.40,PUBLICITY,TOURIST ATTRACTIONS AND EXHIBITS
24/10/2016,http://opendatacommunities.org/id/county-council/surrey,Surrey,http://id.esd.org.uk/service/1465,Council expenditure,28/06/2016,WOODLANDS COMMUNITY HOME,LONGACRES NURSERY,61.66,EQUIPMENT,LAWN AND GARDEN SUPPLY STORES
24/10/2016,http://opendatacommunities.org/id/county-council/surrey,Surrey,http://id.esd.org.uk/service/1465,Council expenditure,28/06/2016,WOODLANDS COMMUNITY HOME,AMAZON UK MARKETPLACE,5.19,EDUC VISITS/HOLS/CAMPS/TOYS,BOOK STORES
24/10/2016,http://opendatacommunities.org/id/county-council/surrey,Surrey,http://id.esd.org.uk/service/1465,Council expenditure,28/06/2016,IMT SUPPORT FOR FIRE & RESCUE,PAYPAL  COMPUTERDIS,62.00,COMPUTER HARDWARE,ELECTRONIC SALES
24/10/2016,http://opendatacommunities.org/id/county-council/surrey,Surrey,http://id.esd.org.uk/service/1465,Council expenditure,28/06/2016,ASSISTED PURCHASE SCHEME,NEWTONS,339.00,EQUIPMENT,"MUSIC STORES-INSTRUMENTS, PIANOS, SHEET MUSIC"
24/10/2016,http://opendatacommunities.org/id/county-council/surrey,Surrey,http://id.esd.org.uk/service/1465,Council expenditure,28/06/2016,CHEYNE WALK COMMUNITY HOME,TESCO-STORES 6647,215.31,PURCHASE OF FOOD (RAW MATERIALS),"GROCERY STORES, SUPERMARKETS"
24/10/2016,http://opendatacommunities.org/id/county-council/surrey,Surrey,http://id.esd.org.uk/service/1465,Council expenditure,28/06/2016,AEO MANAGEMENT TEAM (NW),AMAZON UK MARKETPLACE,44.99,EQUIPMENT,BOOK STORES
24/10/2016,http://opendatacommunities.org/id/county-council/surrey,Surrey,http://id.esd.org.uk/service/1465,Council expenditure,28/06/2016,TARGETED INTERVENTION,ART & SOLD,25.00,EDUC VISITS/HOLS/CAMPS/TOYS,HOUSEHOLD APPLIANCE STORES
24/10/2016,http://opendatacommunities.org/id/county-council/surrey,Surrey,http://id.esd.org.uk/service/1465,Council expenditure,28/06/2016,SUNBURY YC,W M MORRISON STORE,5.00,EQUIPMENT,"GROCERY STORES, SUPERMARKETS"
24/10/2016,http://opendatacommunities.org/id/county-council/surrey,Surrey,http://id.esd.org.uk/service/1465,Council expenditure,28/06/2016,DCLG FIRE CONTROL GRANT (CAPITAL),ARGOS RETAIL GROUP,"1,437.00",CE04 CAPITAL ICT,DISCOUNT STORES
24/10/2016,http://opendatacommunities.org/id/county-council/surrey,Surrey,http://id.esd.org.uk/service/1465,Council expenditure,28/06/2016,THE BRIDGE YC,TESCO STORES 2812,14.90,PURCHASE OF FOOD (RAW MATERIALS),"GROCERY STORES, SUPERMARKETS"
24/10/2016,http://opendatacommunities.org/id/county-council/surrey,Surrey,http://id.esd.org.uk/service/1465,Council expenditure,28/06/2016,IMT SUPPORT FOR FIRE & RESCUE,PAYPAL  ITSTECH,26.49,COMPUTER CONSUMABLES,COMPUTER MAIN./REPAIR/SERVICES NOT ELSEWHERE CLASS
24/10/2016,http://opendatacommunities.org/id/county-council/surrey,Surrey,http://id.esd.org.uk/service/1465,Council expenditure,28/06/2016,IMT SUPPORT FOR FIRE & RESCUE,PAYPAL  CAMILLALUCI,72.73,COMPUTER CONSUMABLES,"BUYING/SHOPPING CLUBS, SERVICES"
24/10/2016,http://opendatacommunities.org/id/county-council/surrey,Surrey,http://id.esd.org.uk/service/1465,Council expenditure,28/06/2016,NW TEACHERS,AMAZON EU,67.09,BOOKS,DIRECT MARKETING-OTHER DIRECT MARKETERS/NOT ELSEW.
24/10/2016,http://opendatacommunities.org/id/county-council/surrey,Surrey,http://id.esd.org.uk/service/1465,Council expenditure,28/06/2016,NW CP & COURT TEAM,WWW.CHANGEPEOPLE.CO.UK,57.00,BOOKS,"ORGANIZATIONS, CHARITABLE AND SOCIAL SERVICES"
24/10/2016,http://opendatacommunities.org/id/county-council/surrey,Surrey,http://id.esd.org.uk/service/1465,Council expenditure,28/06/2016,EDUC CAT SOUTH WEST DISTRICT K OVERHEADS,AO RETAIL LIMITED,288.99,EQUIPMENT,HOUSEHOLD APPLIANCE STORES
24/10/2016,http://opendatacommunities.org/id/county-council/surrey,Surrey,http://id.esd.org.uk/service/1465,Council expenditure,28/06/2016,HILLSIDE,SELDRAM SUPPLIES L,26.40,EQUIPMENT,"CLEANING AND MAINTENANCE, JANITORIAL SERVICES"
24/10/2016,http://opendatacommunities.org/id/county-council/surrey,Surrey,http://id.esd.org.uk/service/1465,Council expenditure,28/06/2016,WOODLANDS COMMUNITY HOME,HILLIER GARDEN CENTRE,79.60,EQUIPMENT,LAWN AND GARDEN SUPPLY STORES
24/10/2016,http://opendatacommunities.org/id/county-council/surrey,Surrey,http://id.esd.org.uk/service/1465,Council expenditure,29/06/2016,IMT SUPPORT FOR FIRE & RESCUE,WWW.GATWICKAIRPORT.COM,-19.00,SUBSISTENCE AND CONFERENCE EXPENSES,AUTOMOBILE PARKING LOTS AND GARAGES
24/10/2016,http://opendatacommunities.org/id/county-council/surrey,Surrey,http://id.esd.org.uk/service/1465,Council expenditure,29/06/2016,SW CARE - NON-LAC CP & COURT,ALLPAY MOTO (CALLPAY/I,273.36,3RD PARTY PAYMENTS OTHER AGENCIES,"ORGANIZATIONS, CHARITABLE AND SOCIAL SERVICES"
24/10/2016,http://opendatacommunities.org/id/county-council/surrey,Surrey,http://id.esd.org.uk/service/1465,Council expenditure,29/06/2016,TARGETED INTERVENTION,UPT - VINCI BRACKNELL,2.00,EDUC VISITS/HOLS/CAMPS/TOYS,PROFESSIONAL SERVICES-NOT ELSEWHERE CLASSIFIED
24/10/2016,http://opendatacommunities.org/id/county-council/surrey,Surrey,http://id.esd.org.uk/service/1465,Council expenditure,29/06/2016,TARGETED INTERVENTION,SHEPPERTON  CONNECT,18.80,REFRESHMENT COSTS,PETROLEUM AND PETROLEUM PRODUCTS
24/10/2016,http://opendatacommunities.org/id/county-council/surrey,Surrey,http://id.esd.org.uk/service/1465,Council expenditure,29/06/2016,IMT SUPPORT FOR FIRE & RESCUE,WWW.GATWICKAIRPORT.COM,31.00,SUBSISTENCE AND CONFERENCE EXPENSES,AUTOMOBILE PARKING LOTS AND GARAGES
24/10/2016,http://opendatacommunities.org/id/county-council/surrey,Surrey,http://id.esd.org.uk/service/1465,Council expenditure,29/06/2016,STRATEGY & POLICY DEVELOPMENT,AMAZON EU,24.99,EQUIPMENT,DIRECT MARKETING-OTHER DIRECT MARKETERS/NOT ELSEW.
24/10/2016,http://opendatacommunities.org/id/county-council/surrey,Surrey,http://id.esd.org.uk/service/1465,Council expenditure,29/06/2016,PERFORMANCE AND KNOWLEDGE MANAGEMENT,AMAZON EU,24.99,EQUIPMENT,DIRECT MARKETING-OTHER DIRECT MARKETERS/NOT ELSEW.
24/10/2016,http://opendatacommunities.org/id/county-council/surrey,Surrey,http://id.esd.org.uk/service/1465,Council expenditure,29/06/2016,MALLOW CRESCENT,SAINSBURYS TO YOU 0686,16.55,PURCHASE OF FOOD (RAW MATERIALS),"GROCERY STORES, SUPERMARKETS"
24/10/2016,http://opendatacommunities.org/id/county-council/surrey,Surrey,http://id.esd.org.uk/service/1465,Council expenditure,29/06/2016,MALLOW CRESCENT,SAINSBURYS TO YOU 0686,89.53,PURCHASE OF FOOD (RAW MATERIALS),"GROCERY STORES, SUPERMARKETS"
24/10/2016,http://opendatacommunities.org/id/county-council/surrey,Surrey,http://id.esd.org.uk/service/1465,Council expenditure,29/06/2016,DEPUTYSHIP TEAM,VERY.CO.UK,19.99,3RD PARTY PAYMENTS PRIVATE INDIV,DIRECT MARKETING-CATALOG MERCHANTS
24/10/2016,http://opendatacommunities.org/id/county-council/surrey,Surrey,http://id.esd.org.uk/service/1465,Council expenditure,29/06/2016,CHAIRMAN,AMAZON UK MARKETPLACE,147.00,STATIONERY,BOOK STORES
24/10/2016,http://opendatacommunities.org/id/county-council/surrey,Surrey,http://id.esd.org.uk/service/1465,Council expenditure,29/06/2016,MALLOW CRESCENT,SAINSBURYS TO YOU 0686,-1.00,PURCHASE OF FOOD (RAW MATERIALS),"GROCERY STORES, SUPERMARKETS"
24/10/2016,http://opendatacommunities.org/id/county-council/surrey,Surrey,http://id.esd.org.uk/service/1465,Council expenditure,29/06/2016,CORONER,AMAZON UK MARKETPLACE,103.13,EQUIPMENT,BOOK STORES
24/10/2016,http://opendatacommunities.org/id/county-council/surrey,Surrey,http://id.esd.org.uk/service/1465,Council expenditure,29/06/2016,SERVICE DELIVERY RESOURCES,WWW.MUTTSBUTTS.COM,77.95,OPERATIONAL FIRE EQUIPMENT,PET SHOPS - PET FOODS AND SUPPLIES
24/10/2016,http://opendatacommunities.org/id/county-council/surrey,Surrey,http://id.esd.org.uk/service/1465,Council expenditure,29/06/2016,EDUC CAT NORTH DISTRICT D OVERHEADS,AO RETAIL LIMITED,258.99,EQUIPMENT,HOUSEHOLD APPLIANCE STORES
24/10/2016,http://opendatacommunities.org/id/county-council/surrey,Surrey,http://id.esd.org.uk/service/1465,Council expenditure,29/06/2016,TRANSPORT,SCREWFIX DIRECT,65.67,DAY TO DAY MAINTENANCE,"BUILDING MATERIALS, LUMBER STORES"
24/10/2016,http://opendatacommunities.org/id/county-council/surrey,Surrey,http://id.esd.org.uk/service/1465,Council expenditure,29/06/2016,HOPE SERVICE - EAST,WAITROSE 189,2.89,PURCHASE OF FOOD (RAW MATERIALS),"GROCERY STORES, SUPERMARKETS"
24/10/2016,http://opendatacommunities.org/id/county-council/surrey,Surrey,http://id.esd.org.uk/service/1465,Council expenditure,29/06/2016,SERVICE DELIVERY SENIOR MANAGEMENT,POST OFFICE COUNTER,3.84,POSTAGE AND COURIER CHARGES,POSTAL SERVICES-GOVERNMENT ONLY
24/10/2016,http://opendatacommunities.org/id/county-council/surrey,Surrey,http://id.esd.org.uk/service/1465,Council expenditure,29/06/2016,CRANLEIGH YC,TESCO STORE 2636,29.79,PURCHASE OF FOOD (RAW MATERIALS),"GROCERY STORES, SUPERMARKETS"
24/10/2016,http://opendatacommunities.org/id/county-council/surrey,Surrey,http://id.esd.org.uk/service/1465,Council expenditure,29/06/2016,PE/CDT MAINTENANCE OVERHEADS,BEACON ELECTRIC(GUILDF,153.22,EQUIPMENT,ELECTRICAL PARTS AND EQUIPMENT
24/10/2016,http://opendatacommunities.org/id/county-council/surrey,Surrey,http://id.esd.org.uk/service/1465,Council expenditure,29/06/2016,ACL CENTRAL EXPENDITURE,AMAZON UK MARKETPLACE,85.05,EQUIPMENT,BOOK STORES
24/10/2016,http://opendatacommunities.org/id/county-council/surrey,Surrey,http://id.esd.org.uk/service/1465,Council expenditure,29/06/2016,LEACROFT YC,TESCO STORES (6820),4.79,REFRESHMENT COSTS,"GROCERY STORES, SUPERMARKETS"
24/10/2016,http://opendatacommunities.org/id/county-council/surrey,Surrey,http://id.esd.org.uk/service/1465,Council expenditure,29/06/2016,ACL CENTRAL EXPENDITURE,HOMEBASE LTD 067,3.94,DAY TO DAY MAINTENANCE,"BUILDING MATERIALS, LUMBER STORES"
24/10/2016,http://opendatacommunities.org/id/county-council/surrey,Surrey,http://id.esd.org.uk/service/1465,Council expenditure,29/06/2016,RUTH HOUSE,WWW.PECS.ORG.UK,51.46,EDUC VISITS/HOLS/CAMPS/TOYS,SCHOOLS & EDUCATIONAL SVC-NOT ELSEWHERE CLASSIFIED
24/10/2016,http://opendatacommunities.org/id/county-council/surrey,Surrey,http://id.esd.org.uk/service/1465,Council expenditure,29/06/2016,EAST CWD NON-LAC CARE,ROYAL MAIL  0845606040,1.50,CHILDREN ACT SEC 17 PAYMENTS,POSTAL SERVICES-GOVERNMENT ONLY
24/10/2016,http://opendatacommunities.org/id/county-council/surrey,Surrey,http://id.esd.org.uk/service/1465,Council expenditure,29/06/2016,HOPE SERVICE - EAST,GARSONS GARDEN CENTRE,8.15,REFRESHMENT COSTS,FAST FOOD RESTAURANTS
24/10/2016,http://opendatacommunities.org/id/county-council/surrey,Surrey,http://id.esd.org.uk/service/1465,Council expenditure,29/06/2016,IMT PRODUCTION APPLICATIONS TEAM,RACKSPACE EMAIL & APPS,107.44,EQUIPMENT,COMPUTER NETWORK/INFORMATION SERVICES
24/10/2016,http://opendatacommunities.org/id/county-council/surrey,Surrey,http://id.esd.org.uk/service/1465,Council expenditure,29/06/2016,FRIMLEY YC,SAINSBURYS SACAT 0686,8.00,EQUIPMENT,"GROCERY STORES, SUPERMARKETS"
24/10/2016,http://opendatacommunities.org/id/county-council/surrey,Surrey,http://id.esd.org.uk/service/1465,Council expenditure,29/06/2016,TS SERVICE MANAGEMENT,MACOI  LIMITED,"2,628.60",FURNITURE,"EQUIP, FURNITURE, HOME FURNSHNGS STRS (EXCPT APPL)"
24/10/2016,http://opendatacommunities.org/id/county-council/surrey,Surrey,http://id.esd.org.uk/service/1465,Council expenditure,29/06/2016,TS SERVICE MANAGEMENT,MACOI  LIMITED,65.71,FURNITURE,"EQUIP, FURNITURE, HOME FURNSHNGS STRS (EXCPT APPL)"
24/10/2016,http://opendatacommunities.org/id/county-council/surrey,Surrey,http://id.esd.org.uk/service/1465,Council expenditure,29/06/2016,TS SERVICE MANAGEMENT,MACOI  LIMITED,16.88,FURNITURE,"EQUIP, FURNITURE, HOME FURNSHNGS STRS (EXCPT APPL)"
24/10/2016,http://opendatacommunities.org/id/county-council/surrey,Surrey,http://id.esd.org.uk/service/1465,Council expenditure,29/06/2016,CHEYNE WALK COMMUNITY HOME,WAITROSE 233,16.99,PURCHASE OF FOOD (RAW MATERIALS),"GROCERY STORES, SUPERMARKETS"
24/10/2016,http://opendatacommunities.org/id/county-council/surrey,Surrey,http://id.esd.org.uk/service/1465,Council expenditure,29/06/2016,ARUNDEL,TESCO STORES 5999,84.97,REFRESHMENT COSTS,"GROCERY STORES, SUPERMARKETS"
24/10/2016,http://opendatacommunities.org/id/county-council/surrey,Surrey,http://id.esd.org.uk/service/1465,Council expenditure,29/06/2016,ASHTEAD YC,TESCO STORE 2812,7.35,PURCHASE OF FOOD (RAW MATERIALS),"GROCERY STORES, SUPERMARKETS"
24/10/2016,http://opendatacommunities.org/id/county-council/surrey,Surrey,http://id.esd.org.uk/service/1465,Council expenditure,29/06/2016,DEPUTYSHIP TEAM,VERY.CO.UK,6.99,3RD PARTY PAYMENTS PRIVATE INDIV,DIRECT MARKETING-CATALOG MERCHANTS
24/10/2016,http://opendatacommunities.org/id/county-council/surrey,Surrey,http://id.esd.org.uk/service/1465,Council expenditure,29/06/2016,IMT CRITICAL ENVIRONMENTS,TALKTALK BUSINESS,"2,206.52",TELECOMMUNICATION CHARGES,TELECOM INCL PREPAID/RECURRING PHONE SVCS
24/10/2016,http://opendatacommunities.org/id/county-council/surrey,Surrey,http://id.esd.org.uk/service/1465,Council expenditure,29/06/2016,WOODLANDS COMMUNITY HOME,AMAZON UK MARKETPLACE,32.34,EQUIPMENT,BOOK STORES
24/10/2016,http://opendatacommunities.org/id/county-council/surrey,Surrey,http://id.esd.org.uk/service/1465,Council expenditure,29/06/2016,BURBANK COMMUNITY HOME,ASDA STORES 4823,10.75,MEDICAL EXPENSES,"GROCERY STORES, SUPERMARKETS"
24/10/2016,http://opendatacommunities.org/id/county-council/surrey,Surrey,http://id.esd.org.uk/service/1465,Council expenditure,29/06/2016,TRANSPORT,SCREWFIX DIRECT,50.42,DAY TO DAY MAINTENANCE,"BUILDING MATERIALS, LUMBER STORES"
24/10/2016,http://opendatacommunities.org/id/county-council/surrey,Surrey,http://id.esd.org.uk/service/1465,Council expenditure,29/06/2016,TARGETED INTERVENTION,TEXTILTHAMSGRG,10.92,EDUC VISITS/HOLS/CAMPS/TOYS,SERVICE STATIONS WITH OR WITHOUT ANCILLARY SERVICE
24/10/2016,http://opendatacommunities.org/id/county-council/surrey,Surrey,http://id.esd.org.uk/service/1465,Council expenditure,29/06/2016,DEPUTYSHIP TEAM,VERY.CO.UK,14.99,3RD PARTY PAYMENTS PRIVATE INDIV,DIRECT MARKETING-CATALOG MERCHANTS
24/10/2016,http://opendatacommunities.org/id/county-council/surrey,Surrey,http://id.esd.org.uk/service/1465,Council expenditure,29/06/2016,RECRUITMENT,LONDON CALLING,"1,338.00",PUBLICITY,ADVERTISING SERVICES
24/10/2016,http://opendatacommunities.org/id/county-council/surrey,Surrey,http://id.esd.org.uk/service/1465,Council expenditure,29/06/2016,CULTURAL SERVICES - HEAD & SUPPORT,AMAZON UK MARKETPLACE,5.97,EQUIPMENT,BOOK STORES
24/10/2016,http://opendatacommunities.org/id/county-council/surrey,Surrey,http://id.esd.org.uk/service/1465,Council expenditure,29/06/2016,HERITAGE PUBLIC SERVICE,TESCO STORE 3220,8.23,REFRESHMENT COSTS,"GROCERY STORES, SUPERMARKETS"
24/10/2016,http://opendatacommunities.org/id/county-council/surrey,Surrey,http://id.esd.org.uk/service/1465,Council expenditure,29/06/2016,CORONER,UNIVERSEAL (UK) LIMITE,334.80,FEES,BUSINESS SERVICES-NOT ELSEWHERE CLASSIFIED
24/10/2016,http://opendatacommunities.org/id/county-council/surrey,Surrey,http://id.esd.org.uk/service/1465,Council expenditure,29/06/2016,HERITAGE PUBLIC SERVICE,BOOKER LIMITED ALDERSH,129.71,REFRESHMENT COSTS,CATERERS
24/10/2016,http://opendatacommunities.org/id/county-council/surrey,Surrey,http://id.esd.org.uk/service/1465,Council expenditure,29/06/2016,HOPE SERVICE - WEST,SAINSBURYS SACAT(4409),5.65,NEWSPAPER AND PERIODICALS,"GROCERY STORES, SUPERMARKETS"
24/10/2016,http://opendatacommunities.org/id/county-council/surrey,Surrey,http://id.esd.org.uk/service/1465,Council expenditure,29/06/2016,TS SERVICE MANAGEMENT,MACOI  LIMITED,675.00,FURNITURE,"EQUIP, FURNITURE, HOME FURNSHNGS STRS (EXCPT APPL)"
24/10/2016,http://opendatacommunities.org/id/county-council/surrey,Surrey,http://id.esd.org.uk/service/1465,Council expenditure,29/06/2016,CHEYNE WALK COMMUNITY HOME,MAN UTD TICKET OFF,20.00,EDUC VISITS/HOLS/CAMPS/TOYS,"CLUBS-CNTRY,MBRSHIP(ATHLET,REC,SPRTS,PRIVATE GOLF"
24/10/2016,http://opendatacommunities.org/id/county-council/surrey,Surrey,http://id.esd.org.uk/service/1465,Council expenditure,29/06/2016,SUNBURY YC,TESCO STORE 3220,28.03,PURCHASE OF FOOD (RAW MATERIALS),"GROCERY STORES, SUPERMARKETS"
24/10/2016,http://opendatacommunities.org/id/county-council/surrey,Surrey,http://id.esd.org.uk/service/1465,Council expenditure,29/06/2016,DEPUTYSHIP TEAM,VERY.CO.UK,169.99,3RD PARTY PAYMENTS PRIVATE INDIV,DIRECT MARKETING-CATALOG MERCHANTS
24/10/2016,http://opendatacommunities.org/id/county-council/surrey,Surrey,http://id.esd.org.uk/service/1465,Council expenditure,29/06/2016,HERITAGE MANAGER,EB  DCDC16-COLLECTIONS,64.08,TRAINING EXPENSES EXTERNAL GENERAL,BUSINESS SERVICES-NOT ELSEWHERE CLASSIFIED
24/10/2016,http://opendatacommunities.org/id/county-council/surrey,Surrey,http://id.esd.org.uk/service/1465,Council expenditure,29/06/2016,ADDLESTONE YC,CO-OP GROUP 310379,20.79,CURRICULUM CONSUMABLES,"GROCERY STORES, SUPERMARKETS"
24/10/2016,http://opendatacommunities.org/id/county-council/surrey,Surrey,http://id.esd.org.uk/service/1465,Council expenditure,29/06/2016,ACL CENTRAL EXPENDITURE,AMAZON EU,16.43,EQUIPMENT,DIRECT MARKETING-OTHER DIRECT MARKETERS/NOT ELSEW.
24/10/2016,http://opendatacommunities.org/id/county-council/surrey,Surrey,http://id.esd.org.uk/service/1465,Council expenditure,29/06/2016,CONSORT HOUSE REDHILL,ARGOS LTD,29.99,EQUIPMENT,DISCOUNT STORES
24/10/2016,http://opendatacommunities.org/id/county-council/surrey,Surrey,http://id.esd.org.uk/service/1465,Council expenditure,29/06/2016,ACL CENTRAL EXPENDITURE,W M MORRISONS,42.20,REFRESHMENT COSTS,"GROCERY STORES, SUPERMARKETS"
24/10/2016,http://opendatacommunities.org/id/county-council/surrey,Surrey,http://id.esd.org.uk/service/1465,Council expenditure,29/06/2016,WOODLANDS COMMUNITY HOME,GMS/GLORYDALE,10.45,EDUC VISITS/HOLS/CAMPS/TOYS,MISCELLANEOUS GENERAL MERCHANDISE
24/10/2016,http://opendatacommunities.org/id/county-council/surrey,Surrey,http://id.esd.org.uk/service/1465,Council expenditure,29/06/2016,RUTH HOUSE,WWW.PECS.ORG.UK,9.34,EDUC VISITS/HOLS/CAMPS/TOYS,SCHOOLS & EDUCATIONAL SVC-NOT ELSEWHERE CLASSIFIED
24/10/2016,http://opendatacommunities.org/id/county-council/surrey,Surrey,http://id.esd.org.uk/service/1465,Council expenditure,29/06/2016,IMT SUPPORT FOR FIRE & RESCUE,WWW.GATWICKAIRPORT.COM,31.00,SUBSISTENCE AND CONFERENCE EXPENSES,AUTOMOBILE PARKING LOTS AND GARAGES
24/10/2016,http://opendatacommunities.org/id/county-council/surrey,Surrey,http://id.esd.org.uk/service/1465,Council expenditure,29/06/2016,READY FOR WORK YSS,VUE NCS CITB HS&E TEST,19.50,EQUIPMENT,SCHOOLS & EDUCATIONAL SVC-NOT ELSEWHERE CLASSIFIED
24/10/2016,http://opendatacommunities.org/id/county-council/surrey,Surrey,http://id.esd.org.uk/service/1465,Council expenditure,29/06/2016,SW CARE - NON-LAC CP & COURT,TOWNENDS,500.00,CHILDREN ACT SEC 17 PAYMENTS,REAL ESTATE AGENTS AND MANAGERS-RENTALS
24/10/2016,http://opendatacommunities.org/id/county-council/surrey,Surrey,http://id.esd.org.uk/service/1465,Council expenditure,29/06/2016,SW CARE - NON-LAC CP & COURT,TOWNENDS,15.00,CHILDREN ACT SEC 17 PAYMENTS,REAL ESTATE AGENTS AND MANAGERS-RENTALS
24/10/2016,http://opendatacommunities.org/id/county-council/surrey,Surrey,http://id.esd.org.uk/service/1465,Council expenditure,29/06/2016,BURBANK COMMUNITY HOME,SAINSBURYS TO YOU 0686,265.12,PURCHASE OF FOOD (RAW MATERIALS),"GROCERY STORES, SUPERMARKETS"
24/10/2016,http://opendatacommunities.org/id/county-council/surrey,Surrey,http://id.esd.org.uk/service/1465,Council expenditure,29/06/2016,PROPERTY OPERATIONS TEAM,SCREWFIX GUILDFORD,61.96,PURCHASE OF BUILDING MATERIALS,"BUILDING MATERIALS, LUMBER STORES"
24/10/2016,http://opendatacommunities.org/id/county-council/surrey,Surrey,http://id.esd.org.uk/service/1465,Council expenditure,29/06/2016,WOODLANDS COMMUNITY HOME,AMAZON UK MARKETPLACE,3.56,EQUIPMENT,BOOK STORES
24/10/2016,http://opendatacommunities.org/id/county-council/surrey,Surrey,http://id.esd.org.uk/service/1465,Council expenditure,29/06/2016,AEO MANAGEMENT TEAM (NE),TESCO STORE 3220,8.00,EQUIPMENT,"GROCERY STORES, SUPERMARKETS"
24/10/2016,http://opendatacommunities.org/id/county-council/surrey,Surrey,http://id.esd.org.uk/service/1465,Council expenditure,29/06/2016,PROPERTY OPERATIONS TEAM,SCREWFIX,18.54,PURCHASE OF BUILDING MATERIALS,"BUILDING MATERIALS, LUMBER STORES"
24/10/2016,http://opendatacommunities.org/id/county-council/surrey,Surrey,http://id.esd.org.uk/service/1465,Council expenditure,29/06/2016,ACL CENTRAL EXPENDITURE,SAINSBURYS SAC 4118,2.00,REFRESHMENT COSTS,"GROCERY STORES, SUPERMARKETS"
24/10/2016,http://opendatacommunities.org/id/county-council/surrey,Surrey,http://id.esd.org.uk/service/1465,Council expenditure,29/06/2016,THE EDGE YC,CO-OP GROUP 310385,5.69,REFRESHMENT COSTS,"GROCERY STORES, SUPERMARKETS"
24/10/2016,http://opendatacommunities.org/id/county-council/surrey,Surrey,http://id.esd.org.uk/service/1465,Council expenditure,29/06/2016,ASYLUM SEEKERS 18+,TRAVELODGE,61.00,CHILDREN ACT SEC 24 PAYMENTS,TRAVELODGE
24/10/2016,http://opendatacommunities.org/id/county-council/surrey,Surrey,http://id.esd.org.uk/service/1465,Council expenditure,29/06/2016,EDUCATION WELFARE ENFORCEMENT TEAM,AMAZON EU,17.32,STATIONERY,DIRECT MARKETING-OTHER DIRECT MARKETERS/NOT ELSEW.
24/10/2016,http://opendatacommunities.org/id/county-council/surrey,Surrey,http://id.esd.org.uk/service/1465,Council expenditure,29/06/2016,PORTAGE SERVICE (SW),AMAZON EU,32.81,STATIONERY,DIRECT MARKETING-OTHER DIRECT MARKETERS/NOT ELSEW.
24/10/2016,http://opendatacommunities.org/id/county-council/surrey,Surrey,http://id.esd.org.uk/service/1465,Council expenditure,30/06/2016,PE/CDT MAINTENANCE OVERHEADS,WWW.ARCO.CO.UK,49.43,"CLOTHING, UNIFORM AND LAUNDRY",INDUSTRIAL SUPPLIES NOT ELSEWHERE CLASSIFIED
24/10/2016,http://opendatacommunities.org/id/county-council/surrey,Surrey,http://id.esd.org.uk/service/1465,Council expenditure,30/06/2016,SUSTAINABILITY GROUP,TRAINLINE,133.62,EDUC VISITS/HOLS/CAMPS/TOYS,PASSENGER RAILWAYS
24/10/2016,http://opendatacommunities.org/id/county-council/surrey,Surrey,http://id.esd.org.uk/service/1465,Council expenditure,30/06/2016,BURBANK COMMUNITY HOME,WOKING BOROUGH COUNCIL,2.60,MISCELLANEOUS STAFF TRAVEL,AUTOMOBILE PARKING LOTS AND GARAGES
24/10/2016,http://opendatacommunities.org/id/county-council/surrey,Surrey,http://id.esd.org.uk/service/1465,Council expenditure,30/06/2016,SE LOOKED AFTER TEAM,PREMIER INN,85.99,3RD PARTY PAYMENTS PRIVATE INDIV,PREMIER INN
24/10/2016,http://opendatacommunities.org/id/county-council/surrey,Surrey,http://id.esd.org.uk/service/1465,Council expenditure,30/06/2016,KARIBU COMMUNITY HOME,BEAVER ARCHITECTURAL,33.54,EQUIPMENT,CONSTRUCTION MATERIALS NOT ELSEWHERE CLASSIFIED
24/10/2016,http://opendatacommunities.org/id/county-council/surrey,Surrey,http://id.esd.org.uk/service/1465,Council expenditure,30/06/2016,IMM EMER CARE RESP,SP SERVICES,"2,397.25",OPERATIONAL FIRE EQUIPMENT,DENTAL/LAB/MED/OPHTHALMIC HOSP EQUIP & SUPPLIES
24/10/2016,http://opendatacommunities.org/id/county-council/surrey,Surrey,http://id.esd.org.uk/service/1465,Council expenditure,30/06/2016,IMT PRODUCTION APPLICATIONS TEAM,AMSYS LTD,355.80,EQUIPMENT,BUSINESS SERVICES-NOT ELSEWHERE CLASSIFIED
24/10/2016,http://opendatacommunities.org/id/county-council/surrey,Surrey,http://id.esd.org.uk/service/1465,Council expenditure,30/06/2016,ACL CENTRAL EXPENDITURE,FACEBOOK ERVG79ACB2,42.46,PUBLICITY,ADVERTISING SERVICES
24/10/2016,http://opendatacommunities.org/id/county-council/surrey,Surrey,http://id.esd.org.uk/service/1465,Council expenditure,30/06/2016,LIBERTAS COMMUNITY HOME,0800 REPAIR,21.28,EQUIPMENT,ELECTRONIC REPAIR SHOPS
24/10/2016,http://opendatacommunities.org/id/county-council/surrey,Surrey,http://id.esd.org.uk/service/1465,Council expenditure,30/06/2016,LEACROFT YC,HOBBYCRAFT,25.50,EQUIPMENT,"ARTIST SUPPLY STORES, CRAFT SHOPS"
24/10/2016,http://opendatacommunities.org/id/county-council/surrey,Surrey,http://id.esd.org.uk/service/1465,Council expenditure,30/06/2016,IMT SUPPORT FOR FIRE & RESCUE,AMAZON EU,7.69,COMPUTER CONSUMABLES,DIRECT MARKETING-OTHER DIRECT MARKETERS/NOT ELSEW.
24/10/2016,http://opendatacommunities.org/id/county-council/surrey,Surrey,http://id.esd.org.uk/service/1465,Council expenditure,30/06/2016,IMPROVING OUTCOMES - EARLY SUPPORT,AMAZON EU,49.98,EQUIPMENT,DIRECT MARKETING-OTHER DIRECT MARKETERS/NOT ELSEW.
24/10/2016,http://opendatacommunities.org/id/county-council/surrey,Surrey,http://id.esd.org.uk/service/1465,Council expenditure,30/06/2016,E&I - LOVE FOOD HATE WASTE              ,GOOGLE  ADWS2060179426,500.00,PUBLICITY,DIRECT MARKETING-CONTINUITY/SUBSCRIPTION MERCHANTS
24/10/2016,http://opendatacommunities.org/id/county-council/surrey,Surrey,http://id.esd.org.uk/service/1465,Council expenditure,30/06/2016,TRANSPORT,MICHAEL'S WORKWEAR LTD,118.45,OPERATIONAL FIRE EQUIPMENT,MISCELLANEOUS AND SPECIALTY RETAIL STORES
24/10/2016,http://opendatacommunities.org/id/county-council/surrey,Surrey,http://id.esd.org.uk/service/1465,Council expenditure,30/06/2016,WOODLANDS COMMUNITY HOME,LONGACRES NURSERY,11.38,UPKEEP OF GROUNDS,LAWN AND GARDEN SUPPLY STORES
24/10/2016,http://opendatacommunities.org/id/county-council/surrey,Surrey,http://id.esd.org.uk/service/1465,Council expenditure,30/06/2016,TARGETED INTERVENTION,"BOOTS,GUILDFORD",11.03,EDUC VISITS/HOLS/CAMPS/TOYS,"DRUG STORES, PHARMACIES"
24/10/2016,http://opendatacommunities.org/id/county-council/surrey,Surrey,http://id.esd.org.uk/service/1465,Council expenditure,30/06/2016,RUTH HOUSE,ARGOS LTD,86.99,FURNITURE,DISCOUNT STORES
24/10/2016,http://opendatacommunities.org/id/county-council/surrey,Surrey,http://id.esd.org.uk/service/1465,Council expenditure,30/06/2016,HOPE SERVICE - EAST,TESCO STORES 6320,9.35,PURCHASE OF FOOD (RAW MATERIALS),"GROCERY STORES, SUPERMARKETS"
24/10/2016,http://opendatacommunities.org/id/county-council/surrey,Surrey,http://id.esd.org.uk/service/1465,Council expenditure,30/06/2016,CENTRAL COMMS - EARLY YEARS             ,FACEBOOK QQFW6AWFS2,100.00,PUBLICITY,ADVERTISING SERVICES
24/10/2016,http://opendatacommunities.org/id/county-council/surrey,Surrey,http://id.esd.org.uk/service/1465,Council expenditure,30/06/2016,DEPUTYSHIP TEAM,AMAZON UK MARKETPLACE,14.97,3RD PARTY PAYMENTS PRIVATE INDIV,BOOK STORES
24/10/2016,http://opendatacommunities.org/id/county-council/surrey,Surrey,http://id.esd.org.uk/service/1465,Council expenditure,30/06/2016,ACL CENTRAL EXPENDITURE,AMAZON UK MARKETPLACE,10.99,EQUIPMENT,BOOK STORES
24/10/2016,http://opendatacommunities.org/id/county-council/surrey,Surrey,http://id.esd.org.uk/service/1465,Council expenditure,30/06/2016,SYG 2015                                ,WWW.TROPHYSTORE.CO.UK,89.46,EQUIPMENT,"GIFT, CARD, NOVELTY AND SOUVENIR SHOPS"
24/10/2016,http://opendatacommunities.org/id/county-council/surrey,Surrey,http://id.esd.org.uk/service/1465,Council expenditure,30/06/2016,THE STREET YC,W M MORRISONS,14.60,PURCHASE OF FOOD (RAW MATERIALS),"GROCERY STORES, SUPERMARKETS"
24/10/2016,http://opendatacommunities.org/id/county-council/surrey,Surrey,http://id.esd.org.uk/service/1465,Council expenditure,30/06/2016,TRANSPORT,PREMIER VANGUARD L,680.40,OPERATIONAL FIRE EQUIPMENT,"OFFICE, SCHOOL SUPPLY, AND STATIONERY STORES"
24/10/2016,http://opendatacommunities.org/id/county-council/surrey,Surrey,http://id.esd.org.uk/service/1465,Council expenditure,30/06/2016,THE STREET YC,W M MORRISONS,25.00,EQUIPMENT,"GROCERY STORES, SUPERMARKETS"
24/10/2016,http://opendatacommunities.org/id/county-council/surrey,Surrey,http://id.esd.org.uk/service/1465,Council expenditure,30/06/2016,RUTH HOUSE,ASDA STORES 4823,57.50,EQUIPMENT,"GROCERY STORES, SUPERMARKETS"
24/10/2016,http://opendatacommunities.org/id/county-council/surrey,Surrey,http://id.esd.org.uk/service/1465,Council expenditure,30/06/2016,ACL CENTRAL EXPENDITURE,FACEBOOK MRVG79ACB2,52.24,PUBLICITY,ADVERTISING SERVICES
24/10/2016,http://opendatacommunities.org/id/county-council/surrey,Surrey,http://id.esd.org.uk/service/1465,Council expenditure,30/06/2016,ROW AREA4 RAB TAN                       ,FAIRALLS,84.65,EQUIPMENT,CONSTRUCTION MATERIALS NOT ELSEWHERE CLASSIFIED
24/10/2016,http://opendatacommunities.org/id/county-council/surrey,Surrey,http://id.esd.org.uk/service/1465,Council expenditure,30/06/2016,TRANSPORT,GEOGRAPHERS A-Z,90.67,OPERATIONAL FIRE EQUIPMENT,BOOK STORES
24/10/2016,http://opendatacommunities.org/id/county-council/surrey,Surrey,http://id.esd.org.uk/service/1465,Council expenditure,30/06/2016,CENTRAL COMMS - EARLY YEARS             ,FACEBOOK Q3R6G9NPD2,.88,PUBLICITY,ADVERTISING SERVICES
24/10/2016,http://opendatacommunities.org/id/county-council/surrey,Surrey,http://id.esd.org.uk/service/1465,Council expenditure,30/06/2016,E&I - LOVE FOOD HATE WASTE              ,FACEBOOK NPH46AEAK2,332.36,PUBLICITY,ADVERTISING SERVICES
24/10/2016,http://opendatacommunities.org/id/county-council/surrey,Surrey,http://id.esd.org.uk/service/1465,Council expenditure,30/06/2016,ASHTEAD YC,COSTA COFFEE,6.40,REFRESHMENT COSTS,"EATING PLACES, RESTAURANTS"
24/10/2016,http://opendatacommunities.org/id/county-council/surrey,Surrey,http://id.esd.org.uk/service/1465,Council expenditure,30/06/2016,TRANSPORT,AMAZON UK MARKETPLACE,33.98,COMPUTER HARDWARE,BOOK STORES
24/10/2016,http://opendatacommunities.org/id/county-council/surrey,Surrey,http://id.esd.org.uk/service/1465,Council expenditure,30/06/2016,NE EDUCATION PSYCHOLOGISTS,NAS UK,23.15,BOOKS,"ORGANIZATIONS, CHARITABLE AND SOCIAL SERVICES"
24/10/2016,http://opendatacommunities.org/id/county-council/surrey,Surrey,http://id.esd.org.uk/service/1465,Council expenditure,30/06/2016,HOPE SERVICE - EAST,TESCO STORES 6320,1.70,PURCHASE OF FOOD (RAW MATERIALS),"GROCERY STORES, SUPERMARKETS"
24/10/2016,http://opendatacommunities.org/id/county-council/surrey,Surrey,http://id.esd.org.uk/service/1465,Council expenditure,30/06/2016,HILLSIDE,TESCO STORE 3149,56.38,PURCHASE OF FOOD (RAW MATERIALS),"GROCERY STORES, SUPERMARKETS"
24/10/2016,http://opendatacommunities.org/id/county-council/surrey,Surrey,http://id.esd.org.uk/service/1465,Council expenditure,30/06/2016,IMT SUPPORT FOR FIRE & RESCUE,AMAZON UK MARKETPLACE,12.12,COMPUTER CONSUMABLES,BOOK STORES
24/10/2016,http://opendatacommunities.org/id/county-council/surrey,Surrey,http://id.esd.org.uk/service/1465,Council expenditure,30/06/2016,CHEYNE WALK COMMUNITY HOME,THE WORKS,4.00,EDUC VISITS/HOLS/CAMPS/TOYS,DISCOUNT STORES
24/10/2016,http://opendatacommunities.org/id/county-council/surrey,Surrey,http://id.esd.org.uk/service/1465,Council expenditure,30/06/2016,TARGETED INTERVENTION,CREAMS,8.95,EDUC VISITS/HOLS/CAMPS/TOYS,"EATING PLACES, RESTAURANTS"
24/10/2016,http://opendatacommunities.org/id/county-council/surrey,Surrey,http://id.esd.org.uk/service/1465,Council expenditure,30/06/2016,RUTH HOUSE,B & Q 1029,53.77,EQUIPMENT,"BUILDING MATERIALS, LUMBER STORES"
24/10/2016,http://opendatacommunities.org/id/county-council/surrey,Surrey,http://id.esd.org.uk/service/1465,Council expenditure,30/06/2016,LIBERTAS COMMUNITY HOME,VODAFONE LTD,25.00,TELECOMMUNICATION CHARGES,TELECOM INCL PREPAID/RECURRING PHONE SVCS
24/10/2016,http://opendatacommunities.org/id/county-council/surrey,Surrey,http://id.esd.org.uk/service/1465,Council expenditure,30/06/2016,SHEPPERTON YC,CO-OP GROUP 070762,4.24,REFRESHMENT COSTS,"GROCERY STORES, SUPERMARKETS"
24/10/2016,http://opendatacommunities.org/id/county-council/surrey,Surrey,http://id.esd.org.uk/service/1465,Council expenditure,30/06/2016,SURREY HILLS AONB,TESCO STORES 2675,9.15,REFRESHMENT COSTS,"GROCERY STORES, SUPERMARKETS"
24/10/2016,http://opendatacommunities.org/id/county-council/surrey,Surrey,http://id.esd.org.uk/service/1465,Council expenditure,30/06/2016,SHEPPERTON YC,BUDGENS SHEPPERTON,8.75,EQUIPMENT,"MISC FOOD STORE-CONVENIENCE,MRKT,SPLTY,VENDNG MACS"
24/10/2016,http://opendatacommunities.org/id/county-council/surrey,Surrey,http://id.esd.org.uk/service/1465,Council expenditure,30/06/2016,PROPERTY OPERATIONS TEAM,SCREWFIX GUILDFORD,40.78,PURCHASE OF BUILDING MATERIALS,"BUILDING MATERIALS, LUMBER STORES"
24/10/2016,http://opendatacommunities.org/id/county-council/surrey,Surrey,http://id.esd.org.uk/service/1465,Council expenditure,30/06/2016,DRAMA WARDROBE,AMAZON EU,154.74,EQUIPMENT,DIRECT MARKETING-OTHER DIRECT MARKETERS/NOT ELSEW.
24/10/2016,http://opendatacommunities.org/id/county-council/surrey,Surrey,http://id.esd.org.uk/service/1465,Council expenditure,30/06/2016,ISPSB - ADAPTATIONS & IMPROVEMENTS,PAYPAL  NRS HEALTH,51.86,EQUIPMENT,DENTAL/LAB/MED/OPHTHALMIC HOSP EQUIP & SUPPLIES
24/10/2016,http://opendatacommunities.org/id/county-council/surrey,Surrey,http://id.esd.org.uk/service/1465,Council expenditure,30/06/2016,BUSINESS SUPPORT & CUSTOMER SERVICE TEAM,WWW.TENNANTSUK.COM,108.07,EQUIPMENT,INDUSTRIAL SUPPLIES NOT ELSEWHERE CLASSIFIED
24/10/2016,http://opendatacommunities.org/id/county-council/surrey,Surrey,http://id.esd.org.uk/service/1465,Council expenditure,30/06/2016,BURBANK COMMUNITY HOME,ED'S EASY DINER,38.05,REFRESHMENT COSTS,"EATING PLACES, RESTAURANTS"
24/10/2016,http://opendatacommunities.org/id/county-council/surrey,Surrey,http://id.esd.org.uk/service/1465,Council expenditure,30/06/2016,BURBANK COMMUNITY HOME,CAR PARKS SPH,3.20,EDUC VISITS/HOLS/CAMPS/TOYS,GOVERNMENT SERVICES-NOT ELSEWHERE CLASSIFIED
24/10/2016,http://opendatacommunities.org/id/county-council/surrey,Surrey,http://id.esd.org.uk/service/1465,Council expenditure,30/06/2016,NORTH EAST AREA TEAM,SAINSBURYS 0675,1.60,EDUC VISITS/HOLS/CAMPS/TOYS,"GROCERY STORES, SUPERMARKETS"
24/10/2016,http://opendatacommunities.org/id/county-council/surrey,Surrey,http://id.esd.org.uk/service/1465,Council expenditure,30/06/2016,RBDM - GENERAL,AMAZON UK MARKETPLACE,78.95,EQUIPMENT,BOOK STORES
24/10/2016,http://opendatacommunities.org/id/county-council/surrey,Surrey,http://id.esd.org.uk/service/1465,Council expenditure,30/06/2016,SHEPPERTON YC,CO-OP GROUP 070762,.89,EQUIPMENT,"GROCERY STORES, SUPERMARKETS"
24/10/2016,http://opendatacommunities.org/id/county-council/surrey,Surrey,http://id.esd.org.uk/service/1465,Council expenditure,30/06/2016,LOWER MOLE COUNTRYSIDE PROJECT,SAINSBURYS 0683,99.05,REFRESHMENT COSTS,"GROCERY STORES, SUPERMARKETS"
24/10/2016,http://opendatacommunities.org/id/county-council/surrey,Surrey,http://id.esd.org.uk/service/1465,Council expenditure,30/06/2016,IMT CRITICAL ENVIRONMENTS,AMAZON EU,61.73,E25 CATERING EQUIPMENT,DIRECT MARKETING-OTHER DIRECT MARKETERS/NOT ELSEW.
24/10/2016,http://opendatacommunities.org/id/county-council/surrey,Surrey,http://id.esd.org.uk/service/1465,Council expenditure,30/06/2016,TARGETED INTERVENTION,FREEDOM LEISURE,21.80,EDUC VISITS/HOLS/CAMPS/TOYS,GOVERNMENT SERVICES-NOT ELSEWHERE CLASSIFIED
24/10/2016,http://opendatacommunities.org/id/county-council/surrey,Surrey,http://id.esd.org.uk/service/1465,Council expenditure,30/06/2016,THE BRIDGE YC,TESCO STORES 5371,4.55,PURCHASE OF FOOD (RAW MATERIALS),"GROCERY STORES, SUPERMARKETS"
24/10/2016,http://opendatacommunities.org/id/county-council/surrey,Surrey,http://id.esd.org.uk/service/1465,Council expenditure,30/06/2016,HARRY'S YC,W M MORRISONS,14.61,PURCHASE OF FOOD (RAW MATERIALS),"GROCERY STORES, SUPERMARKETS"
24/10/2016,http://opendatacommunities.org/id/county-council/surrey,Surrey,http://id.esd.org.uk/service/1465,Council expenditure,30/06/2016,HOPE SERVICE - WEST,SAINSBURYS SACAT(4409),3.70,PURCHASE OF FOOD (RAW MATERIALS),"GROCERY STORES, SUPERMARKETS"
24/10/2016,http://opendatacommunities.org/id/county-council/surrey,Surrey,http://id.esd.org.uk/service/1465,Council expenditure,30/06/2016,LOWER MOLE COUNTRYSIDE PROJECT,SAINSBURYS 0683,3.00,REFRESHMENT COSTS,"GROCERY STORES, SUPERMARKETS"
24/10/2016,http://opendatacommunities.org/id/county-council/surrey,Surrey,http://id.esd.org.uk/service/1465,Council expenditure,30/06/2016,PERFORMING ARTS LIBRARY,HAMPSHIRE COUNTY COUNC,300.00,SUBSCRIPTIONS,GOVERNMENT SERVICES-NOT ELSEWHERE CLASSIFIED
24/10/2016,http://opendatacommunities.org/id/county-council/surrey,Surrey,http://id.esd.org.uk/service/1465,Council expenditure,30/06/2016,SHEPPERTON YC,BUDGENS SHEPPERTON,2.00,REFRESHMENT COSTS,"MISC FOOD STORE-CONVENIENCE,MRKT,SPLTY,VENDNG MACS"
24/10/2016,http://opendatacommunities.org/id/county-council/surrey,Surrey,http://id.esd.org.uk/service/1465,Council expenditure,30/06/2016,THE STREET YC,W M MORRISONS,8.85,EQUIPMENT,"GROCERY STORES, SUPERMARKETS"
24/10/2016,http://opendatacommunities.org/id/county-council/surrey,Surrey,http://id.esd.org.uk/service/1465,Council expenditure,30/06/2016,BURBANK COMMUNITY HOME,WH SMITH TRAVEL,1.74,REFRESHMENT COSTS,NEWS DEALERS AND NEWSSTANDS
24/10/2016,http://opendatacommunities.org/id/county-council/surrey,Surrey,http://id.esd.org.uk/service/1465,Council expenditure,30/06/2016,WOODLANDS COMMUNITY HOME,DIAMOND DRY CLEANING C,23.99,EQUIPMENT,DRY CLEANERS
24/10/2016,http://opendatacommunities.org/id/county-council/surrey,Surrey,http://id.esd.org.uk/service/1465,Council expenditure,30/06/2016,RUTH HOUSE,ASDA 4387,168.95,EQUIPMENT,"GROCERY STORES, SUPERMARKETS"
24/10/2016,http://opendatacommunities.org/id/county-council/surrey,Surrey,http://id.esd.org.uk/service/1465,Council expenditure,30/06/2016,THE EDGE YC,SAINSBURYS 0652,19.50,PURCHASE OF FOOD (RAW MATERIALS),"GROCERY STORES, SUPERMARKETS"
24/10/2016,http://opendatacommunities.org/id/county-council/surrey,Surrey,http://id.esd.org.uk/service/1465,Council expenditure,30/06/2016,NW CARE - NON-LAC CP & COURT,TRAVELODGE,456.00,CHILDREN ACT SEC 17 PAYMENTS,TRAVELODGE
24/10/2016,http://opendatacommunities.org/id/county-council/surrey,Surrey,http://id.esd.org.uk/service/1465,Council expenditure,30/06/2016,CAMHS SOCIAL WORKERS,MILANO PIZZA,31.86,REFRESHMENT COSTS,"GROCERY STORES, SUPERMARKETS"
24/10/2016,http://opendatacommunities.org/id/county-council/surrey,Surrey,http://id.esd.org.uk/service/1465,Council expenditure,30/06/2016,TARGETED INTERVENTION,STARBUCKS,10.05,EDUC VISITS/HOLS/CAMPS/TOYS,FAST FOOD RESTAURANTS
24/10/2016,http://opendatacommunities.org/id/county-council/surrey,Surrey,http://id.esd.org.uk/service/1465,Council expenditure,30/06/2016,HEAD OF C&D &PA,MARKS&SPENCER PLC,51.45,REFRESHMENT COSTS,"GROCERY STORES, SUPERMARKETS"
24/10/2016,http://opendatacommunities.org/id/county-council/surrey,Surrey,http://id.esd.org.uk/service/1465,Council expenditure,30/06/2016,WOODLANDS COMMUNITY HOME,HILLIER GARDEN CENTRE,52.76,EQUIPMENT,LAWN AND GARDEN SUPPLY STORES
24/10/2016,http://opendatacommunities.org/id/county-council/surrey,Surrey,http://id.esd.org.uk/service/1465,Council expenditure,30/06/2016,NW EDUCATION PSYCHOLOGISTS,AMAZON UK MARKETPLACE,27.44,EQUIPMENT,BOOK STORES
24/10/2016,http://opendatacommunities.org/id/county-council/surrey,Surrey,http://id.esd.org.uk/service/1465,Council expenditure,30/06/2016,CORE ACTIVITY                           ,WWWTHESSEORG,130.00,TRAINING EXPENSES EXTERNAL GENERAL,"ORGANIZATIONS, CHARITABLE AND SOCIAL SERVICES"
24/10/2016,http://opendatacommunities.org/id/county-council/surrey,Surrey,http://id.esd.org.uk/service/1465,Council expenditure,30/06/2016,ARUNDEL,TESCO STORES 5999,52.76,REFRESHMENT COSTS,"GROCERY STORES, SUPERMARKETS"
24/10/2016,http://opendatacommunities.org/id/county-council/surrey,Surrey,http://id.esd.org.uk/service/1465,Council expenditure,01/07/2016,BURBANK COMMUNITY HOME,MCDONALDS,10.45,REFRESHMENT COSTS,FAST FOOD RESTAURANTS
24/10/2016,http://opendatacommunities.org/id/county-council/surrey,Surrey,http://id.esd.org.uk/service/1465,Council expenditure,01/07/2016,PE/CDT MAINTENANCE OVERHEADS,FORMECH,110.04,ITEMS PURCHASED FOR RE-SALE,INDUSTRIAL SUPPLIES NOT ELSEWHERE CLASSIFIED
24/10/2016,http://opendatacommunities.org/id/county-council/surrey,Surrey,http://id.esd.org.uk/service/1465,Council expenditure,01/07/2016,YSS YOUTH CENTRE IMPROVEMENTS,AMAZON EU,18.05,CLEANING AND DOMESTIC SUPPLIES,DIRECT MARKETING-OTHER DIRECT MARKETERS/NOT ELSEW.
24/10/2016,http://opendatacommunities.org/id/county-council/surrey,Surrey,http://id.esd.org.uk/service/1465,Council expenditure,01/07/2016,WOKING LIBRARY,AMAZON UK MARKETPLACE,47.84,EQUIPMENT,BOOK STORES
24/10/2016,http://opendatacommunities.org/id/county-council/surrey,Surrey,http://id.esd.org.uk/service/1465,Council expenditure,01/07/2016,LIBERTAS COMMUNITY HOME,SAINSBURYS SACAT 0652,12.75,LIBRARY RESOURCES,"GROCERY STORES, SUPERMARKETS"
24/10/2016,http://opendatacommunities.org/id/county-council/surrey,Surrey,http://id.esd.org.uk/service/1465,Council expenditure,01/07/2016,WOODLANDS COMMUNITY HOME,SAINSBURYS 0686,48.08,PURCHASE OF FOOD (RAW MATERIALS),"GROCERY STORES, SUPERMARKETS"
24/10/2016,http://opendatacommunities.org/id/county-council/surrey,Surrey,http://id.esd.org.uk/service/1465,Council expenditure,01/07/2016,WOODLANDS COMMUNITY HOME,SAINSBURYS 0686,6.80,PURCHASE OF FOOD (RAW MATERIALS),"GROCERY STORES, SUPERMARKETS"
24/10/2016,http://opendatacommunities.org/id/county-council/surrey,Surrey,http://id.esd.org.uk/service/1465,Council expenditure,01/07/2016,WOODLANDS COMMUNITY HOME,SAINSBURYS 0686,2.48,3RD PARTY PAYMENTS PRIVATE INDIV,"GROCERY STORES, SUPERMARKETS"
24/10/2016,http://opendatacommunities.org/id/county-council/surrey,Surrey,http://id.esd.org.uk/service/1465,Council expenditure,01/07/2016,BURBANK COMMUNITY HOME,WWW.UKFLAIR.COM,53.96,EDUC VISITS/HOLS/CAMPS/TOYS,"SPORTS APPAREL, RIDING APPAREL STORES"
24/10/2016,http://opendatacommunities.org/id/county-council/surrey,Surrey,http://id.esd.org.uk/service/1465,Council expenditure,01/07/2016,ACCESS 2 EDUCATION NE NON-MEDICAL,SURREY CC CARD PAY,50.00,EQUIPMENT,COMPUTER NETWORK/INFORMATION SERVICES
24/10/2016,http://opendatacommunities.org/id/county-council/surrey,Surrey,http://id.esd.org.uk/service/1465,Council expenditure,01/07/2016,READY FOR WORK YSS,CITB,30.00,EQUIPMENT,"COLLEGES, UNIV, PRO SCHOOLS, JUNIOR COLLEGES"
24/10/2016,http://opendatacommunities.org/id/county-council/surrey,Surrey,http://id.esd.org.uk/service/1465,Council expenditure,01/07/2016,EXTENDED HOPE,SAINSBURYS 0652,260.00,PURCHASE OF FOOD (RAW MATERIALS),"GROCERY STORES, SUPERMARKETS"
24/10/2016,http://opendatacommunities.org/id/county-council/surrey,Surrey,http://id.esd.org.uk/service/1465,Council expenditure,01/07/2016,TRANSPORT,D & R ENGINEERING,75.49,VEHICLE REPAIRS AND MAINTENANCE,BOAT DEALERS
24/10/2016,http://opendatacommunities.org/id/county-council/surrey,Surrey,http://id.esd.org.uk/service/1465,Council expenditure,01/07/2016,TARGETED INTERVENTION,VUE BSL-ATM,18.28,EDUC VISITS/HOLS/CAMPS/TOYS,MOTION PICTURE THEATERS
24/10/2016,http://opendatacommunities.org/id/county-council/surrey,Surrey,http://id.esd.org.uk/service/1465,Council expenditure,01/07/2016,ISPSB - ADAPTATIONS & IMPROVEMENTS,AMAZON UK MARKETPLACE,49.70,EDUC VISITS/HOLS/CAMPS/TOYS,BOOK STORES
24/10/2016,http://opendatacommunities.org/id/county-council/surrey,Surrey,http://id.esd.org.uk/service/1465,Council expenditure,01/07/2016,LAC INITIATIVES,SAINSBURYS 0675,25.00,EDUC VISITS/HOLS/CAMPS/TOYS,"GROCERY STORES, SUPERMARKETS"
24/10/2016,http://opendatacommunities.org/id/county-council/surrey,Surrey,http://id.esd.org.uk/service/1465,Council expenditure,01/07/2016,IMT SUPPORT FOR FIRE & RESCUE,ASHBURY,27.00,TELECOMMUNICATION CHARGES,TELECOMMUNICATION EQUIPMENT INCL TELEPHONE SALES
24/10/2016,http://opendatacommunities.org/id/county-council/surrey,Surrey,http://id.esd.org.uk/service/1465,Council expenditure,01/07/2016,TARGETED INTERVENTION,THE ATRIUM CAMBERLEY,1.80,EDUC VISITS/HOLS/CAMPS/TOYS,PROFESSIONAL SERVICES-NOT ELSEWHERE CLASSIFIED
24/10/2016,http://opendatacommunities.org/id/county-council/surrey,Surrey,http://id.esd.org.uk/service/1465,Council expenditure,01/07/2016,TRANSPORT,AMAZON EU,70.17,FURNITURE,DIRECT MARKETING-OTHER DIRECT MARKETERS/NOT ELSEW.
24/10/2016,http://opendatacommunities.org/id/county-council/surrey,Surrey,http://id.esd.org.uk/service/1465,Council expenditure,01/07/2016,COTTAGE 6 SMARTS HEATH MAYFORD,WWW.JOHNLEWIS.COM,398.00,EQUIPMENT,DEPARTMENT STORES
24/10/2016,http://opendatacommunities.org/id/county-council/surrey,Surrey,http://id.esd.org.uk/service/1465,Council expenditure,01/07/2016,PORTAGE SERVICE (SE),AMAZON UK MARKETPLACE,2.56,EQUIPMENT,BOOK STORES
24/10/2016,http://opendatacommunities.org/id/county-council/surrey,Surrey,http://id.esd.org.uk/service/1465,Council expenditure,01/07/2016,PORTAGE SERVICE (SE),AMAZON UK MARKETPLACE,15.79,EQUIPMENT,BOOK STORES
24/10/2016,http://opendatacommunities.org/id/county-council/surrey,Surrey,http://id.esd.org.uk/service/1465,Council expenditure,01/07/2016,FAIRCROFT COMMUNITY HOME,SAINSBURYS 0687,5.00,PURCHASE OF FOOD (RAW MATERIALS),"GROCERY STORES, SUPERMARKETS"
24/10/2016,http://opendatacommunities.org/id/county-council/surrey,Surrey,http://id.esd.org.uk/service/1465,Council expenditure,01/07/2016,INVESTIGATIONS & ENFORCEMENT TEAM       ,TRADING STANDARDS INST,25.00,SUBSCRIPTIONS,DIRECT MARKETING-COMBINATION CATALOG/RETAIL MERCH.
24/10/2016,http://opendatacommunities.org/id/county-council/surrey,Surrey,http://id.esd.org.uk/service/1465,Council expenditure,01/07/2016,SW CARE - LAC,REGISTER OFFICE,62.00,LEGAL EXPENSES,GOVERNMENT SERVICES-NOT ELSEWHERE CLASSIFIED
24/10/2016,http://opendatacommunities.org/id/county-council/surrey,Surrey,http://id.esd.org.uk/service/1465,Council expenditure,01/07/2016,HILLSIDE,TESCO STORE 3149,8.22,PURCHASE OF FOOD (RAW MATERIALS),"GROCERY STORES, SUPERMARKETS"
24/10/2016,http://opendatacommunities.org/id/county-council/surrey,Surrey,http://id.esd.org.uk/service/1465,Council expenditure,01/07/2016,PORTAGE SERVICE (SE),AMAZON UK MARKETPLACE,3.82,EQUIPMENT,BOOK STORES
24/10/2016,http://opendatacommunities.org/id/county-council/surrey,Surrey,http://id.esd.org.uk/service/1465,Council expenditure,01/07/2016,"NE REF, ASS & INT SERVICE - HUB 2",UKBA4659211354,199.00,FEES,GOVERNMENT SERVICES-NOT ELSEWHERE CLASSIFIED
24/10/2016,http://opendatacommunities.org/id/county-council/surrey,Surrey,http://id.esd.org.uk/service/1465,Council expenditure,01/07/2016,HOPE SERVICE - WEST,SAINSBURYS LOC 4409,8.25,PURCHASE OF FOOD (RAW MATERIALS),"GROCERY STORES, SUPERMARKETS"
24/10/2016,http://opendatacommunities.org/id/county-council/surrey,Surrey,http://id.esd.org.uk/service/1465,Council expenditure,01/07/2016,PORTAGE SERVICE (SE),AMAZON UK MARKETPLACE,7.14,EQUIPMENT,BOOK STORES
24/10/2016,http://opendatacommunities.org/id/county-council/surrey,Surrey,http://id.esd.org.uk/service/1465,Council expenditure,01/07/2016,LIBERTAS COMMUNITY HOME,SAINSBURYS 0652,9.95,PURCHASE OF FOOD (RAW MATERIALS),"GROCERY STORES, SUPERMARKETS"
24/10/2016,http://opendatacommunities.org/id/county-council/surrey,Surrey,http://id.esd.org.uk/service/1465,Council expenditure,01/07/2016,LIBERTAS COMMUNITY HOME,SAINSBURYS 0652,153.09,PURCHASE OF FOOD (RAW MATERIALS),"GROCERY STORES, SUPERMARKETS"
24/10/2016,http://opendatacommunities.org/id/county-council/surrey,Surrey,http://id.esd.org.uk/service/1465,Council expenditure,01/07/2016,LIBERTAS COMMUNITY HOME,SAINSBURYS 0652,4.75,EQUIPMENT,"GROCERY STORES, SUPERMARKETS"
24/10/2016,http://opendatacommunities.org/id/county-council/surrey,Surrey,http://id.esd.org.uk/service/1465,Council expenditure,01/07/2016,LAC INITIATIVES,SAINSBURYS SACAT 0675,30.70,CURRICULUM CONSUMABLES,"GROCERY STORES, SUPERMARKETS"
24/10/2016,http://opendatacommunities.org/id/county-council/surrey,Surrey,http://id.esd.org.uk/service/1465,Council expenditure,01/07/2016,RUTH HOUSE,SAINSBURYS TO YOU 0686,10.50,PURCHASE OF FOOD (RAW MATERIALS),"GROCERY STORES, SUPERMARKETS"
24/10/2016,http://opendatacommunities.org/id/county-council/surrey,Surrey,http://id.esd.org.uk/service/1465,Council expenditure,01/07/2016,RUTH HOUSE,SAINSBURYS TO YOU 0686,125.70,PURCHASE OF FOOD (RAW MATERIALS),"GROCERY STORES, SUPERMARKETS"
24/10/2016,http://opendatacommunities.org/id/county-council/surrey,Surrey,http://id.esd.org.uk/service/1465,Council expenditure,01/07/2016,ACCESS 2 EDUCATION NW NON-MEDICAL,AMAZON UK MARKETPLACE,44.97,BOOKS,BOOK STORES
24/10/2016,http://opendatacommunities.org/id/county-council/surrey,Surrey,http://id.esd.org.uk/service/1465,Council expenditure,01/07/2016,ACCESS 2 EDUCATION NE NON-MEDICAL,AMAZON UK MARKETPLACE,32.98,EQUIPMENT,BOOK STORES
24/10/2016,http://opendatacommunities.org/id/county-council/surrey,Surrey,http://id.esd.org.uk/service/1465,Council expenditure,01/07/2016,ACCESS 2 EDUCATION NW NON-MEDICAL,AMAZON UK MARKETPLACE,3.00,BOOKS,BOOK STORES
24/10/2016,http://opendatacommunities.org/id/county-council/surrey,Surrey,http://id.esd.org.uk/service/1465,Council expenditure,01/07/2016,BURBANK COMMUNITY HOME,B & Q 1029,68.20,DAY TO DAY MAINTENANCE,"BUILDING MATERIALS, LUMBER STORES"
24/10/2016,http://opendatacommunities.org/id/county-council/surrey,Surrey,http://id.esd.org.uk/service/1465,Council expenditure,01/07/2016,SW CARE - LAC,WWW.BHCC-INTERNET,42.00,LEGAL EXPENSES,GOVERNMENT SERVICES-NOT ELSEWHERE CLASSIFIED
24/10/2016,http://opendatacommunities.org/id/county-council/surrey,Surrey,http://id.esd.org.uk/service/1465,Council expenditure,01/07/2016,CHILDREN'S RIGHTS TEAM,SAINSBURYS 0652,43.18,REFRESHMENT COSTS,"GROCERY STORES, SUPERMARKETS"
24/10/2016,http://opendatacommunities.org/id/county-council/surrey,Surrey,http://id.esd.org.uk/service/1465,Council expenditure,01/07/2016,COUNTY HALL,JCM LOCKSMITHS LTD,252.00,DAY TO DAY MAINTENANCE,HARDWARE STORES
24/10/2016,http://opendatacommunities.org/id/county-council/surrey,Surrey,http://id.esd.org.uk/service/1465,Council expenditure,01/07/2016,IMT SUPPORT FOR FIRE & RESCUE,ASHBURY,81.00,TELECOMMUNICATION CHARGES,TELECOMMUNICATION EQUIPMENT INCL TELEPHONE SALES
24/10/2016,http://opendatacommunities.org/id/county-council/surrey,Surrey,http://id.esd.org.uk/service/1465,Council expenditure,01/07/2016,FAIRCROFT COMMUNITY HOME,SAINSBURYS SACAT 0687,5.00,EQUIPMENT,"GROCERY STORES, SUPERMARKETS"
24/10/2016,http://opendatacommunities.org/id/county-council/surrey,Surrey,http://id.esd.org.uk/service/1465,Council expenditure,01/07/2016,CHEYNE WALK COMMUNITY HOME,TESCO STORES 2560,9.05,MEDICAL EXPENSES,"GROCERY STORES, SUPERMARKETS"
24/10/2016,http://opendatacommunities.org/id/county-council/surrey,Surrey,http://id.esd.org.uk/service/1465,Council expenditure,01/07/2016,COMMUNICATIONS TEAM,ITUNES.COM/BILL,14.98,SUBSCRIPTIONS,RECORD SHOPS
24/10/2016,http://opendatacommunities.org/id/county-council/surrey,Surrey,http://id.esd.org.uk/service/1465,Council expenditure,01/07/2016,TRANSPORT,SELCO TRADE CTR EFT S0,72.89,DAY TO DAY MAINTENANCE,"BUILDING MATERIALS, LUMBER STORES"
24/10/2016,http://opendatacommunities.org/id/county-council/surrey,Surrey,http://id.esd.org.uk/service/1465,Council expenditure,01/07/2016,TRANSPORT,PAYPAL  HDTECKNOLOG,81.00,FIXTURES AND FITTINGS,CAMERA AND PHOTOGRAPHIC SUPPLY STORES
24/10/2016,http://opendatacommunities.org/id/county-council/surrey,Surrey,http://id.esd.org.uk/service/1465,Council expenditure,01/07/2016,DEPUTYSHIP TEAM,SOUTHERN ELECTRIC,68.94,3RD PARTY PAYMENTS PRIVATE INDIV,"UTLTS-ELCTRC, GAS, HEATING OIL, SANITARY, WATER"
24/10/2016,http://opendatacommunities.org/id/county-council/surrey,Surrey,http://id.esd.org.uk/service/1465,Council expenditure,01/07/2016,CHEYNE WALK COMMUNITY HOME,TESCO STORES 2560,10.59,PURCHASE OF FOOD (RAW MATERIALS),"GROCERY STORES, SUPERMARKETS"
24/10/2016,http://opendatacommunities.org/id/county-council/surrey,Surrey,http://id.esd.org.uk/service/1465,Council expenditure,01/07/2016,ARUNDEL,TESCO STORES 5999,126.29,REFRESHMENT COSTS,"GROCERY STORES, SUPERMARKETS"
24/10/2016,http://opendatacommunities.org/id/county-council/surrey,Surrey,http://id.esd.org.uk/service/1465,Council expenditure,01/07/2016,ARUNDEL,TESCO STORES 5999,12.00,REFRESHMENT COSTS,"GROCERY STORES, SUPERMARKETS"
24/10/2016,http://opendatacommunities.org/id/county-council/surrey,Surrey,http://id.esd.org.uk/service/1465,Council expenditure,01/07/2016,HILLSIDE,TESCO STORE 3149,16.05,PURCHASE OF FOOD (RAW MATERIALS),"GROCERY STORES, SUPERMARKETS"
24/10/2016,http://opendatacommunities.org/id/county-council/surrey,Surrey,http://id.esd.org.uk/service/1465,Council expenditure,01/07/2016,TRANSPORT,CURRYS,44.99,COMPUTER HARDWARE,ELECTRONIC SALES
24/10/2016,http://opendatacommunities.org/id/county-council/surrey,Surrey,http://id.esd.org.uk/service/1465,Council expenditure,01/07/2016,NE CARE - LAC,IPS DURHAM CONTACT CTR,46.00,FEES,GOVERNMENT SERVICES-NOT ELSEWHERE CLASSIFIED
24/10/2016,http://opendatacommunities.org/id/county-council/surrey,Surrey,http://id.esd.org.uk/service/1465,Council expenditure,01/07/2016,SHEERWATER YC,ASDA STORES 4823,13.98,PURCHASE OF FOOD (RAW MATERIALS),"GROCERY STORES, SUPERMARKETS"
24/10/2016,http://opendatacommunities.org/id/county-council/surrey,Surrey,http://id.esd.org.uk/service/1465,Council expenditure,01/07/2016,HOLLAND CLOSE RESIDENTIAL HOME,KINDLE UNLIMITED,7.99,SUBSCRIPTIONS,RECORD SHOPS
24/10/2016,http://opendatacommunities.org/id/county-council/surrey,Surrey,http://id.esd.org.uk/service/1465,Council expenditure,01/07/2016,CORE ACTIVITY                           ,SURREY CC CARD PAY,60.00,TRAINING EXPENSES EXTERNAL GENERAL,COMPUTER NETWORK/INFORMATION SERVICES
24/10/2016,http://opendatacommunities.org/id/county-council/surrey,Surrey,http://id.esd.org.uk/service/1465,Council expenditure,01/07/2016,NE EDUCATION PSYCHOLOGISTS,AMAZON EU,162.00,BOOKS,DIRECT MARKETING-OTHER DIRECT MARKETERS/NOT ELSEW.
24/10/2016,http://opendatacommunities.org/id/county-council/surrey,Surrey,http://id.esd.org.uk/service/1465,Council expenditure,01/07/2016,ISPSB - ADAPTATIONS & IMPROVEMENTS,AMAZON UK MARKETPLACE,59.00,EDUC VISITS/HOLS/CAMPS/TOYS,BOOK STORES
24/10/2016,http://opendatacommunities.org/id/county-council/surrey,Surrey,http://id.esd.org.uk/service/1465,Council expenditure,01/07/2016,FIRE & RESCUE COMMUNITY SAFETY,KAISER+KRAFT LTD.,60.48,OPERATIONAL FIRE EQUIPMENT,"COMMERCIAL EQUIPMENT, NOT ELSEWHERE CLASSIFIED"
24/10/2016,http://opendatacommunities.org/id/county-council/surrey,Surrey,http://id.esd.org.uk/service/1465,Council expenditure,01/07/2016,ACL CENTRAL EXPENDITURE,AMAZON EU,-114.74,EQUIPMENT,DIRECT MARKETING-OTHER DIRECT MARKETERS/NOT ELSEW.
24/10/2016,http://opendatacommunities.org/id/county-council/surrey,Surrey,http://id.esd.org.uk/service/1465,Council expenditure,01/07/2016,HILLSIDE,SAINSBURYS 0675,56.95,PURCHASE OF FOOD (RAW MATERIALS),"GROCERY STORES, SUPERMARKETS"
24/10/2016,http://opendatacommunities.org/id/county-council/surrey,Surrey,http://id.esd.org.uk/service/1465,Council expenditure,01/07/2016,PROPERTY OPERATIONS TEAM,HOMEBASE LTD 290,32.99,PURCHASE OF BUILDING MATERIALS,"BUILDING MATERIALS, LUMBER STORES"
24/10/2016,http://opendatacommunities.org/id/county-council/surrey,Surrey,http://id.esd.org.uk/service/1465,Council expenditure,01/07/2016,BURBANK COMMUNITY HOME,THE WEYMOUTH SWEET SHO,10.70,REFRESHMENT COSTS,"CANDY, NUT, CONFECTIONERY STORES"
24/10/2016,http://opendatacommunities.org/id/county-council/surrey,Surrey,http://id.esd.org.uk/service/1465,Council expenditure,01/07/2016,PROPERTY OPERATIONS TEAM,HOMEBASE LTD 067,65.64,PURCHASE OF BUILDING MATERIALS,"BUILDING MATERIALS, LUMBER STORES"
24/10/2016,http://opendatacommunities.org/id/county-council/surrey,Surrey,http://id.esd.org.uk/service/1465,Council expenditure,01/07/2016,ROW VOLUNTEERS EAST                     ,AMAZON PRIME,79.00,EQUIPMENT,DIRECT MARKETING-CONTINUITY/SUBSCRIPTION MERCHANTS
24/10/2016,http://opendatacommunities.org/id/county-council/surrey,Surrey,http://id.esd.org.uk/service/1465,Council expenditure,01/07/2016,SW CARE - NON-LAC CP & COURT,GRO HM PASSPORT OFFICE,9.25,OTHER COMMUNITY CARE VOL,GOVERNMENT SERVICES-NOT ELSEWHERE CLASSIFIED
24/10/2016,http://opendatacommunities.org/id/county-council/surrey,Surrey,http://id.esd.org.uk/service/1465,Council expenditure,01/07/2016,TARGETED INTERVENTION,ATG TICKETS,21.00,EDUC VISITS/HOLS/CAMPS/TOYS,"THEATRICAL PRODUCERS(EXCL MOTION PIX),TICKET AGNCY"
24/10/2016,http://opendatacommunities.org/id/county-council/surrey,Surrey,http://id.esd.org.uk/service/1465,Council expenditure,01/07/2016,VIRTUAL SCHOOL FOR LAC PUPIL PREMIUM,SURREY CC CARD PAY,50.00,SUBSISTENCE AND CONFERENCE EXPENSES,COMPUTER NETWORK/INFORMATION SERVICES
24/10/2016,http://opendatacommunities.org/id/county-council/surrey,Surrey,http://id.esd.org.uk/service/1465,Council expenditure,01/07/2016,PORTAGE SERVICE (SE),AMAZON UK MARKETPLACE,21.48,EQUIPMENT,BOOK STORES
24/10/2016,http://opendatacommunities.org/id/county-council/surrey,Surrey,http://id.esd.org.uk/service/1465,Council expenditure,01/07/2016,AEO MANAGEMENT TEAM (SE),MARKS&SPENCER PLC,16.00,REFRESHMENT COSTS,"GROCERY STORES, SUPERMARKETS"
24/10/2016,http://opendatacommunities.org/id/county-council/surrey,Surrey,http://id.esd.org.uk/service/1465,Council expenditure,01/07/2016,TRANSPORT,LEWIS'S MEDICAL SUPPLI,78.18,OPERATIONAL FIRE EQUIPMENT,DENTAL/LAB/MED/OPHTHALMIC HOSP EQUIP & SUPPLIES
24/10/2016,http://opendatacommunities.org/id/county-council/surrey,Surrey,http://id.esd.org.uk/service/1465,Council expenditure,01/07/2016,EXTENDED HOPE,AMAZON UK MARKETPLACE,4.28,EQUIPMENT,BOOK STORES
24/10/2016,http://opendatacommunities.org/id/county-council/surrey,Surrey,http://id.esd.org.uk/service/1465,Council expenditure,02/07/2016,COMMUNICATIONS TEAM,TIMES NEWSPAPERS LTD,34.67,SUBSCRIPTIONS,"BOOKS,PERIODICALS AND NEWSPAPERS"
24/10/2016,http://opendatacommunities.org/id/county-council/surrey,Surrey,http://id.esd.org.uk/service/1465,Council expenditure,02/07/2016,TRANSPORT,AMAZON EU,32.00,FURNITURE,DIRECT MARKETING-OTHER DIRECT MARKETERS/NOT ELSEW.
24/10/2016,http://opendatacommunities.org/id/county-council/surrey,Surrey,http://id.esd.org.uk/service/1465,Council expenditure,02/07/2016,SUPERFAST BROADBAND ECONOMIC DEVELOPMENT,GOOGLE  SVCSAPPS_SUPER,16.50,COMPUTER SERVICES,DIRECT MARKETING-CONTINUITY/SUBSCRIPTION MERCHANTS
24/10/2016,http://opendatacommunities.org/id/county-council/surrey,Surrey,http://id.esd.org.uk/service/1465,Council expenditure,02/07/2016,SHEERWATER YC,TESCO STORES 2025,49.24,PURCHASE OF FOOD (RAW MATERIALS),"GROCERY STORES, SUPERMARKETS"
24/10/2016,http://opendatacommunities.org/id/county-council/surrey,Surrey,http://id.esd.org.uk/service/1465,Council expenditure,02/07/2016,BURBANK COMMUNITY HOME,PRIMARK,28.50,"CLOTHING, UNIFORM AND LAUNDRY",FAMILY CLOTHING STORES
24/10/2016,http://opendatacommunities.org/id/county-council/surrey,Surrey,http://id.esd.org.uk/service/1465,Council expenditure,02/07/2016,HEAD OF SERVICE,AMAZON UK MARKETPLACE,66.70,EQUIPMENT,BOOK STORES
24/10/2016,http://opendatacommunities.org/id/county-council/surrey,Surrey,http://id.esd.org.uk/service/1465,Council expenditure,02/07/2016,PORTAGE SERVICE (SE),AMAZON UK MARKETPLACE,17.96,EQUIPMENT,BOOK STORES
24/10/2016,http://opendatacommunities.org/id/county-council/surrey,Surrey,http://id.esd.org.uk/service/1465,Council expenditure,02/07/2016,ACCESS 2 EDUCATION NW NON-MEDICAL,AMAZON UK MARKETPLACE,2.99,BOOKS,BOOK STORES
24/10/2016,http://opendatacommunities.org/id/county-council/surrey,Surrey,http://id.esd.org.uk/service/1465,Council expenditure,02/07/2016,SHEERWATER YC,LIDL UK,29.39,PURCHASE OF FOOD (RAW MATERIALS),"GROCERY STORES, SUPERMARKETS"
24/10/2016,http://opendatacommunities.org/id/county-council/surrey,Surrey,http://id.esd.org.uk/service/1465,Council expenditure,02/07/2016,ADDLESTONE YC,AMAZON EU,7.02,EQUIPMENT,DIRECT MARKETING-OTHER DIRECT MARKETERS/NOT ELSEW.
24/10/2016,http://opendatacommunities.org/id/county-council/surrey,Surrey,http://id.esd.org.uk/service/1465,Council expenditure,02/07/2016,NW LOOKED AFTER TEAM,PREMIER INN,786.40,OTHER COMMUNITY CARE PRIV,PREMIER INN
24/10/2016,http://opendatacommunities.org/id/county-council/surrey,Surrey,http://id.esd.org.uk/service/1465,Council expenditure,02/07/2016,HOPE SERVICE - WEST,AMAZON UK MARKETPLACE,41.71,CURRICULUM CONSUMABLES,BOOK STORES
24/10/2016,http://opendatacommunities.org/id/county-council/surrey,Surrey,http://id.esd.org.uk/service/1465,Council expenditure,02/07/2016,SOLD DAY TO DAY OPERATIONS,COTSWOLD OUTDOOR,40.00,EQUIPMENT,MEN'S AND WOMEN'S CLOTHING STORES
24/10/2016,http://opendatacommunities.org/id/county-council/surrey,Surrey,http://id.esd.org.uk/service/1465,Council expenditure,02/07/2016,THE STREET YC,B & M RETAIL,23.42,EQUIPMENT,DISCOUNT STORES
24/10/2016,http://opendatacommunities.org/id/county-council/surrey,Surrey,http://id.esd.org.uk/service/1465,Council expenditure,02/07/2016,FAIRCROFT COMMUNITY HOME,AMAZON UK MARKETPLACE,21.95,EQUIPMENT,BOOK STORES
24/10/2016,http://opendatacommunities.org/id/county-council/surrey,Surrey,http://id.esd.org.uk/service/1465,Council expenditure,02/07/2016,HARRY'S YC,HOBBYCRAFT,18.40,EQUIPMENT,"ARTIST SUPPLY STORES, CRAFT SHOPS"
24/10/2016,http://opendatacommunities.org/id/county-council/surrey,Surrey,http://id.esd.org.uk/service/1465,Council expenditure,02/07/2016,LIBERTAS COMMUNITY HOME,BOOTS 2364,19.96,EQUIPMENT,"DRUG STORES, PHARMACIES"
24/10/2016,http://opendatacommunities.org/id/county-council/surrey,Surrey,http://id.esd.org.uk/service/1465,Council expenditure,02/07/2016,HILLSIDE,SAINSBURYS TO YOU 0675,12.60,PURCHASE OF FOOD (RAW MATERIALS),"GROCERY STORES, SUPERMARKETS"
24/10/2016,http://opendatacommunities.org/id/county-council/surrey,Surrey,http://id.esd.org.uk/service/1465,Council expenditure,02/07/2016,HILLSIDE,SAINSBURYS TO YOU 0675,205.55,PURCHASE OF FOOD (RAW MATERIALS),"GROCERY STORES, SUPERMARKETS"
24/10/2016,http://opendatacommunities.org/id/county-council/surrey,Surrey,http://id.esd.org.uk/service/1465,Council expenditure,02/07/2016,EXTENDED HOPE,AMAZON UK MARKETPLACE,15.00,EQUIPMENT,BOOK STORES
24/10/2016,http://opendatacommunities.org/id/county-council/surrey,Surrey,http://id.esd.org.uk/service/1465,Council expenditure,02/07/2016,CHEYNE WALK COMMUNITY HOME,MCDONALDS,7.28,PURCHASE OF FOOD (RAW MATERIALS),FAST FOOD RESTAURANTS
24/10/2016,http://opendatacommunities.org/id/county-council/surrey,Surrey,http://id.esd.org.uk/service/1465,Council expenditure,02/07/2016,HOLLAND CLOSE RESIDENTIAL HOME,TESCO-STORES 6647,189.93,PURCHASE OF FOOD (RAW MATERIALS),"GROCERY STORES, SUPERMARKETS"
24/10/2016,http://opendatacommunities.org/id/county-council/surrey,Surrey,http://id.esd.org.uk/service/1465,Council expenditure,02/07/2016,FAIRCROFT COMMUNITY HOME,SAINSBURYS 0687,34.00,PURCHASE OF FOOD (RAW MATERIALS),"GROCERY STORES, SUPERMARKETS"
24/10/2016,http://opendatacommunities.org/id/county-council/surrey,Surrey,http://id.esd.org.uk/service/1465,Council expenditure,02/07/2016,HARRY'S YC,B & M RETAIL,5.97,EQUIPMENT,DISCOUNT STORES
24/10/2016,http://opendatacommunities.org/id/county-council/surrey,Surrey,http://id.esd.org.uk/service/1465,Council expenditure,02/07/2016,CHEYNE WALK COMMUNITY HOME,AMF BOWLING,5.05,PURCHASE OF FOOD (RAW MATERIALS),"CLUBS-CNTRY,MBRSHIP(ATHLET,REC,SPRTS,PRIVATE GOLF"
24/10/2016,http://opendatacommunities.org/id/county-council/surrey,Surrey,http://id.esd.org.uk/service/1465,Council expenditure,02/07/2016,THE STREET YC,HOBBYCRAFT,8.00,EQUIPMENT,"ARTIST SUPPLY STORES, CRAFT SHOPS"
24/10/2016,http://opendatacommunities.org/id/county-council/surrey,Surrey,http://id.esd.org.uk/service/1465,Council expenditure,03/07/2016,E&I - LOVE FOOD HATE WASTE              ,GOOGLE  ADWS2060179426,500.00,PUBLICITY,DIRECT MARKETING-CONTINUITY/SUBSCRIPTION MERCHANTS
24/10/2016,http://opendatacommunities.org/id/county-council/surrey,Surrey,http://id.esd.org.uk/service/1465,Council expenditure,03/07/2016,IMT PRODUCTION APPLICATIONS TEAM,AMAZON MKTPLACE PMTS,"1,250.53",EQUIPMENT,MISCELLANEOUS AND SPECIALTY RETAIL STORES
24/10/2016,http://opendatacommunities.org/id/county-council/surrey,Surrey,http://id.esd.org.uk/service/1465,Council expenditure,03/07/2016,PORTAGE SERVICE (SE),AMAZON UK MARKETPLACE,59.95,EQUIPMENT,BOOK STORES
24/10/2016,http://opendatacommunities.org/id/county-council/surrey,Surrey,http://id.esd.org.uk/service/1465,Council expenditure,03/07/2016,APPLEWOOD,ASDA HOME SHOPPING,73.06,PURCHASE OF FOOD (RAW MATERIALS),"GROCERY STORES, SUPERMARKETS"
24/10/2016,http://opendatacommunities.org/id/county-council/surrey,Surrey,http://id.esd.org.uk/service/1465,Council expenditure,03/07/2016,ACL CENTRAL EXPENDITURE,TESCO STORE 2160,15.75,REFRESHMENT COSTS,"GROCERY STORES, SUPERMARKETS"
24/10/2016,http://opendatacommunities.org/id/county-council/surrey,Surrey,http://id.esd.org.uk/service/1465,Council expenditure,03/07/2016,HILLSIDE,MARKS&SPENCER PLC,289.00,"CLOTHING, UNIFORM AND LAUNDRY","GROCERY STORES, SUPERMARKETS"
24/10/2016,http://opendatacommunities.org/id/county-council/surrey,Surrey,http://id.esd.org.uk/service/1465,Council expenditure,04/07/2016,SURREY ARTS GENERAL,EASYJET,68.68,SUBSISTENCE AND CONFERENCE EXPENSES,EASYJET
24/10/2016,http://opendatacommunities.org/id/county-council/surrey,Surrey,http://id.esd.org.uk/service/1465,Council expenditure,04/07/2016,"NW REF, ASS & INT SERVICE - HUB 1",PREMIER INN,122.50,OTHER COMMUNITY CARE PRIV,PREMIER INN
24/10/2016,http://opendatacommunities.org/id/county-council/surrey,Surrey,http://id.esd.org.uk/service/1465,Council expenditure,04/07/2016,FOSTERING SERVICE CENTRAL COSTS,ELC-INTERNET,75.90,EDUC VISITS/HOLS/CAMPS/TOYS,DEPARTMENT STORES
24/10/2016,http://opendatacommunities.org/id/county-council/surrey,Surrey,http://id.esd.org.uk/service/1465,Council expenditure,04/07/2016,SW CARE - LAC,PREMIER INN,89.00,CHILDREN ACT SEC 17 PAYMENTS,PREMIER INN
24/10/2016,http://opendatacommunities.org/id/county-council/surrey,Surrey,http://id.esd.org.uk/service/1465,Council expenditure,04/07/2016,TARGETED INTERVENTION,WOKING BOROUGH COUNCIL,2.60,EDUC VISITS/HOLS/CAMPS/TOYS,AUTOMOBILE PARKING LOTS AND GARAGES
24/10/2016,http://opendatacommunities.org/id/county-council/surrey,Surrey,http://id.esd.org.uk/service/1465,Council expenditure,04/07/2016,SW CARE - LAC,PREMIER INN,90.00,CHILDREN ACT SEC 17 PAYMENTS,PREMIER INN
24/10/2016,http://opendatacommunities.org/id/county-council/surrey,Surrey,http://id.esd.org.uk/service/1465,Council expenditure,04/07/2016,TRAINING AND DEVELOPMENT,THE OLD BELL INN,278.00,TRAINING EXPENSES EXTERNAL GENERAL,"LODGING-HOTELS,MOTELS,RESORTS-NOT CLASSIFIED"
24/10/2016,http://opendatacommunities.org/id/county-council/surrey,Surrey,http://id.esd.org.uk/service/1465,Council expenditure,04/07/2016,FAIRCROFT COMMUNITY HOME,TESCO STORE 2160,202.45,PURCHASE OF FOOD (RAW MATERIALS),"GROCERY STORES, SUPERMARKETS"
24/10/2016,http://opendatacommunities.org/id/county-council/surrey,Surrey,http://id.esd.org.uk/service/1465,Council expenditure,04/07/2016,MULBERRY YC,AMAZON UK MARKETPLACE,40.89,EQUIPMENT,BOOK STORES
24/10/2016,http://opendatacommunities.org/id/county-council/surrey,Surrey,http://id.esd.org.uk/service/1465,Council expenditure,04/07/2016,CSF - ADOPTION & FOSTERING              ,BRIGHTON PRIDE CIC,900.00,PUBLICITY,"THEATRICAL PRODUCERS(EXCL MOTION PIX),TICKET AGNCY"
24/10/2016,http://opendatacommunities.org/id/county-council/surrey,Surrey,http://id.esd.org.uk/service/1465,Council expenditure,04/07/2016,ACCESS 2 EDUCATION NW NON-MEDICAL,AMAZON UK MARKETPLACE,2.84,BOOKS,BOOK STORES
24/10/2016,http://opendatacommunities.org/id/county-council/surrey,Surrey,http://id.esd.org.uk/service/1465,Council expenditure,04/07/2016,ACCESS 2 EDUCATION NW NON-MEDICAL,AMAZON UK MARKETPLACE,7.18,BOOKS,BOOK STORES
24/10/2016,http://opendatacommunities.org/id/county-council/surrey,Surrey,http://id.esd.org.uk/service/1465,Council expenditure,04/07/2016,TRANSPORT,MERSTHAM GLASS LTD,9.16,VEHICLE REPAIRS AND MAINTENANCE,"CONTRACTORS,SPECIAL TRADE-NOT ELSEWHERE CLASSIFIED"
24/10/2016,http://opendatacommunities.org/id/county-council/surrey,Surrey,http://id.esd.org.uk/service/1465,Council expenditure,04/07/2016,OLD DEAN YC,SAINSBURYS SACAT (4115,15.15,PURCHASE OF FOOD (RAW MATERIALS),"GROCERY STORES, SUPERMARKETS"
24/10/2016,http://opendatacommunities.org/id/county-council/surrey,Surrey,http://id.esd.org.uk/service/1465,Council expenditure,04/07/2016,HILLSIDE,AMAZON UK MARKETPLACE,21.97,EQUIPMENT,BOOK STORES
24/10/2016,http://opendatacommunities.org/id/county-council/surrey,Surrey,http://id.esd.org.uk/service/1465,Council expenditure,04/07/2016,ISPSB - ADAPTATIONS & IMPROVEMENTS,AMAZON UK MARKETPLACE,18.40,EDUC VISITS/HOLS/CAMPS/TOYS,BOOK STORES
24/10/2016,http://opendatacommunities.org/id/county-council/surrey,Surrey,http://id.esd.org.uk/service/1465,Council expenditure,04/07/2016,FOSTERING SERVICE CENTRAL COSTS,AMAZON EU,47.49,EDUC VISITS/HOLS/CAMPS/TOYS,DIRECT MARKETING-OTHER DIRECT MARKETERS/NOT ELSEW.
24/10/2016,http://opendatacommunities.org/id/county-council/surrey,Surrey,http://id.esd.org.uk/service/1465,Council expenditure,04/07/2016,ACL CENTRAL EXPENDITURE,TESCO STORE 3149,50.52,REFRESHMENT COSTS,"GROCERY STORES, SUPERMARKETS"
24/10/2016,http://opendatacommunities.org/id/county-council/surrey,Surrey,http://id.esd.org.uk/service/1465,Council expenditure,04/07/2016,TRAINING LEGAL SERVICES,WWW.CILEX LAW SC.AC.UK,81.35,TRAINING EXPENSES EXTERNAL GENERAL,"SCHOOLS, BUSINESS AND SECRETARIAL"
24/10/2016,http://opendatacommunities.org/id/county-council/surrey,Surrey,http://id.esd.org.uk/service/1465,Council expenditure,04/07/2016,YSS YOUTH CENTRE IMPROVEMENTS,FENTON TIMBER,281.88,FURNITURE,"EQUIP, FURNITURE, HOME FURNSHNGS STRS (EXCPT APPL)"
24/10/2016,http://opendatacommunities.org/id/county-council/surrey,Surrey,http://id.esd.org.uk/service/1465,Council expenditure,04/07/2016,MALLOW CRESCENT,SAINSBURYS TO YOU 0686,9.70,PURCHASE OF FOOD (RAW MATERIALS),"GROCERY STORES, SUPERMARKETS"
24/10/2016,http://opendatacommunities.org/id/county-council/surrey,Surrey,http://id.esd.org.uk/service/1465,Council expenditure,04/07/2016,MALLOW CRESCENT,SAINSBURYS TO YOU 0686,112.65,PURCHASE OF FOOD (RAW MATERIALS),"GROCERY STORES, SUPERMARKETS"
24/10/2016,http://opendatacommunities.org/id/county-council/surrey,Surrey,http://id.esd.org.uk/service/1465,Council expenditure,04/07/2016,HARRY'S YC,WAITROSE 838,2.83,PURCHASE OF FOOD (RAW MATERIALS),"GROCERY STORES, SUPERMARKETS"
24/10/2016,http://opendatacommunities.org/id/county-council/surrey,Surrey,http://id.esd.org.uk/service/1465,Council expenditure,04/07/2016,MULBERRY YC,AMAZON UK MARKETPLACE,87.68,EQUIPMENT,BOOK STORES
24/10/2016,http://opendatacommunities.org/id/county-council/surrey,Surrey,http://id.esd.org.uk/service/1465,Council expenditure,04/07/2016,THE STREET YC,WWW.THEWORKS.CO.UK,14.96,EQUIPMENT,DISCOUNT STORES
24/10/2016,http://opendatacommunities.org/id/county-council/surrey,Surrey,http://id.esd.org.uk/service/1465,Council expenditure,04/07/2016,THE STREET YC,WM MORRISONS,2.05,REFRESHMENT COSTS,"GROCERY STORES, SUPERMARKETS"
24/10/2016,http://opendatacommunities.org/id/county-council/surrey,Surrey,http://id.esd.org.uk/service/1465,Council expenditure,04/07/2016,SOLD CURRICULUM PROGRAMME DELIVERY,BRITISH CANOEING,50.00,EXAMINATION FEES,"CLUBS-CNTRY,MBRSHIP(ATHLET,REC,SPRTS,PRIVATE GOLF"
24/10/2016,http://opendatacommunities.org/id/county-council/surrey,Surrey,http://id.esd.org.uk/service/1465,Council expenditure,04/07/2016,SPECIAL EDUCATIONAL NEEDS,WWW.EMBROIDERED-PRINTE,250.20,EQUIPMENT,"GIFT, CARD, NOVELTY AND SOUVENIR SHOPS"
24/10/2016,http://opendatacommunities.org/id/county-council/surrey,Surrey,http://id.esd.org.uk/service/1465,Council expenditure,04/07/2016,MULBERRY YC,AMAZON UK MARKETPLACE,17.98,EQUIPMENT,BOOK STORES
24/10/2016,http://opendatacommunities.org/id/county-council/surrey,Surrey,http://id.esd.org.uk/service/1465,Council expenditure,04/07/2016,MALLOW CRESCENT,SAINSBURYS TO YOU 0686,8.75,PURCHASE OF FOOD (RAW MATERIALS),"GROCERY STORES, SUPERMARKETS"
24/10/2016,http://opendatacommunities.org/id/county-council/surrey,Surrey,http://id.esd.org.uk/service/1465,Council expenditure,04/07/2016,MALLOW CRESCENT,SAINSBURYS TO YOU 0686,97.05,PURCHASE OF FOOD (RAW MATERIALS),"GROCERY STORES, SUPERMARKETS"
24/10/2016,http://opendatacommunities.org/id/county-council/surrey,Surrey,http://id.esd.org.uk/service/1465,Council expenditure,04/07/2016,BURBANK COMMUNITY HOME,BOOTS 5228,11.79,MEDICAL EXPENSES,"DRUG STORES, PHARMACIES"
24/10/2016,http://opendatacommunities.org/id/county-council/surrey,Surrey,http://id.esd.org.uk/service/1465,Council expenditure,04/07/2016,SECTOR MANAGER,ROYAL MAIL,"1,617.51",POSTAGE AND COURIER CHARGES,POSTAL SERVICES-GOVERNMENT ONLY
24/10/2016,http://opendatacommunities.org/id/county-council/surrey,Surrey,http://id.esd.org.uk/service/1465,Council expenditure,04/07/2016,PROJECTS AND CONTRACTS GROUP,WAVERELY BOROUGH C,101.50,LICENCE FEES,GOVERNMENT SERVICES-NOT ELSEWHERE CLASSIFIED
24/10/2016,http://opendatacommunities.org/id/county-council/surrey,Surrey,http://id.esd.org.uk/service/1465,Council expenditure,04/07/2016,YSS MANAGEMENT PRACTICE AND SUPPORT,MAG EVENTS,418.80,TRAINING EXPENSES EXTERNAL GENERAL,"BOOKS,PERIODICALS AND NEWSPAPERS"
24/10/2016,http://opendatacommunities.org/id/county-council/surrey,Surrey,http://id.esd.org.uk/service/1465,Council expenditure,04/07/2016,TARGETED SERVICES TEAM,MAG EVENTS,418.80,TRAINING EXPENSES EXTERNAL GENERAL,"BOOKS,PERIODICALS AND NEWSPAPERS"
24/10/2016,http://opendatacommunities.org/id/county-council/surrey,Surrey,http://id.esd.org.uk/service/1465,Council expenditure,04/07/2016,COMMUNICATIONS - SURREY MATTERS,HOOTSUITE MEDIA INC.,5.55,SUBSCRIPTIONS,BUSINESS SERVICES-NOT ELSEWHERE CLASSIFIED
24/10/2016,http://opendatacommunities.org/id/county-council/surrey,Surrey,http://id.esd.org.uk/service/1465,Council expenditure,04/07/2016,HILLSIDE,TESCO STORES,3.00,PURCHASE OF FOOD (RAW MATERIALS),"GROCERY STORES, SUPERMARKETS"
24/10/2016,http://opendatacommunities.org/id/county-council/surrey,Surrey,http://id.esd.org.uk/service/1465,Council expenditure,04/07/2016,HILLSIDE,TESCO STORES,13.33,PURCHASE OF FOOD (RAW MATERIALS),"GROCERY STORES, SUPERMARKETS"
24/10/2016,http://opendatacommunities.org/id/county-council/surrey,Surrey,http://id.esd.org.uk/service/1465,Council expenditure,04/07/2016,MOLESEY YC,AMAZON UK MARKETPLACE,139.99,EQUIPMENT,BOOK STORES
24/10/2016,http://opendatacommunities.org/id/county-council/surrey,Surrey,http://id.esd.org.uk/service/1465,Council expenditure,04/07/2016,TARGETED INTERVENTION,43032200 COSTA COFFEE,7.35,EDUC VISITS/HOLS/CAMPS/TOYS,FAST FOOD RESTAURANTS
24/10/2016,http://opendatacommunities.org/id/county-council/surrey,Surrey,http://id.esd.org.uk/service/1465,Council expenditure,04/07/2016,SOLD CURRICULUM PROGRAMME DELIVERY,BRITISH CANOEING,50.00,EXAMINATION FEES,"CLUBS-CNTRY,MBRSHIP(ATHLET,REC,SPRTS,PRIVATE GOLF"
24/10/2016,http://opendatacommunities.org/id/county-council/surrey,Surrey,http://id.esd.org.uk/service/1465,Council expenditure,04/07/2016,MALLOW CRESCENT,SAINSBURYS TO YOU 0686,4.20,PURCHASE OF FOOD (RAW MATERIALS),"GROCERY STORES, SUPERMARKETS"
24/10/2016,http://opendatacommunities.org/id/county-council/surrey,Surrey,http://id.esd.org.uk/service/1465,Council expenditure,04/07/2016,MALLOW CRESCENT,SAINSBURYS TO YOU 0686,99.70,PURCHASE OF FOOD (RAW MATERIALS),"GROCERY STORES, SUPERMARKETS"
24/10/2016,http://opendatacommunities.org/id/county-council/surrey,Surrey,http://id.esd.org.uk/service/1465,Council expenditure,04/07/2016,READY FOR WORK YSS,VUE NCS CITB HS&E TEST,19.50,EQUIPMENT,SCHOOLS & EDUCATIONAL SVC-NOT ELSEWHERE CLASSIFIED
24/10/2016,http://opendatacommunities.org/id/county-council/surrey,Surrey,http://id.esd.org.uk/service/1465,Council expenditure,04/07/2016,FOSTERING SERVICE CENTRAL COSTS,AMAZON UK MARKETPLACE,48.50,EDUC VISITS/HOLS/CAMPS/TOYS,BOOK STORES
24/10/2016,http://opendatacommunities.org/id/county-council/surrey,Surrey,http://id.esd.org.uk/service/1465,Council expenditure,04/07/2016,LOCAL DELIVERY GROUP,AMAZON UK MARKETPLACE,3.48,EQUIPMENT,BOOK STORES
24/10/2016,http://opendatacommunities.org/id/county-council/surrey,Surrey,http://id.esd.org.uk/service/1465,Council expenditure,04/07/2016,HOLLAND CLOSE RESIDENTIAL HOME,TESCO DELIVERY SAVER2,60.00,SUBSCRIPTIONS,DIRECT MARKETING-CONTINUITY/SUBSCRIPTION MERCHANTS
24/10/2016,http://opendatacommunities.org/id/county-council/surrey,Surrey,http://id.esd.org.uk/service/1465,Council expenditure,04/07/2016,CURRICULUM SUPPORT,FRESH CHOICES,94.80,REFRESHMENT COSTS,"MISC FOOD STORE-CONVENIENCE,MRKT,SPLTY,VENDNG MACS"
24/10/2016,http://opendatacommunities.org/id/county-council/surrey,Surrey,http://id.esd.org.uk/service/1465,Council expenditure,04/07/2016,COUNTY HALL,MARKS&SPENCER PLC,49.55,"CLOTHING, UNIFORM AND LAUNDRY","GROCERY STORES, SUPERMARKETS"
24/10/2016,http://opendatacommunities.org/id/county-council/surrey,Surrey,http://id.esd.org.uk/service/1465,Council expenditure,04/07/2016,ACL CENTRAL EXPENDITURE,TESCO STORE 2160,41.13,REFRESHMENT COSTS,"GROCERY STORES, SUPERMARKETS"
24/10/2016,http://opendatacommunities.org/id/county-council/surrey,Surrey,http://id.esd.org.uk/service/1465,Council expenditure,04/07/2016,THE EDGE YC,POOLE FOOD & WINE LTD,9.34,PURCHASE OF FOOD (RAW MATERIALS),NEWS DEALERS AND NEWSSTANDS
24/10/2016,http://opendatacommunities.org/id/county-council/surrey,Surrey,http://id.esd.org.uk/service/1465,Council expenditure,04/07/2016,HARRY'S YC,WAITROSE 838,6.05,PURCHASE OF FOOD (RAW MATERIALS),"GROCERY STORES, SUPERMARKETS"
24/10/2016,http://opendatacommunities.org/id/county-council/surrey,Surrey,http://id.esd.org.uk/service/1465,Council expenditure,04/07/2016,HOPE SERVICE - EAST,SAINSBURYS 0683,95.82,PURCHASE OF FOOD (RAW MATERIALS),"GROCERY STORES, SUPERMARKETS"
24/10/2016,http://opendatacommunities.org/id/county-council/surrey,Surrey,http://id.esd.org.uk/service/1465,Council expenditure,04/07/2016,MULBERRY YC,DECATHLON UK LTD,439.98,EQUIPMENT,SPORTING GOODS STORES
24/10/2016,http://opendatacommunities.org/id/county-council/surrey,Surrey,http://id.esd.org.uk/service/1465,Council expenditure,04/07/2016,TARGETED INTERVENTION,STARBUCKS,1.70,EDUC VISITS/HOLS/CAMPS/TOYS,FAST FOOD RESTAURANTS
24/10/2016,http://opendatacommunities.org/id/county-council/surrey,Surrey,http://id.esd.org.uk/service/1465,Council expenditure,04/07/2016,SOLD CURRICULUM PROGRAMME DELIVERY,BRITISH CANOEING,50.00,EXAMINATION FEES,"CLUBS-CNTRY,MBRSHIP(ATHLET,REC,SPRTS,PRIVATE GOLF"
24/10/2016,http://opendatacommunities.org/id/county-council/surrey,Surrey,http://id.esd.org.uk/service/1465,Council expenditure,04/07/2016,HILLSIDE,SAINSBURYS 0784,3.55,PURCHASE OF FOOD (RAW MATERIALS),"GROCERY STORES, SUPERMARKETS"
24/10/2016,http://opendatacommunities.org/id/county-council/surrey,Surrey,http://id.esd.org.uk/service/1465,Council expenditure,04/07/2016,HILLSIDE,SAINSBURYS 0784,36.15,PURCHASE OF FOOD (RAW MATERIALS),"GROCERY STORES, SUPERMARKETS"
24/10/2016,http://opendatacommunities.org/id/county-council/surrey,Surrey,http://id.esd.org.uk/service/1465,Council expenditure,04/07/2016,COVEHAM,SAINSBURYS TO YOU 0687,17.90,REFRESHMENT COSTS,"GROCERY STORES, SUPERMARKETS"
24/10/2016,http://opendatacommunities.org/id/county-council/surrey,Surrey,http://id.esd.org.uk/service/1465,Council expenditure,04/07/2016,COVEHAM,SAINSBURYS TO YOU 0687,145.38,REFRESHMENT COSTS,"GROCERY STORES, SUPERMARKETS"
24/10/2016,http://opendatacommunities.org/id/county-council/surrey,Surrey,http://id.esd.org.uk/service/1465,Council expenditure,04/07/2016,MULBERRY YC,AMAZON UK MARKETPLACE,19.96,EQUIPMENT,BOOK STORES
24/10/2016,http://opendatacommunities.org/id/county-council/surrey,Surrey,http://id.esd.org.uk/service/1465,Council expenditure,04/07/2016,CSF BUSINESS SUPPORT EDUCATION,AMAZON UK MARKETPLACE,26.52,EQUIPMENT,BOOK STORES
24/10/2016,http://opendatacommunities.org/id/county-council/surrey,Surrey,http://id.esd.org.uk/service/1465,Council expenditure,04/07/2016,TRAINING AND DEVELOPMENT,CAPITA BUSINESS SERVS,180.00,TRAINING EXPENSES EXTERNAL GENERAL,GOVERNMENT SERVICES-NOT ELSEWHERE CLASSIFIED
24/10/2016,http://opendatacommunities.org/id/county-council/surrey,Surrey,http://id.esd.org.uk/service/1465,Council expenditure,04/07/2016,DEMOCRATIC SERVICES TEAM,AMAZON UK MARKETPLACE,12.44,STATIONERY,BOOK STORES
24/10/2016,http://opendatacommunities.org/id/county-council/surrey,Surrey,http://id.esd.org.uk/service/1465,Council expenditure,04/07/2016,SOLD DAY TO DAY OPERATIONS,ENDLESS RIVER LTD,57.00,EQUIPMENT,SPORTING GOODS STORES
24/10/2016,http://opendatacommunities.org/id/county-council/surrey,Surrey,http://id.esd.org.uk/service/1465,Council expenditure,04/07/2016,TRANSPORT,MICHAEL'S WORKWEAR LTD,-118.45,OPERATIONAL FIRE EQUIPMENT,MISCELLANEOUS AND SPECIALTY RETAIL STORES
24/10/2016,http://opendatacommunities.org/id/county-council/surrey,Surrey,http://id.esd.org.uk/service/1465,Council expenditure,04/07/2016,TARGETED INTERVENTION,STARBUCKS,5.45,EDUC VISITS/HOLS/CAMPS/TOYS,FAST FOOD RESTAURANTS
24/10/2016,http://opendatacommunities.org/id/county-council/surrey,Surrey,http://id.esd.org.uk/service/1465,Council expenditure,04/07/2016,GUILDFORD YC,SAINSBURYS 0652,15.40,PURCHASE OF FOOD (RAW MATERIALS),"GROCERY STORES, SUPERMARKETS"
24/10/2016,http://opendatacommunities.org/id/county-council/surrey,Surrey,http://id.esd.org.uk/service/1465,Council expenditure,04/07/2016,LINTONS YC,SAINSBURYS SACAT 0683,12.00,EQUIPMENT,"GROCERY STORES, SUPERMARKETS"
24/10/2016,http://opendatacommunities.org/id/county-council/surrey,Surrey,http://id.esd.org.uk/service/1465,Council expenditure,04/07/2016,NW CARE - CP & COURT LAC,HM PASSPORT OFFICE,49.00,FEES,GOVERNMENT SERVICES-NOT ELSEWHERE CLASSIFIED
24/10/2016,http://opendatacommunities.org/id/county-council/surrey,Surrey,http://id.esd.org.uk/service/1465,Council expenditure,04/07/2016,SOLD DAY TO DAY OPERATIONS,AMAZON UK MARKETPLACE,53.70,EQUIPMENT,BOOK STORES
24/10/2016,http://opendatacommunities.org/id/county-council/surrey,Surrey,http://id.esd.org.uk/service/1465,Council expenditure,04/07/2016,EXTENDED HOPE,AMAZON EU,46.74,EQUIPMENT,DIRECT MARKETING-OTHER DIRECT MARKETERS/NOT ELSEW.
24/10/2016,http://opendatacommunities.org/id/county-council/surrey,Surrey,http://id.esd.org.uk/service/1465,Council expenditure,04/07/2016,BURBANK COMMUNITY HOME,B & Q 1029,28.50,DAY TO DAY MAINTENANCE,"BUILDING MATERIALS, LUMBER STORES"
24/10/2016,http://opendatacommunities.org/id/county-council/surrey,Surrey,http://id.esd.org.uk/service/1465,Council expenditure,04/07/2016,SEN ADAPTATIONS IN SCHOOLS,PAYPAL  NRS HEALTH,62.52,EQUIPMENT,DENTAL/LAB/MED/OPHTHALMIC HOSP EQUIP & SUPPLIES
24/10/2016,http://opendatacommunities.org/id/county-council/surrey,Surrey,http://id.esd.org.uk/service/1465,Council expenditure,04/07/2016,TARGETED INTERVENTION,GMS/GLORYDALE,7.45,EDUC VISITS/HOLS/CAMPS/TOYS,MISCELLANEOUS GENERAL MERCHANDISE
24/10/2016,http://opendatacommunities.org/id/county-council/surrey,Surrey,http://id.esd.org.uk/service/1465,Council expenditure,04/07/2016,FRIMLEY YC,LIDL UK,4.89,PURCHASE OF FOOD (RAW MATERIALS),"GROCERY STORES, SUPERMARKETS"
24/10/2016,http://opendatacommunities.org/id/county-council/surrey,Surrey,http://id.esd.org.uk/service/1465,Council expenditure,04/07/2016,MEMBERS EXPENSES (INCL ALLOWANCES),WWW.ICO.GOV.UK,35.00,SUBSCRIPTIONS,GOVERNMENT SERVICES-NOT ELSEWHERE CLASSIFIED
24/10/2016,http://opendatacommunities.org/id/county-council/surrey,Surrey,http://id.esd.org.uk/service/1465,Council expenditure,04/07/2016,HILLSIDE,SAINSBURYS SACAT 0784,5.30,PURCHASE OF FOOD (RAW MATERIALS),"GROCERY STORES, SUPERMARKETS"
24/10/2016,http://opendatacommunities.org/id/county-council/surrey,Surrey,http://id.esd.org.uk/service/1465,Council expenditure,04/07/2016,HOPE SERVICE - WEST,SAINSBURYS TO YOU 0686,137.15,PURCHASE OF FOOD (RAW MATERIALS),"GROCERY STORES, SUPERMARKETS"
24/10/2016,http://opendatacommunities.org/id/county-council/surrey,Surrey,http://id.esd.org.uk/service/1465,Council expenditure,04/07/2016,MALLOW CRESCENT,TESCO STORE 2590,1.50,PURCHASE OF FOOD (RAW MATERIALS),"GROCERY STORES, SUPERMARKETS"
24/10/2016,http://opendatacommunities.org/id/county-council/surrey,Surrey,http://id.esd.org.uk/service/1465,Council expenditure,04/07/2016,MALLOW CRESCENT,TESCO STORE 2590,77.39,PURCHASE OF FOOD (RAW MATERIALS),"GROCERY STORES, SUPERMARKETS"
24/10/2016,http://opendatacommunities.org/id/county-council/surrey,Surrey,http://id.esd.org.uk/service/1465,Council expenditure,04/07/2016,LIBERTAS COMMUNITY HOME,SAINSBURYS 0652,44.33,PURCHASE OF FOOD (RAW MATERIALS),"GROCERY STORES, SUPERMARKETS"
24/10/2016,http://opendatacommunities.org/id/county-council/surrey,Surrey,http://id.esd.org.uk/service/1465,Council expenditure,04/07/2016,TRANSPORT,VINES OF REDHILL,-57.25,VEHICLE REPAIRS AND MAINTENANCE,AUTOMOTIVE SERVICE SHOPS
24/10/2016,http://opendatacommunities.org/id/county-council/surrey,Surrey,http://id.esd.org.uk/service/1465,Council expenditure,04/07/2016,ISPSB - ADAPTATIONS & IMPROVEMENTS,AMAZON UK MARKETPLACE,49.64,EQUIPMENT,BOOK STORES
24/10/2016,http://opendatacommunities.org/id/county-council/surrey,Surrey,http://id.esd.org.uk/service/1465,Council expenditure,04/07/2016,STANWELL YOUTH CLUB,AMAZON UK MARKETPLACE,5.24,EQUIPMENT,BOOK STORES
24/10/2016,http://opendatacommunities.org/id/county-council/surrey,Surrey,http://id.esd.org.uk/service/1465,Council expenditure,04/07/2016,THE STREET YC,WAITROSE 838,7.88,PURCHASE OF FOOD (RAW MATERIALS),"GROCERY STORES, SUPERMARKETS"
24/10/2016,http://opendatacommunities.org/id/county-council/surrey,Surrey,http://id.esd.org.uk/service/1465,Council expenditure,04/07/2016,RUTH HOUSE,ASDA SUPERSTORE,129.00,EQUIPMENT,"GROCERY STORES, SUPERMARKETS"
24/10/2016,http://opendatacommunities.org/id/county-council/surrey,Surrey,http://id.esd.org.uk/service/1465,Council expenditure,04/07/2016,ACL CENTRAL EXPENDITURE,TESCO STORE 3220,45.37,REFRESHMENT COSTS,"GROCERY STORES, SUPERMARKETS"
24/10/2016,http://opendatacommunities.org/id/county-council/surrey,Surrey,http://id.esd.org.uk/service/1465,Council expenditure,04/07/2016,MERSTHAM YC,CO-OP GROUP FOOD,1.64,REFRESHMENT COSTS,"GROCERY STORES, SUPERMARKETS"
24/10/2016,http://opendatacommunities.org/id/county-council/surrey,Surrey,http://id.esd.org.uk/service/1465,Council expenditure,04/07/2016,NE CARE - LAC,ARGOS RETAIL GROUP,68.19,EQUIPMENT,DISCOUNT STORES
24/10/2016,http://opendatacommunities.org/id/county-council/surrey,Surrey,http://id.esd.org.uk/service/1465,Council expenditure,04/07/2016,FRIMLEY YC,LIDL UK,4.82,PURCHASE OF FOOD (RAW MATERIALS),"GROCERY STORES, SUPERMARKETS"
24/10/2016,http://opendatacommunities.org/id/county-council/surrey,Surrey,http://id.esd.org.uk/service/1465,Council expenditure,04/07/2016,ACCESS 2 EDUCATION NW NON-MEDICAL,AMAZON UK MARKETPLACE,2.84,BOOKS,BOOK STORES
24/10/2016,http://opendatacommunities.org/id/county-council/surrey,Surrey,http://id.esd.org.uk/service/1465,Council expenditure,04/07/2016,TARGETED INTERVENTION,STARBUCKS,8.95,EDUC VISITS/HOLS/CAMPS/TOYS,"EATING PLACES, RESTAURANTS"
24/10/2016,http://opendatacommunities.org/id/county-council/surrey,Surrey,http://id.esd.org.uk/service/1465,Council expenditure,04/07/2016,EXTENDED HOPE,AMAZON UK MARKETPLACE,7.79,CLEANING MATERIALS,BOOK STORES
24/10/2016,http://opendatacommunities.org/id/county-council/surrey,Surrey,http://id.esd.org.uk/service/1465,Council expenditure,05/07/2016,SE CARE - CP & COURT LAC,GRO HM PASSPORT OFFICE,-9.25,CHILDREN ACT SEC 17 PAYMENTS,GOVERNMENT SERVICES-NOT ELSEWHERE CLASSIFIED
24/10/2016,http://opendatacommunities.org/id/county-council/surrey,Surrey,http://id.esd.org.uk/service/1465,Council expenditure,05/07/2016,PSS COUNTYWIDE,ETSY IRELAND-GBP,270.51,EQUIPMENT,ACCESSORY AND APPAREL STORES-MISCELLANEOUS
24/10/2016,http://opendatacommunities.org/id/county-council/surrey,Surrey,http://id.esd.org.uk/service/1465,Council expenditure,05/07/2016,PSS COUNTYWIDE,ETSY IRELAND-GBP,270.51,EQUIPMENT,ACCESSORY AND APPAREL STORES-MISCELLANEOUS
24/10/2016,http://opendatacommunities.org/id/county-council/surrey,Surrey,http://id.esd.org.uk/service/1465,Council expenditure,05/07/2016,PE/CDT MAINTENANCE OVERHEADS,WWW.ARCO.CO.UK,65.26,"CLOTHING, UNIFORM AND LAUNDRY",INDUSTRIAL SUPPLIES NOT ELSEWHERE CLASSIFIED
24/10/2016,http://opendatacommunities.org/id/county-council/surrey,Surrey,http://id.esd.org.uk/service/1465,Council expenditure,05/07/2016,DEPUTYSHIP TEAM,WVR.UK (HOSEASONS GP),983.18,3RD PARTY PAYMENTS PRIVATE INDIV,TRAVEL AGENCIES AND TOUR OPERATORS
24/10/2016,http://opendatacommunities.org/id/county-council/surrey,Surrey,http://id.esd.org.uk/service/1465,Council expenditure,05/07/2016,TARGETED INTERVENTION,WOKING COUNCIL PARKING,2.60,EDUC VISITS/HOLS/CAMPS/TOYS,AUTOMOBILE PARKING LOTS AND GARAGES
24/10/2016,http://opendatacommunities.org/id/county-council/surrey,Surrey,http://id.esd.org.uk/service/1465,Council expenditure,05/07/2016,CHEYNE WALK COMMUNITY HOME,CO-OP GROUP PETROL,16.23,PURCHASE OF FOOD (RAW MATERIALS),SERVICE STATIONS WITH OR WITHOUT ANCILLARY SERVICE
24/10/2016,http://opendatacommunities.org/id/county-council/surrey,Surrey,http://id.esd.org.uk/service/1465,Council expenditure,05/07/2016,BURBANK COMMUNITY HOME,WICKES,149.99,EQUIPMENT,HOME SUPPLY WAREHOUSE STORES
24/10/2016,http://opendatacommunities.org/id/county-council/surrey,Surrey,http://id.esd.org.uk/service/1465,Council expenditure,05/07/2016,SE LOOKED AFTER TEAM,TRAVELODGE,118.95,OTHER COMMUNITY CARE PRIV,TRAVELODGE
24/10/2016,http://opendatacommunities.org/id/county-council/surrey,Surrey,http://id.esd.org.uk/service/1465,Council expenditure,05/07/2016,IMPROVING OUTCOMES - ECAT,WWW.YELLOW-DOOR.NET,17.99,EQUIPMENT,MISCELLANEOUS PUBLISHING AND PRINTING
24/10/2016,http://opendatacommunities.org/id/county-council/surrey,Surrey,http://id.esd.org.uk/service/1465,Council expenditure,05/07/2016,HOPE SERVICE - WEST,COSTA COFFEE,15.00,REFRESHMENT COSTS,FAST FOOD RESTAURANTS
24/10/2016,http://opendatacommunities.org/id/county-council/surrey,Surrey,http://id.esd.org.uk/service/1465,Council expenditure,05/07/2016,NW CARE - NON-LAC CP & COURT,TRAVELODGE,196.00,CHILDREN ACT SEC 17 PAYMENTS,TRAVELODGE
24/10/2016,http://opendatacommunities.org/id/county-council/surrey,Surrey,http://id.esd.org.uk/service/1465,Council expenditure,05/07/2016,IMT SUPPORT FOR FIRE & RESCUE,EASYJET,35.35,SUBSISTENCE AND CONFERENCE EXPENSES,EASYJET
24/10/2016,http://opendatacommunities.org/id/county-council/surrey,Surrey,http://id.esd.org.uk/service/1465,Council expenditure,05/07/2016,"NW REF, ASS & INT SERVICE - HUB 1",DOUBLETREE,145.00,OTHER COMMUNITY CARE PRIV,DOUBLETREE
24/10/2016,http://opendatacommunities.org/id/county-council/surrey,Surrey,http://id.esd.org.uk/service/1465,Council expenditure,05/07/2016,IMT SUPPORT FOR FIRE & RESCUE,PAYPAL  POWERADAPT,26.71,COMPUTER CONSUMABLES,MISCELLANEOUS AND SPECIALTY RETAIL STORES
24/10/2016,http://opendatacommunities.org/id/county-council/surrey,Surrey,http://id.esd.org.uk/service/1465,Council expenditure,05/07/2016,SW CARE - NON-LAC CP & COURT,SURREY CC CARD PAY,21.00,LEGAL EXPENSES,COMPUTER NETWORK/INFORMATION SERVICES
24/10/2016,http://opendatacommunities.org/id/county-council/surrey,Surrey,http://id.esd.org.uk/service/1465,Council expenditure,05/07/2016,SURREY GROWTH STRATEGY,WWW.FARNBOROUGH.CO,36.00,TRAINING EXPENSES EXTERNAL GENERAL,BUSINESS SERVICES-NOT ELSEWHERE CLASSIFIED
24/10/2016,http://opendatacommunities.org/id/county-council/surrey,Surrey,http://id.esd.org.uk/service/1465,Council expenditure,05/07/2016,TARGETED INTERVENTION,TOP GOLF ADDLESTON,4.55,EDUC VISITS/HOLS/CAMPS/TOYS,"CLUBS-CNTRY,MBRSHIP(ATHLET,REC,SPRTS,PRIVATE GOLF"
24/10/2016,http://opendatacommunities.org/id/county-council/surrey,Surrey,http://id.esd.org.uk/service/1465,Council expenditure,05/07/2016,BURBANK COMMUNITY HOME,B & Q 1029,7.85,DAY TO DAY MAINTENANCE,"BUILDING MATERIALS, LUMBER STORES"
24/10/2016,http://opendatacommunities.org/id/county-council/surrey,Surrey,http://id.esd.org.uk/service/1465,Council expenditure,05/07/2016,WOODLANDS COMMUNITY HOME,SAINSBURYS 0686,63.50,CLEANING MATERIALS,"GROCERY STORES, SUPERMARKETS"
24/10/2016,http://opendatacommunities.org/id/county-council/surrey,Surrey,http://id.esd.org.uk/service/1465,Council expenditure,05/07/2016,WOODLANDS COMMUNITY HOME,SAINSBURYS 0686,121.29,PURCHASE OF FOOD (RAW MATERIALS),"GROCERY STORES, SUPERMARKETS"
24/10/2016,http://opendatacommunities.org/id/county-council/surrey,Surrey,http://id.esd.org.uk/service/1465,Council expenditure,05/07/2016,WOODLANDS COMMUNITY HOME,SAINSBURYS 0686,10.65,PURCHASE OF FOOD (RAW MATERIALS),"GROCERY STORES, SUPERMARKETS"
24/10/2016,http://opendatacommunities.org/id/county-council/surrey,Surrey,http://id.esd.org.uk/service/1465,Council expenditure,05/07/2016,WOODLANDS COMMUNITY HOME,SAINSBURYS 0686,6.66,EQUIPMENT,"GROCERY STORES, SUPERMARKETS"
24/10/2016,http://opendatacommunities.org/id/county-council/surrey,Surrey,http://id.esd.org.uk/service/1465,Council expenditure,05/07/2016,TARGETED INTERVENTION,TOP GOLF LTD,4.50,EDUC VISITS/HOLS/CAMPS/TOYS,"CLUBS-CNTRY,MBRSHIP(ATHLET,REC,SPRTS,PRIVATE GOLF"
24/10/2016,http://opendatacommunities.org/id/county-council/surrey,Surrey,http://id.esd.org.uk/service/1465,Council expenditure,05/07/2016,HEAD OF C&D &PA,KNAPHILLPRINTLTD,698.00,PRINTING,"QUICK COPY,REPRODUCTION AND BLUEPRINTING SERVICES"
24/10/2016,http://opendatacommunities.org/id/county-council/surrey,Surrey,http://id.esd.org.uk/service/1465,Council expenditure,05/07/2016,THE BRIDGE YC,TESCO STORES 2812,8.14,PURCHASE OF FOOD (RAW MATERIALS),"GROCERY STORES, SUPERMARKETS"
24/10/2016,http://opendatacommunities.org/id/county-council/surrey,Surrey,http://id.esd.org.uk/service/1465,Council expenditure,05/07/2016,AEO MANAGEMENT TEAM (SW),SURREY CC CARD PAY,50.00,TRAINING EXPENSES EXTERNAL GENERAL,COMPUTER NETWORK/INFORMATION SERVICES
24/10/2016,http://opendatacommunities.org/id/county-council/surrey,Surrey,http://id.esd.org.uk/service/1465,Council expenditure,05/07/2016,TARGETED INTERVENTION,TOP GOLF LTD,30.00,EDUC VISITS/HOLS/CAMPS/TOYS,"CLUBS-CNTRY,MBRSHIP(ATHLET,REC,SPRTS,PRIVATE GOLF"
24/10/2016,http://opendatacommunities.org/id/county-council/surrey,Surrey,http://id.esd.org.uk/service/1465,Council expenditure,05/07/2016,NW CARE - NON-LAC CP & COURT,THE OLD OAK TREE,500.00,CHILDREN ACT SEC 17 PAYMENTS,"LODGING-HOTELS,MOTELS,RESORTS-NOT CLASSIFIED"
24/10/2016,http://opendatacommunities.org/id/county-council/surrey,Surrey,http://id.esd.org.uk/service/1465,Council expenditure,05/07/2016,HEAD OF SCH COMMISSIONING & ADMISSIONS,WWW.PMGLTD.CO.UK,415.80,TRAINING EXPENSES EXTERNAL GENERAL,BUSINESS SERVICES-NOT ELSEWHERE CLASSIFIED
24/10/2016,http://opendatacommunities.org/id/county-council/surrey,Surrey,http://id.esd.org.uk/service/1465,Council expenditure,05/07/2016,KARIBU COMMUNITY HOME,FW EVANS CYCLES,659.99,EDUC VISITS/HOLS/CAMPS/TOYS,BICYCLE SHOPS-SALES AND SERVICE
24/10/2016,http://opendatacommunities.org/id/county-council/surrey,Surrey,http://id.esd.org.uk/service/1465,Council expenditure,05/07/2016,KARIBU COMMUNITY HOME,FW EVANS CYCLES,100.00,EDUC VISITS/HOLS/CAMPS/TOYS,BICYCLE SHOPS-SALES AND SERVICE
24/10/2016,http://opendatacommunities.org/id/county-council/surrey,Surrey,http://id.esd.org.uk/service/1465,Council expenditure,05/07/2016,SOLD DAY TO DAY OPERATIONS,JUSTDUCKS LTD,90.95,EQUIPMENT,"DURABLE GOODS, NOT ELSEWHERE CLASSIFIED"
24/10/2016,http://opendatacommunities.org/id/county-council/surrey,Surrey,http://id.esd.org.uk/service/1465,Council expenditure,05/07/2016,TARGETED INTERVENTION,BILLS WOKING,28.27,EDUC VISITS/HOLS/CAMPS/TOYS,"EATING PLACES, RESTAURANTS"
24/10/2016,http://opendatacommunities.org/id/county-council/surrey,Surrey,http://id.esd.org.uk/service/1465,Council expenditure,05/07/2016,APPLEWOOD,AMAZON UK MARKETPLACE,13.09,EDUC VISITS/HOLS/CAMPS/TOYS,BOOK STORES
24/10/2016,http://opendatacommunities.org/id/county-council/surrey,Surrey,http://id.esd.org.uk/service/1465,Council expenditure,05/07/2016,ORDER TO CASH TEAM,WWW.MONEYCLAIM.GOV,105.00,FEES,GOVERNMENT SERVICES-NOT ELSEWHERE CLASSIFIED
24/10/2016,http://opendatacommunities.org/id/county-council/surrey,Surrey,http://id.esd.org.uk/service/1465,Council expenditure,05/07/2016,SOLD CATERING,W M MORRISONS,68.32,PURCHASE OF FOOD (RAW MATERIALS),"GROCERY STORES, SUPERMARKETS"
24/10/2016,http://opendatacommunities.org/id/county-council/surrey,Surrey,http://id.esd.org.uk/service/1465,Council expenditure,05/07/2016,ACL CENTRAL EXPENDITURE,AMAZON EU,11.74,EQUIPMENT,DIRECT MARKETING-OTHER DIRECT MARKETERS/NOT ELSEW.
24/10/2016,http://opendatacommunities.org/id/county-council/surrey,Surrey,http://id.esd.org.uk/service/1465,Council expenditure,05/07/2016,ROW VOLUNTEERS EAST                     ,FARM SUPPLIES GARDEN S,86.23,EQUIPMENT,LAWN AND GARDEN SUPPLY STORES
24/10/2016,http://opendatacommunities.org/id/county-council/surrey,Surrey,http://id.esd.org.uk/service/1465,Council expenditure,05/07/2016,TARGETED INTERVENTION,MERCEDES-BENZ WORLD,7.50,EDUC VISITS/HOLS/CAMPS/TOYS,"EATING PLACES, RESTAURANTS"
24/10/2016,http://opendatacommunities.org/id/county-council/surrey,Surrey,http://id.esd.org.uk/service/1465,Council expenditure,05/07/2016,TRANSPORT,SCREWFIX DIRECT,5.98,DAY TO DAY MAINTENANCE,"BUILDING MATERIALS, LUMBER STORES"
24/10/2016,http://opendatacommunities.org/id/county-council/surrey,Surrey,http://id.esd.org.uk/service/1465,Council expenditure,05/07/2016,SOLD DAY TO DAY OPERATIONS,NEWITTSCOM,16.43,EQUIPMENT,"SPORTS APPAREL, RIDING APPAREL STORES"
24/10/2016,http://opendatacommunities.org/id/county-council/surrey,Surrey,http://id.esd.org.uk/service/1465,Council expenditure,05/07/2016,FAIRCROFT COMMUNITY HOME,TESCO STORE 2160,59.00,PURCHASE OF FOOD (RAW MATERIALS),"GROCERY STORES, SUPERMARKETS"
24/10/2016,http://opendatacommunities.org/id/county-council/surrey,Surrey,http://id.esd.org.uk/service/1465,Council expenditure,05/07/2016,READY FOR WORK YSS,CITB,30.00,EQUIPMENT,"COLLEGES, UNIV, PRO SCHOOLS, JUNIOR COLLEGES"
24/10/2016,http://opendatacommunities.org/id/county-council/surrey,Surrey,http://id.esd.org.uk/service/1465,Council expenditure,05/07/2016,IMT PRODUCTION APPLICATIONS TEAM,PAYPAL  ROYAL MAIL,3.90,EQUIPMENT,PROFESSIONAL SERVICES-NOT ELSEWHERE CLASSIFIED
24/10/2016,http://opendatacommunities.org/id/county-council/surrey,Surrey,http://id.esd.org.uk/service/1465,Council expenditure,05/07/2016,LIBERTAS COMMUNITY HOME,SAINSBURYS 0652,5.50,EQUIPMENT,"GROCERY STORES, SUPERMARKETS"
24/10/2016,http://opendatacommunities.org/id/county-council/surrey,Surrey,http://id.esd.org.uk/service/1465,Council expenditure,05/07/2016,LIBERTAS COMMUNITY HOME,SAINSBURYS 0652,8.60,PURCHASE OF FOOD (RAW MATERIALS),"GROCERY STORES, SUPERMARKETS"
24/10/2016,http://opendatacommunities.org/id/county-council/surrey,Surrey,http://id.esd.org.uk/service/1465,Council expenditure,05/07/2016,LIBERTAS COMMUNITY HOME,SAINSBURYS 0652,157.59,PURCHASE OF FOOD (RAW MATERIALS),"GROCERY STORES, SUPERMARKETS"
24/10/2016,http://opendatacommunities.org/id/county-council/surrey,Surrey,http://id.esd.org.uk/service/1465,Council expenditure,05/07/2016,LINTONS YC,CO-OP GROUP 310385,2.70,REFRESHMENT COSTS,"GROCERY STORES, SUPERMARKETS"
24/10/2016,http://opendatacommunities.org/id/county-council/surrey,Surrey,http://id.esd.org.uk/service/1465,Council expenditure,05/07/2016,HILLSIDE,SAINSBURYS 0675,8.05,PURCHASE OF FOOD (RAW MATERIALS),"GROCERY STORES, SUPERMARKETS"
24/10/2016,http://opendatacommunities.org/id/county-council/surrey,Surrey,http://id.esd.org.uk/service/1465,Council expenditure,05/07/2016,HILLSIDE,SAINSBURYS 0675,55.66,PURCHASE OF FOOD (RAW MATERIALS),"GROCERY STORES, SUPERMARKETS"
24/10/2016,http://opendatacommunities.org/id/county-council/surrey,Surrey,http://id.esd.org.uk/service/1465,Council expenditure,05/07/2016,NW CARE - NON-LAC CP & COURT,THE OLD OAK TREE,500.00,CHILDREN ACT SEC 17 PAYMENTS,"LODGING-HOTELS,MOTELS,RESORTS-NOT CLASSIFIED"
24/10/2016,http://opendatacommunities.org/id/county-council/surrey,Surrey,http://id.esd.org.uk/service/1465,Council expenditure,05/07/2016,SE CARE - CP & COURT LAC,GRO HM PASSPORT OFFICE,9.25,CHILDREN ACT SEC 17 PAYMENTS,GOVERNMENT SERVICES-NOT ELSEWHERE CLASSIFIED
24/10/2016,http://opendatacommunities.org/id/county-council/surrey,Surrey,http://id.esd.org.uk/service/1465,Council expenditure,05/07/2016,ROW VOLUNTEERS EAST                     ,SHELL BUCKLAND 238,6.06,PETROL/DIESEL ALL OFF BUSINESS,SERVICE STATIONS WITH OR WITHOUT ANCILLARY SERVICE
24/10/2016,http://opendatacommunities.org/id/county-council/surrey,Surrey,http://id.esd.org.uk/service/1465,Council expenditure,05/07/2016,THE BRIDGE YC,AMAZON UK MARKETPLACE,81.80,EQUIPMENT,BOOK STORES
24/10/2016,http://opendatacommunities.org/id/county-council/surrey,Surrey,http://id.esd.org.uk/service/1465,Council expenditure,05/07/2016,FOSTERING SERVICE CENTRAL COSTS,AMAZON EU,61.34,CHILDREN ACT SEC 17 PAYMENTS,DIRECT MARKETING-OTHER DIRECT MARKETERS/NOT ELSEW.
24/10/2016,http://opendatacommunities.org/id/county-council/surrey,Surrey,http://id.esd.org.uk/service/1465,Council expenditure,05/07/2016,SPLASH PROJECT,AMAZON EU,19.50,EQUIPMENT,DIRECT MARKETING-OTHER DIRECT MARKETERS/NOT ELSEW.
24/10/2016,http://opendatacommunities.org/id/county-council/surrey,Surrey,http://id.esd.org.uk/service/1465,Council expenditure,05/07/2016,THE BRIDGE YC,AMAZON UK MARKETPLACE,2.10,EQUIPMENT,BOOK STORES
24/10/2016,http://opendatacommunities.org/id/county-council/surrey,Surrey,http://id.esd.org.uk/service/1465,Council expenditure,05/07/2016,AEO MANAGEMENT TEAM (NW),SURREY CC CARD PAY,50.00,TRAINING EXPENSES EXTERNAL GENERAL,COMPUTER NETWORK/INFORMATION SERVICES
24/10/2016,http://opendatacommunities.org/id/county-council/surrey,Surrey,http://id.esd.org.uk/service/1465,Council expenditure,05/07/2016,STANWELL YOUTH CLUB,AMAZON UK MARKETPLACE,23.06,EQUIPMENT,BOOK STORES
24/10/2016,http://opendatacommunities.org/id/county-council/surrey,Surrey,http://id.esd.org.uk/service/1465,Council expenditure,05/07/2016,YSS YOUTH CENTRE IMPROVEMENTS,ROBERT DYAS HOLDNG LTD,134.94,EQUIPMENT,HARDWARE STORES
24/10/2016,http://opendatacommunities.org/id/county-council/surrey,Surrey,http://id.esd.org.uk/service/1465,Council expenditure,05/07/2016,HILLSIDE,TESCO STORES,7.29,PURCHASE OF FOOD (RAW MATERIALS),"GROCERY STORES, SUPERMARKETS"
24/10/2016,http://opendatacommunities.org/id/county-council/surrey,Surrey,http://id.esd.org.uk/service/1465,Council expenditure,05/07/2016,CURRICULUM SUPPORT,FRESH CHOICES,44.95,REFRESHMENT COSTS,"MISC FOOD STORE-CONVENIENCE,MRKT,SPLTY,VENDNG MACS"
24/10/2016,http://opendatacommunities.org/id/county-council/surrey,Surrey,http://id.esd.org.uk/service/1465,Council expenditure,05/07/2016,IMT SUPPORT FOR FIRE & RESCUE,NEW SOUTHERN RAILW,31.80,SUBSISTENCE AND CONFERENCE EXPENSES,PASSENGER RAILWAYS
24/10/2016,http://opendatacommunities.org/id/county-council/surrey,Surrey,http://id.esd.org.uk/service/1465,Council expenditure,05/07/2016,FOSTERING SERVICE CENTRAL COSTS,AMAZON EU,118.56,EDUC VISITS/HOLS/CAMPS/TOYS,DIRECT MARKETING-OTHER DIRECT MARKETERS/NOT ELSEW.
24/10/2016,http://opendatacommunities.org/id/county-council/surrey,Surrey,http://id.esd.org.uk/service/1465,Council expenditure,05/07/2016,EXTENDED HOPE,AMAZON UK MARKETPLACE,22.94,EQUIPMENT,BOOK STORES
24/10/2016,http://opendatacommunities.org/id/county-council/surrey,Surrey,http://id.esd.org.uk/service/1465,Council expenditure,05/07/2016,EXTENDED HOPE,AMAZON UK MARKETPLACE,4.29,EQUIPMENT,BOOK STORES
24/10/2016,http://opendatacommunities.org/id/county-council/surrey,Surrey,http://id.esd.org.uk/service/1465,Council expenditure,05/07/2016,THE BRIDGE YC,AMAZON UK MARKETPLACE,36.49,EQUIPMENT,BOOK STORES
24/10/2016,http://opendatacommunities.org/id/county-council/surrey,Surrey,http://id.esd.org.uk/service/1465,Council expenditure,05/07/2016,FOSTERING SERVICE CENTRAL COSTS,AMAZON UK MARKETPLACE,4.36,EDUC VISITS/HOLS/CAMPS/TOYS,BOOK STORES
24/10/2016,http://opendatacommunities.org/id/county-council/surrey,Surrey,http://id.esd.org.uk/service/1465,Council expenditure,05/07/2016,TARGETED INTERVENTION,STARBUCKS,5.15,EDUC VISITS/HOLS/CAMPS/TOYS,FAST FOOD RESTAURANTS
24/10/2016,http://opendatacommunities.org/id/county-council/surrey,Surrey,http://id.esd.org.uk/service/1465,Council expenditure,05/07/2016,ARUNDEL,EPSOM PLAYHOUSE,49.70,EDUC VISITS/HOLS/CAMPS/TOYS,MISCELLANEOUS GENERAL MERCHANDISE
24/10/2016,http://opendatacommunities.org/id/county-council/surrey,Surrey,http://id.esd.org.uk/service/1465,Council expenditure,05/07/2016,TRANSPORT,SCREWFIX DIRECT,14.99,DAY TO DAY MAINTENANCE,"BUILDING MATERIALS, LUMBER STORES"
24/10/2016,http://opendatacommunities.org/id/county-council/surrey,Surrey,http://id.esd.org.uk/service/1465,Council expenditure,05/07/2016,FOSTERING SERVICE CENTRAL COSTS,AMAZON UK MARKETPLACE,12.80,EDUC VISITS/HOLS/CAMPS/TOYS,BOOK STORES
24/10/2016,http://opendatacommunities.org/id/county-council/surrey,Surrey,http://id.esd.org.uk/service/1465,Council expenditure,05/07/2016,SUNBURY YC,FARMFOODS- SUNBURY,8.71,PURCHASE OF FOOD (RAW MATERIALS),"GROCERY STORES, SUPERMARKETS"
24/10/2016,http://opendatacommunities.org/id/county-council/surrey,Surrey,http://id.esd.org.uk/service/1465,Council expenditure,05/07/2016,FRIMLEY YC,ONE STOP 1396,5.80,REFRESHMENT COSTS,"GROCERY STORES, SUPERMARKETS"
24/10/2016,http://opendatacommunities.org/id/county-council/surrey,Surrey,http://id.esd.org.uk/service/1465,Council expenditure,05/07/2016,ORDER TO CASH TEAM,WWW.MONEYCLAIM.GOV,105.00,FEES,GOVERNMENT SERVICES-NOT ELSEWHERE CLASSIFIED
24/10/2016,http://opendatacommunities.org/id/county-council/surrey,Surrey,http://id.esd.org.uk/service/1465,Council expenditure,05/07/2016,CONDITION REPAIRS - TEAM 4 - NPR,AMAZON UK MARKETPLACE,32.75,EQUIPMENT,BOOK STORES
24/10/2016,http://opendatacommunities.org/id/county-council/surrey,Surrey,http://id.esd.org.uk/service/1465,Council expenditure,05/07/2016,YSS YOUTH CENTRE IMPROVEMENTS,ARGOS LTD,123.94,EQUIPMENT,DISCOUNT STORES
24/10/2016,http://opendatacommunities.org/id/county-council/surrey,Surrey,http://id.esd.org.uk/service/1465,Council expenditure,05/07/2016,ADDLESTONE YC,TESCO STORES-2017,17.72,CURRICULUM CONSUMABLES,"GROCERY STORES, SUPERMARKETS"
24/10/2016,http://opendatacommunities.org/id/county-council/surrey,Surrey,http://id.esd.org.uk/service/1465,Council expenditure,05/07/2016,COUNTY HALL,WOODLAND PRODUCTS DESI,29.40,DAY TO DAY MAINTENANCE,GENERAL CONTRACTORS/RESIDENTIAL BUILDINGS
24/10/2016,http://opendatacommunities.org/id/county-council/surrey,Surrey,http://id.esd.org.uk/service/1465,Council expenditure,05/07/2016,BURBANK COMMUNITY HOME,LONDIS,6.00,PURCHASE OF FOOD (RAW MATERIALS),"GROCERY STORES, SUPERMARKETS"
24/10/2016,http://opendatacommunities.org/id/county-council/surrey,Surrey,http://id.esd.org.uk/service/1465,Council expenditure,05/07/2016,SECTOR MANAGER,ROYAL MAIL,235.00,POSTAGE AND COURIER CHARGES,POSTAL SERVICES-GOVERNMENT ONLY
24/10/2016,http://opendatacommunities.org/id/county-council/surrey,Surrey,http://id.esd.org.uk/service/1465,Council expenditure,05/07/2016,ORDER TO CASH TEAM,WWW.MONEYCLAIM.GOV,70.00,FEES,GOVERNMENT SERVICES-NOT ELSEWHERE CLASSIFIED
24/10/2016,http://opendatacommunities.org/id/county-council/surrey,Surrey,http://id.esd.org.uk/service/1465,Council expenditure,05/07/2016,SOLD DAY TO DAY OPERATIONS,WWW.LEISURE.ORDNANCE,23.99,SUBSCRIPTIONS,DIRECT MARKETING-CATALOG MERCHANTS
24/10/2016,http://opendatacommunities.org/id/county-council/surrey,Surrey,http://id.esd.org.uk/service/1465,Council expenditure,05/07/2016,TARGETED INTERVENTION,MERCEDES-BENZ WORLD,8.15,EDUC VISITS/HOLS/CAMPS/TOYS,"EATING PLACES, RESTAURANTS"
24/10/2016,http://opendatacommunities.org/id/county-council/surrey,Surrey,http://id.esd.org.uk/service/1465,Council expenditure,05/07/2016,HOPE SERVICE - WEST,SAINSBURYS SACAT 0686,32.73,PURCHASE OF FOOD (RAW MATERIALS),"GROCERY STORES, SUPERMARKETS"
24/10/2016,http://opendatacommunities.org/id/county-council/surrey,Surrey,http://id.esd.org.uk/service/1465,Council expenditure,05/07/2016,SOLD DAY TO DAY OPERATIONS,TRANSAIR /UK/ LTD,23.40,EQUIPMENT,SPORTING GOODS STORES
24/10/2016,http://opendatacommunities.org/id/county-council/surrey,Surrey,http://id.esd.org.uk/service/1465,Council expenditure,06/07/2016,NW CARE - CP & COURT LAC,TVLICENSING.CO.UK,145.50,INDEPENDENT LIVING PLACEMENTS,"CONSULTING, MANAGEMENT, AND PUBLIC RELATIONS SVCS"
24/10/2016,http://opendatacommunities.org/id/county-council/surrey,Surrey,http://id.esd.org.uk/service/1465,Council expenditure,06/07/2016,FOSTERING SERVICE CENTRAL COSTS,ARGOS DIRECT,-104.99,FURNITURE,DISCOUNT STORES
24/10/2016,http://opendatacommunities.org/id/county-council/surrey,Surrey,http://id.esd.org.uk/service/1465,Council expenditure,06/07/2016,WOODLANDS COMMUNITY HOME,PAYPAL  BLACKS,211.65,EQUIPMENT,MEN'S AND BOY'S CLOTHING AND ACCESSORIES STORES
24/10/2016,http://opendatacommunities.org/id/county-council/surrey,Surrey,http://id.esd.org.uk/service/1465,Council expenditure,06/07/2016,THE STREET YC,BP HILLSIDE CONNECT,5.39,REFRESHMENT COSTS,SERVICE STATIONS WITH OR WITHOUT ANCILLARY SERVICE
24/10/2016,http://opendatacommunities.org/id/county-council/surrey,Surrey,http://id.esd.org.uk/service/1465,Council expenditure,06/07/2016,PSS COUNTYWIDE,AMAZON UK MARKETPLACE,13.05,EQUIPMENT,BOOK STORES
24/10/2016,http://opendatacommunities.org/id/county-council/surrey,Surrey,http://id.esd.org.uk/service/1465,Council expenditure,06/07/2016,ARUNDEL,ARGOS EWELL INSIDE,-26.99,EQUIPMENT,DISCOUNT STORES
24/10/2016,http://opendatacommunities.org/id/county-council/surrey,Surrey,http://id.esd.org.uk/service/1465,Council expenditure,06/07/2016,BURBANK COMMUNITY HOME,SAINSBURYS TO YOU 0686,316.78,PURCHASE OF FOOD (RAW MATERIALS),"GROCERY STORES, SUPERMARKETS"
24/10/2016,http://opendatacommunities.org/id/county-council/surrey,Surrey,http://id.esd.org.uk/service/1465,Council expenditure,06/07/2016,ACL CENTRAL EXPENDITURE,W M MORRISONS,16.77,REFRESHMENT COSTS,"GROCERY STORES, SUPERMARKETS"
24/10/2016,http://opendatacommunities.org/id/county-council/surrey,Surrey,http://id.esd.org.uk/service/1465,Council expenditure,06/07/2016,BANSTEAD YC,AIRHOP TRAMPELINE PARK,290.00,EDUC VISITS/HOLS/CAMPS/TOYS,RECREATIONAL AND SPORTING CAMPS
24/10/2016,http://opendatacommunities.org/id/county-council/surrey,Surrey,http://id.esd.org.uk/service/1465,Council expenditure,06/07/2016,TS SERVICE MANAGEMENT,SP  FIELD AND STABLE,10.00,FEES,COMPUTER SOFTWARE STORES
24/10/2016,http://opendatacommunities.org/id/county-council/surrey,Surrey,http://id.esd.org.uk/service/1465,Council expenditure,06/07/2016,CRANLEIGH YC,CO-OP GROUP 500340,4.04,PURCHASE OF FOOD (RAW MATERIALS),"GROCERY STORES, SUPERMARKETS"
24/10/2016,http://opendatacommunities.org/id/county-council/surrey,Surrey,http://id.esd.org.uk/service/1465,Council expenditure,06/07/2016,LEACROFT YC,ASDA  STORES,217.18,REFRESHMENT COSTS,"GROCERY STORES, SUPERMARKETS"
24/10/2016,http://opendatacommunities.org/id/county-council/surrey,Surrey,http://id.esd.org.uk/service/1465,Council expenditure,06/07/2016,THE BRIDGE YC,AMAZON UK MARKETPLACE,79.84,EQUIPMENT,BOOK STORES
24/10/2016,http://opendatacommunities.org/id/county-council/surrey,Surrey,http://id.esd.org.uk/service/1465,Council expenditure,06/07/2016,CORONER,SAINSBURYS TO YOU 0686,51.00,REFRESHMENT COSTS,"GROCERY STORES, SUPERMARKETS"
24/10/2016,http://opendatacommunities.org/id/county-council/surrey,Surrey,http://id.esd.org.uk/service/1465,Council expenditure,06/07/2016,FRIMLEY YC,SAINSBURYS SACAT 0675,18.35,REFRESHMENT COSTS,"GROCERY STORES, SUPERMARKETS"
24/10/2016,http://opendatacommunities.org/id/county-council/surrey,Surrey,http://id.esd.org.uk/service/1465,Council expenditure,06/07/2016,TRANSPORT,AMAZON UK RETAIL AMAZO,24.99,FURNITURE,MISCELLANEOUS AND SPECIALTY RETAIL STORES
24/10/2016,http://opendatacommunities.org/id/county-council/surrey,Surrey,http://id.esd.org.uk/service/1465,Council expenditure,06/07/2016,PSS COUNTYWIDE,AMAZON UK MARKETPLACE,22.74,EQUIPMENT,BOOK STORES
24/10/2016,http://opendatacommunities.org/id/county-council/surrey,Surrey,http://id.esd.org.uk/service/1465,Council expenditure,06/07/2016,SOLD CURRICULUM PROGRAMME DELIVERY,AMAZON EU,105.54,EQUIPMENT,DIRECT MARKETING-OTHER DIRECT MARKETERS/NOT ELSEW.
24/10/2016,http://opendatacommunities.org/id/county-council/surrey,Surrey,http://id.esd.org.uk/service/1465,Council expenditure,06/07/2016,HORLEY LIBRARY,J R BOURNE ENGINEERING,25.19,EQUIPMENT,OFFICE AND COMMERCIAL FURNITURE
24/10/2016,http://opendatacommunities.org/id/county-council/surrey,Surrey,http://id.esd.org.uk/service/1465,Council expenditure,06/07/2016,MALLOW CRESCENT,SAINSBURYS TO YOU 0686,13.25,PURCHASE OF FOOD (RAW MATERIALS),"GROCERY STORES, SUPERMARKETS"
24/10/2016,http://opendatacommunities.org/id/county-council/surrey,Surrey,http://id.esd.org.uk/service/1465,Council expenditure,06/07/2016,MALLOW CRESCENT,SAINSBURYS TO YOU 0686,129.49,PURCHASE OF FOOD (RAW MATERIALS),"GROCERY STORES, SUPERMARKETS"
24/10/2016,http://opendatacommunities.org/id/county-council/surrey,Surrey,http://id.esd.org.uk/service/1465,Council expenditure,06/07/2016,THE BRIDGE YC,AMAZON UK MARKETPLACE,103.98,EQUIPMENT,BOOK STORES
24/10/2016,http://opendatacommunities.org/id/county-council/surrey,Surrey,http://id.esd.org.uk/service/1465,Council expenditure,06/07/2016,ARUNDEL,TESCO STORES 5999,77.41,REFRESHMENT COSTS,"GROCERY STORES, SUPERMARKETS"
24/10/2016,http://opendatacommunities.org/id/county-council/surrey,Surrey,http://id.esd.org.uk/service/1465,Council expenditure,06/07/2016,SOUTH WEST OUTREACH,ARGOS RETAIL GROUP,20.94,EQUIPMENT,DISCOUNT STORES
24/10/2016,http://opendatacommunities.org/id/county-council/surrey,Surrey,http://id.esd.org.uk/service/1465,Council expenditure,06/07/2016,THE BRIDGE YC,AMAZON UK MARKETPLACE,14.99,EQUIPMENT,BOOK STORES
24/10/2016,http://opendatacommunities.org/id/county-council/surrey,Surrey,http://id.esd.org.uk/service/1465,Council expenditure,06/07/2016,SOLD CURRICULUM PROGRAMME DELIVERY,AMAZON EU,100.80,EQUIPMENT,DIRECT MARKETING-OTHER DIRECT MARKETERS/NOT ELSEW.
24/10/2016,http://opendatacommunities.org/id/county-council/surrey,Surrey,http://id.esd.org.uk/service/1465,Council expenditure,06/07/2016,APPLEWOOD,DOMESTIC & GENERAL,191.88,EQUIPMENT,"INSURANCE SALES,UNDERWRITING,AND PREMIUMS"
24/10/2016,http://opendatacommunities.org/id/county-council/surrey,Surrey,http://id.esd.org.uk/service/1465,Council expenditure,06/07/2016,RUTH HOUSE,AMAZON UK MARKETPLACE,2.89,EDUC VISITS/HOLS/CAMPS/TOYS,BOOK STORES
24/10/2016,http://opendatacommunities.org/id/county-council/surrey,Surrey,http://id.esd.org.uk/service/1465,Council expenditure,06/07/2016,HILLSIDE,TESCO STORES,28.16,PURCHASE OF FOOD (RAW MATERIALS),"GROCERY STORES, SUPERMARKETS"
24/10/2016,http://opendatacommunities.org/id/county-council/surrey,Surrey,http://id.esd.org.uk/service/1465,Council expenditure,06/07/2016,RUTH HOUSE,WOKING GARDEN CENT,22.48,EDUC VISITS/HOLS/CAMPS/TOYS,LAWN AND GARDEN SUPPLY STORES
24/10/2016,http://opendatacommunities.org/id/county-council/surrey,Surrey,http://id.esd.org.uk/service/1465,Council expenditure,06/07/2016,TARGETED INTERVENTION,SAINSBURYS PFS 0096,5.75,EDUC VISITS/HOLS/CAMPS/TOYS,SERVICE STATIONS WITH OR WITHOUT ANCILLARY SERVICE
24/10/2016,http://opendatacommunities.org/id/county-council/surrey,Surrey,http://id.esd.org.uk/service/1465,Council expenditure,06/07/2016,DCLG FIRE CONTROL GRANT (CAPITAL),AMAZON UK MARKETPLACE,169.99,CE04 CAPITAL ICT,BOOK STORES
24/10/2016,http://opendatacommunities.org/id/county-council/surrey,Surrey,http://id.esd.org.uk/service/1465,Council expenditure,06/07/2016,KARIBU COMMUNITY HOME,SAINSBURYS 0683,60.17,PURCHASE OF FOOD (RAW MATERIALS),"GROCERY STORES, SUPERMARKETS"
24/10/2016,http://opendatacommunities.org/id/county-council/surrey,Surrey,http://id.esd.org.uk/service/1465,Council expenditure,06/07/2016,CSF COMMUNICATIONS TEAM,HOOTSUITE MEDIA INC.,9.59,SUBSCRIPTIONS,BUSINESS SERVICES-NOT ELSEWHERE CLASSIFIED
24/10/2016,http://opendatacommunities.org/id/county-council/surrey,Surrey,http://id.esd.org.uk/service/1465,Council expenditure,06/07/2016,SOLD CURRICULUM PROGRAMME DELIVERY,AMAZON EU,105.54,EQUIPMENT,DIRECT MARKETING-OTHER DIRECT MARKETERS/NOT ELSEW.
24/10/2016,http://opendatacommunities.org/id/county-council/surrey,Surrey,http://id.esd.org.uk/service/1465,Council expenditure,06/07/2016,BURBANK COMMUNITY HOME,WICKES,46.78,DAY TO DAY MAINTENANCE,HOME SUPPLY WAREHOUSE STORES
24/10/2016,http://opendatacommunities.org/id/county-council/surrey,Surrey,http://id.esd.org.uk/service/1465,Council expenditure,06/07/2016,LIBERTAS COMMUNITY HOME,WWW.EUREKADIRECT.CO.UK,132.18,EQUIPMENT,DENTAL/LAB/MED/OPHTHALMIC HOSP EQUIP & SUPPLIES
24/10/2016,http://opendatacommunities.org/id/county-council/surrey,Surrey,http://id.esd.org.uk/service/1465,Council expenditure,06/07/2016,BURBANK COMMUNITY HOME,AMAZON UK MARKETPLACE,5.36,EQUIPMENT,BOOK STORES
24/10/2016,http://opendatacommunities.org/id/county-council/surrey,Surrey,http://id.esd.org.uk/service/1465,Council expenditure,06/07/2016,ASHTEAD YC,TESCO STORE 2812,10.15,PURCHASE OF FOOD (RAW MATERIALS),"GROCERY STORES, SUPERMARKETS"
24/10/2016,http://opendatacommunities.org/id/county-council/surrey,Surrey,http://id.esd.org.uk/service/1465,Council expenditure,06/07/2016,ADDLESTONE YC,HOBBYCRAFT,24.00,CURRICULUM CONSUMABLES,"ARTIST SUPPLY STORES, CRAFT SHOPS"
24/10/2016,http://opendatacommunities.org/id/county-council/surrey,Surrey,http://id.esd.org.uk/service/1465,Council expenditure,06/07/2016,BURBANK COMMUNITY HOME,HALFORDS 0421,2.99,VEHICLE REPAIRS AND MAINTENANCE,BICYCLE SHOPS-SALES AND SERVICE
24/10/2016,http://opendatacommunities.org/id/county-council/surrey,Surrey,http://id.esd.org.uk/service/1465,Council expenditure,06/07/2016,YSS YOUTH CENTRE IMPROVEMENTS,AMAZON UK MARKETPLACE,10.00,EQUIPMENT,BOOK STORES
24/10/2016,http://opendatacommunities.org/id/county-council/surrey,Surrey,http://id.esd.org.uk/service/1465,Council expenditure,06/07/2016,NORTH EAST AREA TEAM,WWW.PARKMOBILE.COM,6.20,EDUC VISITS/HOLS/CAMPS/TOYS,AUTOMOBILE PARKING LOTS AND GARAGES
24/10/2016,http://opendatacommunities.org/id/county-council/surrey,Surrey,http://id.esd.org.uk/service/1465,Council expenditure,06/07/2016,CHILDREN'S RIGHTS TEAM,PIZZA HUT ONLINE WEB,57.98,REFRESHMENT COSTS,"EATING PLACES, RESTAURANTS"
24/10/2016,http://opendatacommunities.org/id/county-council/surrey,Surrey,http://id.esd.org.uk/service/1465,Council expenditure,06/07/2016,LIBERTAS COMMUNITY HOME,ARGOS LTD,34.99,FURNITURE,DISCOUNT STORES
24/10/2016,http://opendatacommunities.org/id/county-council/surrey,Surrey,http://id.esd.org.uk/service/1465,Council expenditure,06/07/2016,SOLD CURRICULUM PROGRAMME DELIVERY,AMAZON EU,105.54,EQUIPMENT,DIRECT MARKETING-OTHER DIRECT MARKETERS/NOT ELSEW.
24/10/2016,http://opendatacommunities.org/id/county-council/surrey,Surrey,http://id.esd.org.uk/service/1465,Council expenditure,06/07/2016,BURBANK COMMUNITY HOME,HALFORDS 0421,7.99,VEHICLE RUNNING COSTS,BICYCLE SHOPS-SALES AND SERVICE
24/10/2016,http://opendatacommunities.org/id/county-council/surrey,Surrey,http://id.esd.org.uk/service/1465,Council expenditure,06/07/2016,THE BRIDGE YC,AMAZON UK MARKETPLACE,20.45,EQUIPMENT,BOOK STORES
24/10/2016,http://opendatacommunities.org/id/county-council/surrey,Surrey,http://id.esd.org.uk/service/1465,Council expenditure,06/07/2016,PROPERTY OPERATIONS TEAM,TOOLSTATION LTD,34.53,PURCHASE OF BUILDING MATERIALS,HARDWARE STORES
24/10/2016,http://opendatacommunities.org/id/county-council/surrey,Surrey,http://id.esd.org.uk/service/1465,Council expenditure,06/07/2016,SOLD ESTATES MANAGEMENT,DVLA VEHICLE TAX,297.50,VEHICLE RUNNING COSTS,GOVERNMENT SERVICES-NOT ELSEWHERE CLASSIFIED
24/10/2016,http://opendatacommunities.org/id/county-council/surrey,Surrey,http://id.esd.org.uk/service/1465,Council expenditure,06/07/2016,DOWNLANDS COUNTRYSIDE PROJECT,HORNERSHEARING.COM,697.14,EQUIPMENT,HARDWARE STORES
24/10/2016,http://opendatacommunities.org/id/county-council/surrey,Surrey,http://id.esd.org.uk/service/1465,Council expenditure,06/07/2016,STRATEGIC DIRECTOR CSF,LINCOLNSHIRE.GOV.U,250.00,TRAINING EXPENSES EXTERNAL GENERAL,GOVERNMENT SERVICES-NOT ELSEWHERE CLASSIFIED
24/10/2016,http://opendatacommunities.org/id/county-council/surrey,Surrey,http://id.esd.org.uk/service/1465,Council expenditure,06/07/2016,HILLSIDE,SAINSBURYS 0675,6.80,PURCHASE OF FOOD (RAW MATERIALS),"GROCERY STORES, SUPERMARKETS"
24/10/2016,http://opendatacommunities.org/id/county-council/surrey,Surrey,http://id.esd.org.uk/service/1465,Council expenditure,06/07/2016,HILLSIDE,SAINSBURYS 0675,74.05,PURCHASE OF FOOD (RAW MATERIALS),"GROCERY STORES, SUPERMARKETS"
24/10/2016,http://opendatacommunities.org/id/county-council/surrey,Surrey,http://id.esd.org.uk/service/1465,Council expenditure,06/07/2016,NW CARE - NON-LAC CP & COURT,STRONGBONES,40.00,CHILDREN ACT SEC 17 PAYMENTS,"ORGANIZATIONS, CHARITABLE AND SOCIAL SERVICES"
24/10/2016,http://opendatacommunities.org/id/county-council/surrey,Surrey,http://id.esd.org.uk/service/1465,Council expenditure,06/07/2016,ARUNDEL,ARGOS EWELL INSIDE,155.94,EQUIPMENT,DISCOUNT STORES
24/10/2016,http://opendatacommunities.org/id/county-council/surrey,Surrey,http://id.esd.org.uk/service/1465,Council expenditure,06/07/2016,PSS COUNTYWIDE,AMAZON UK MARKETPLACE,5.96,EQUIPMENT,BOOK STORES
24/10/2016,http://opendatacommunities.org/id/county-council/surrey,Surrey,http://id.esd.org.uk/service/1465,Council expenditure,06/07/2016,ARUNDEL,HOMEBASE LTD 127,29.99,EQUIPMENT,"BUILDING MATERIALS, LUMBER STORES"
24/10/2016,http://opendatacommunities.org/id/county-council/surrey,Surrey,http://id.esd.org.uk/service/1465,Council expenditure,06/07/2016,GOGMORE PARK FARM YC,SAINSBURYS SACAT 0004,9.36,PURCHASE OF FOOD (RAW MATERIALS),"GROCERY STORES, SUPERMARKETS"
24/10/2016,http://opendatacommunities.org/id/county-council/surrey,Surrey,http://id.esd.org.uk/service/1465,Council expenditure,06/07/2016,PSS COUNTYWIDE,AMAZON UK MARKETPLACE,30.90,EQUIPMENT,BOOK STORES
24/10/2016,http://opendatacommunities.org/id/county-council/surrey,Surrey,http://id.esd.org.uk/service/1465,Council expenditure,06/07/2016,NW EDUCATION PSYCHOLOGISTS,WWW.NURTUREGROUPS.ORG,89.99,BOOKS,"ORGANIZATIONS, CHARITABLE AND SOCIAL SERVICES"
24/10/2016,http://opendatacommunities.org/id/county-council/surrey,Surrey,http://id.esd.org.uk/service/1465,Council expenditure,06/07/2016,NW EDUCATION PSYCHOLOGISTS,WWW.NURTUREGROUPS.ORG,6.66,BOOKS,"ORGANIZATIONS, CHARITABLE AND SOCIAL SERVICES"
24/10/2016,http://opendatacommunities.org/id/county-council/surrey,Surrey,http://id.esd.org.uk/service/1465,Council expenditure,06/07/2016,INVESTIGATIONS & ENFORCEMENT TEAM       ,AMAZON UK MARKETPLACE,5.83,EQUIPMENT,BOOK STORES
24/10/2016,http://opendatacommunities.org/id/county-council/surrey,Surrey,http://id.esd.org.uk/service/1465,Council expenditure,06/07/2016,ASH YC,POUNDLAND LTD 1518,3.00,EQUIPMENT,DISCOUNT STORES
24/10/2016,http://opendatacommunities.org/id/county-council/surrey,Surrey,http://id.esd.org.uk/service/1465,Council expenditure,06/07/2016,PSS COUNTYWIDE,AMAZON UK MARKETPLACE,5.13,EQUIPMENT,BOOK STORES
24/10/2016,http://opendatacommunities.org/id/county-council/surrey,Surrey,http://id.esd.org.uk/service/1465,Council expenditure,06/07/2016,INVESTIGATIONS & ENFORCEMENT TEAM       ,AMAZON UK MARKETPLACE,4.77,EQUIPMENT,BOOK STORES
24/10/2016,http://opendatacommunities.org/id/county-council/surrey,Surrey,http://id.esd.org.uk/service/1465,Council expenditure,06/07/2016,APPLEWOOD,ASDA HOME SHOPPING,-1.69,PURCHASE OF FOOD (RAW MATERIALS),"GROCERY STORES, SUPERMARKETS"
24/10/2016,http://opendatacommunities.org/id/county-council/surrey,Surrey,http://id.esd.org.uk/service/1465,Council expenditure,06/07/2016,NE CARE - LAC,IPS PETERBOROUGH CONTA,46.00,FEES,GOVERNMENT SERVICES-NOT ELSEWHERE CLASSIFIED
24/10/2016,http://opendatacommunities.org/id/county-council/surrey,Surrey,http://id.esd.org.uk/service/1465,Council expenditure,06/07/2016,WOODLANDS COMMUNITY HOME,POUNDLAND LTD,10.00,EDUC VISITS/HOLS/CAMPS/TOYS,DISCOUNT STORES
24/10/2016,http://opendatacommunities.org/id/county-council/surrey,Surrey,http://id.esd.org.uk/service/1465,Council expenditure,06/07/2016,WOODLANDS COMMUNITY HOME,POUNDLAND LTD,4.00,EDUC VISITS/HOLS/CAMPS/TOYS,DISCOUNT STORES
24/10/2016,http://opendatacommunities.org/id/county-council/surrey,Surrey,http://id.esd.org.uk/service/1465,Council expenditure,06/07/2016,STOUGHTON YC,CO-OP GROUP FOOD,8.93,PURCHASE OF FOOD (RAW MATERIALS),"GROCERY STORES, SUPERMARKETS"
24/10/2016,http://opendatacommunities.org/id/county-council/surrey,Surrey,http://id.esd.org.uk/service/1465,Council expenditure,06/07/2016,FAIRCROFT COMMUNITY HOME,HOME BARGAINS BYFLEET,11.60,EQUIPMENT,HARDWARE STORES
24/10/2016,http://opendatacommunities.org/id/county-council/surrey,Surrey,http://id.esd.org.uk/service/1465,Council expenditure,06/07/2016,PROPERTY OPERATIONS TEAM,SCREWFIX DIRECT,142.44,PURCHASE OF BUILDING MATERIALS,"BUILDING MATERIALS, LUMBER STORES"
24/10/2016,http://opendatacommunities.org/id/county-council/surrey,Surrey,http://id.esd.org.uk/service/1465,Council expenditure,06/07/2016,NW SECTION 17 CARE,TRAVELODGE,190.90,INDEPENDENT LIVING PLACEMENTS,TRAVELODGE
24/10/2016,http://opendatacommunities.org/id/county-council/surrey,Surrey,http://id.esd.org.uk/service/1465,Council expenditure,06/07/2016,APPLEWOOD,ASDA HOME SHOPPING,125.15,PURCHASE OF FOOD (RAW MATERIALS),"GROCERY STORES, SUPERMARKETS"
24/10/2016,http://opendatacommunities.org/id/county-council/surrey,Surrey,http://id.esd.org.uk/service/1465,Council expenditure,06/07/2016,WOODLANDS COMMUNITY HOME,WIMPY,12.35,REFRESHMENT COSTS,"EATING PLACES, RESTAURANTS"
24/10/2016,http://opendatacommunities.org/id/county-council/surrey,Surrey,http://id.esd.org.uk/service/1465,Council expenditure,06/07/2016,HOPE SERVICE - WEST,SAINSBURYS SACAT(4409),1.30,NEWSPAPER AND PERIODICALS,"GROCERY STORES, SUPERMARKETS"
24/10/2016,http://opendatacommunities.org/id/county-council/surrey,Surrey,http://id.esd.org.uk/service/1465,Council expenditure,06/07/2016,CHILDREN'S EMERGENCY DUTY TEAM,TRAVELODGE,72.95,OTHER COMMUNITY CARE PRIV,TRAVELODGE
24/10/2016,http://opendatacommunities.org/id/county-council/surrey,Surrey,http://id.esd.org.uk/service/1465,Council expenditure,06/07/2016,ACL CENTRAL EXPENDITURE,TESCO DELIVERY SAVER2,6.00,REFRESHMENT COSTS,DIRECT MARKETING-CONTINUITY/SUBSCRIPTION MERCHANTS
24/10/2016,http://opendatacommunities.org/id/county-council/surrey,Surrey,http://id.esd.org.uk/service/1465,Council expenditure,06/07/2016,E&I - LOVE FOOD HATE WASTE              ,GOOGLE  ADWS2060179426,500.00,PUBLICITY,DIRECT MARKETING-CONTINUITY/SUBSCRIPTION MERCHANTS
24/10/2016,http://opendatacommunities.org/id/county-council/surrey,Surrey,http://id.esd.org.uk/service/1465,Council expenditure,06/07/2016,BURBANK COMMUNITY HOME,GLEN DIMPLEX HOME APPL,145.00,EQUIPMENT,HOUSEHOLD APPLIANCE STORES
24/10/2016,http://opendatacommunities.org/id/county-council/surrey,Surrey,http://id.esd.org.uk/service/1465,Council expenditure,06/07/2016,WOODLANDS COMMUNITY HOME,CARD FACTORY,6.93,EDUC VISITS/HOLS/CAMPS/TOYS,"GIFT, CARD, NOVELTY AND SOUVENIR SHOPS"
24/10/2016,http://opendatacommunities.org/id/county-council/surrey,Surrey,http://id.esd.org.uk/service/1465,Council expenditure,06/07/2016,TRANSPORT,KENDON PACKAGING GROUP,200.72,OPERATIONAL FIRE EQUIPMENT,"OFFICE, SCHOOL SUPPLY, AND STATIONERY STORES"
24/10/2016,http://opendatacommunities.org/id/county-council/surrey,Surrey,http://id.esd.org.uk/service/1465,Council expenditure,06/07/2016,CHEYNE WALK COMMUNITY HOME,TESCO-STORES 6647,127.21,PURCHASE OF FOOD (RAW MATERIALS),"GROCERY STORES, SUPERMARKETS"
24/10/2016,http://opendatacommunities.org/id/county-council/surrey,Surrey,http://id.esd.org.uk/service/1465,Council expenditure,06/07/2016,TS SERVICE MANAGEMENT,FCC RECYCLING,172.46,FEES,"FREIGHT CARRIER,TRUCKING-LCL/LNG DIST, MVG/STORAGE"
24/10/2016,http://opendatacommunities.org/id/county-council/surrey,Surrey,http://id.esd.org.uk/service/1465,Council expenditure,06/07/2016,SOLD CURRICULUM PROGRAMME DELIVERY,AMAZON UK RETAIL AMAZO,35.18,EQUIPMENT,MISCELLANEOUS AND SPECIALTY RETAIL STORES
24/10/2016,http://opendatacommunities.org/id/county-council/surrey,Surrey,http://id.esd.org.uk/service/1465,Council expenditure,06/07/2016,PORTAGE SERVICE (SE),ROBERT DYAS HOLDNG LTD,99.95,EQUIPMENT,HARDWARE STORES
24/10/2016,http://opendatacommunities.org/id/county-council/surrey,Surrey,http://id.esd.org.uk/service/1465,Council expenditure,06/07/2016,TARGETED INTERVENTION,SWINLEY BIKE HUB LTD,10.00,EDUC VISITS/HOLS/CAMPS/TOYS,PROFESSIONAL SERVICES-NOT ELSEWHERE CLASSIFIED
24/10/2016,http://opendatacommunities.org/id/county-council/surrey,Surrey,http://id.esd.org.uk/service/1465,Council expenditure,06/07/2016,HOPE SERVICE - EAST,TESCO STORES 6320,4.15,PURCHASE OF FOOD (RAW MATERIALS),"GROCERY STORES, SUPERMARKETS"
24/10/2016,http://opendatacommunities.org/id/county-council/surrey,Surrey,http://id.esd.org.uk/service/1465,Council expenditure,06/07/2016,PROPERTY OPERATIONS TEAM,SCREWFIX GUILDFORD,66.45,PURCHASE OF BUILDING MATERIALS,"BUILDING MATERIALS, LUMBER STORES"
24/10/2016,http://opendatacommunities.org/id/county-council/surrey,Surrey,http://id.esd.org.uk/service/1465,Council expenditure,06/07/2016,HARRY'S YC,ORIGINAL FACTORY S,4.00,EQUIPMENT,DEPARTMENT STORES
24/10/2016,http://opendatacommunities.org/id/county-council/surrey,Surrey,http://id.esd.org.uk/service/1465,Council expenditure,06/07/2016,FIRE & RESCUE COMMUNITY SAFETY,ALL4BIKERS.COM,895.00,PUBLICITY,ADVERTISING SERVICES
24/10/2016,http://opendatacommunities.org/id/county-council/surrey,Surrey,http://id.esd.org.uk/service/1465,Council expenditure,06/07/2016,WOODLANDS COMMUNITY HOME,POUNDLAND LTD 1247,12.00,EDUC VISITS/HOLS/CAMPS/TOYS,DISCOUNT STORES
24/10/2016,http://opendatacommunities.org/id/county-council/surrey,Surrey,http://id.esd.org.uk/service/1465,Council expenditure,06/07/2016,WOODLANDS COMMUNITY HOME,POUNDLAND LTD 1247,3.00,EDUC VISITS/HOLS/CAMPS/TOYS,DISCOUNT STORES
24/10/2016,http://opendatacommunities.org/id/county-council/surrey,Surrey,http://id.esd.org.uk/service/1465,Council expenditure,06/07/2016,LEAVING CARE PACKAGES,TRAVELODGE,988.25,3RD PARTY PAYMENTS PRIVATE INDIV,TRAVELODGE
24/10/2016,http://opendatacommunities.org/id/county-council/surrey,Surrey,http://id.esd.org.uk/service/1465,Council expenditure,06/07/2016,ASH YC,SAINSBURYS SACAT(4409),1.10,PURCHASE OF FOOD (RAW MATERIALS),"GROCERY STORES, SUPERMARKETS"
24/10/2016,http://opendatacommunities.org/id/county-council/surrey,Surrey,http://id.esd.org.uk/service/1465,Council expenditure,06/07/2016,CHILDREN'S EMERGENCY DUTY TEAM,TRAVELODGE,-70.95,OTHER COMMUNITY CARE PRIV,TRAVELODGE
24/10/2016,http://opendatacommunities.org/id/county-council/surrey,Surrey,http://id.esd.org.uk/service/1465,Council expenditure,06/07/2016,YSS YOUTH CENTRE IMPROVEMENTS,AMAZON EU,20.71,EQUIPMENT,DIRECT MARKETING-OTHER DIRECT MARKETERS/NOT ELSEW.
24/10/2016,http://opendatacommunities.org/id/county-council/surrey,Surrey,http://id.esd.org.uk/service/1465,Council expenditure,06/07/2016,PSS COUNTYWIDE,AMAZON UK MARKETPLACE,9.90,EQUIPMENT,BOOK STORES
24/10/2016,http://opendatacommunities.org/id/county-council/surrey,Surrey,http://id.esd.org.uk/service/1465,Council expenditure,06/07/2016,PSS COUNTYWIDE,AMAZON UK MARKETPLACE,33.67,EQUIPMENT,BOOK STORES
24/10/2016,http://opendatacommunities.org/id/county-council/surrey,Surrey,http://id.esd.org.uk/service/1465,Council expenditure,06/07/2016,IMPROVING OUTCOMES - ECAT,AMAZON EU,21.99,BOOKS,DIRECT MARKETING-OTHER DIRECT MARKETERS/NOT ELSEW.
24/10/2016,http://opendatacommunities.org/id/county-council/surrey,Surrey,http://id.esd.org.uk/service/1465,Council expenditure,06/07/2016,ORBIS HR BUSINESS SERVICES & TRAINING,AMAZON UK MARKETPLACE,18.53,EQUIPMENT,BOOK STORES
24/10/2016,http://opendatacommunities.org/id/county-council/surrey,Surrey,http://id.esd.org.uk/service/1465,Council expenditure,07/07/2016,TARGETED INTERVENTION,WOKING SNOOKER CENTRE,10.00,EDUC VISITS/HOLS/CAMPS/TOYS,RECREATIONAL AND SPORTING CAMPS
24/10/2016,http://opendatacommunities.org/id/county-council/surrey,Surrey,http://id.esd.org.uk/service/1465,Council expenditure,07/07/2016,TRANSPORT,CPC,57.86,DAY TO DAY MAINTENANCE,ELECTRICAL PARTS AND EQUIPMENT
24/10/2016,http://opendatacommunities.org/id/county-council/surrey,Surrey,http://id.esd.org.uk/service/1465,Council expenditure,07/07/2016,IMT SUPPORT FOR FIRE & RESCUE,PREMIER FARNELL,26.70,COMPUTER CONSUMABLES,ELECTRICAL PARTS AND EQUIPMENT
24/10/2016,http://opendatacommunities.org/id/county-council/surrey,Surrey,http://id.esd.org.uk/service/1465,Council expenditure,07/07/2016,FOSTERING SERVICE CENTRAL COSTS,ARGOS DIRECT,-6.95,FURNITURE,DISCOUNT STORES
24/10/2016,http://opendatacommunities.org/id/county-council/surrey,Surrey,http://id.esd.org.uk/service/1465,Council expenditure,07/07/2016,THE STREET YC,BP HILLSIDE CONNECT,20.00,VEHICLE RUNNING COSTS,SERVICE STATIONS WITH OR WITHOUT ANCILLARY SERVICE
24/10/2016,http://opendatacommunities.org/id/county-council/surrey,Surrey,http://id.esd.org.uk/service/1465,Council expenditure,07/07/2016,WOKING LOCAL CARE LD,PREMIER INN,110.99,OTHER COMMUNITY CARE PRIV,PREMIER INN
24/10/2016,http://opendatacommunities.org/id/county-council/surrey,Surrey,http://id.esd.org.uk/service/1465,Council expenditure,07/07/2016,WARLINGHAM LIBRARY,AMAZON EU,63.71,EQUIPMENT,DIRECT MARKETING-OTHER DIRECT MARKETERS/NOT ELSEW.
24/10/2016,http://opendatacommunities.org/id/county-council/surrey,Surrey,http://id.esd.org.uk/service/1465,Council expenditure,07/07/2016,HOPE SERVICE - EAST,WHITE SPIDER,5.00,CURRICULUM CONSUMABLES,"CLUBS-CNTRY,MBRSHIP(ATHLET,REC,SPRTS,PRIVATE GOLF"
24/10/2016,http://opendatacommunities.org/id/county-council/surrey,Surrey,http://id.esd.org.uk/service/1465,Council expenditure,07/07/2016,THE BRIDGE YC,LIDL UK,3.96,PURCHASE OF FOOD (RAW MATERIALS),"GROCERY STORES, SUPERMARKETS"
24/10/2016,http://opendatacommunities.org/id/county-council/surrey,Surrey,http://id.esd.org.uk/service/1465,Council expenditure,07/07/2016,LOCAL DELIVERY GROUP,AMAZON EU,95.30,EQUIPMENT,DIRECT MARKETING-OTHER DIRECT MARKETERS/NOT ELSEW.
24/10/2016,http://opendatacommunities.org/id/county-council/surrey,Surrey,http://id.esd.org.uk/service/1465,Council expenditure,07/07/2016,HOPE SERVICE - EAST,AMAZON UK RETAIL AMAZO,8.99,CURRICULUM EQUIPMENT AND FURNITURE,MISCELLANEOUS AND SPECIALTY RETAIL STORES
24/10/2016,http://opendatacommunities.org/id/county-council/surrey,Surrey,http://id.esd.org.uk/service/1465,Council expenditure,07/07/2016,ENGLEFIELD GREEN YOUTH CENTRE,ALLDAYS,7.23,PURCHASE OF FOOD (RAW MATERIALS),"GROCERY STORES, SUPERMARKETS"
24/10/2016,http://opendatacommunities.org/id/county-council/surrey,Surrey,http://id.esd.org.uk/service/1465,Council expenditure,07/07/2016,HARRY'S YC,WM MORRISONS,28.83,PURCHASE OF FOOD (RAW MATERIALS),"GROCERY STORES, SUPERMARKETS"
24/10/2016,http://opendatacommunities.org/id/county-council/surrey,Surrey,http://id.esd.org.uk/service/1465,Council expenditure,07/07/2016,FAIRCROFT COMMUNITY HOME,POUNDLAND LTD 1518,1.05,EQUIPMENT,DISCOUNT STORES
24/10/2016,http://opendatacommunities.org/id/county-council/surrey,Surrey,http://id.esd.org.uk/service/1465,Council expenditure,07/07/2016,SUSTAINABILITY GROUP,EV CHARGING ELEKTROMOT,114.50,EQUIPMENT,DIRECT MARKETING-OTHER DIRECT MARKETERS/NOT ELSEW.
24/10/2016,http://opendatacommunities.org/id/county-council/surrey,Surrey,http://id.esd.org.uk/service/1465,Council expenditure,07/07/2016,HOPE SERVICE - WEST,TESCO-STORES 2590,16.10,PURCHASE OF FOOD (RAW MATERIALS),"GROCERY STORES, SUPERMARKETS"
24/10/2016,http://opendatacommunities.org/id/county-council/surrey,Surrey,http://id.esd.org.uk/service/1465,Council expenditure,07/07/2016,THAMES YOUNG MARINERS HAM,WICKES 266,112.57,DAY TO DAY MAINTENANCE,HOME SUPPLY WAREHOUSE STORES
24/10/2016,http://opendatacommunities.org/id/county-council/surrey,Surrey,http://id.esd.org.uk/service/1465,Council expenditure,07/07/2016,WOODLANDS COMMUNITY HOME,RYMAN,34.48,STATIONERY,"OFFICE, SCHOOL SUPPLY, AND STATIONERY STORES"
24/10/2016,http://opendatacommunities.org/id/county-council/surrey,Surrey,http://id.esd.org.uk/service/1465,Council expenditure,07/07/2016,STANWELL YOUTH CLUB,AMAZON UK MARKETPLACE,23.06,EQUIPMENT,BOOK STORES
24/10/2016,http://opendatacommunities.org/id/county-council/surrey,Surrey,http://id.esd.org.uk/service/1465,Council expenditure,07/07/2016,HILLSIDE,SAINSBURYS SACAT 0675,4.35,PURCHASE OF FOOD (RAW MATERIALS),"GROCERY STORES, SUPERMARKETS"
24/10/2016,http://opendatacommunities.org/id/county-council/surrey,Surrey,http://id.esd.org.uk/service/1465,Council expenditure,07/07/2016,HILLSIDE,SAINSBURYS SACAT 0675,6.30,PURCHASE OF FOOD (RAW MATERIALS),"GROCERY STORES, SUPERMARKETS"
24/10/2016,http://opendatacommunities.org/id/county-council/surrey,Surrey,http://id.esd.org.uk/service/1465,Council expenditure,07/07/2016,DEPUTYSHIP TEAM,CPM SERVICES (SOUT,269.99,3RD PARTY PAYMENTS PRIVATE INDIV,ELECTRICAL PARTS AND EQUIPMENT
24/10/2016,http://opendatacommunities.org/id/county-council/surrey,Surrey,http://id.esd.org.uk/service/1465,Council expenditure,07/07/2016,KARIBU COMMUNITY HOME,SAINSBURYS SACAT 0517,34.05,PURCHASE OF FOOD (RAW MATERIALS),"GROCERY STORES, SUPERMARKETS"
24/10/2016,http://opendatacommunities.org/id/county-council/surrey,Surrey,http://id.esd.org.uk/service/1465,Council expenditure,07/07/2016,HARRY'S YC,J H LORIMER,6.48,EQUIPMENT,"OFFICE, SCHOOL SUPPLY, AND STATIONERY STORES"
24/10/2016,http://opendatacommunities.org/id/county-council/surrey,Surrey,http://id.esd.org.uk/service/1465,Council expenditure,07/07/2016,WOODLANDS COMMUNITY HOME,GO OUTDOORS,39.99,EQUIPMENT,MEN'S AND WOMEN'S CLOTHING STORES
24/10/2016,http://opendatacommunities.org/id/county-council/surrey,Surrey,http://id.esd.org.uk/service/1465,Council expenditure,07/07/2016,FAIRCROFT COMMUNITY HOME,TESCO STORES-2160,24.60,EQUIPMENT,"GROCERY STORES, SUPERMARKETS"
24/10/2016,http://opendatacommunities.org/id/county-council/surrey,Surrey,http://id.esd.org.uk/service/1465,Council expenditure,07/07/2016,IMT SUPPORT FOR FIRE & RESCUE,PAYPAL  BOLTONA2,88.99,COMPUTER CONSUMABLES,MISCELLANEOUS AND SPECIALTY RETAIL STORES
24/10/2016,http://opendatacommunities.org/id/county-council/surrey,Surrey,http://id.esd.org.uk/service/1465,Council expenditure,07/07/2016,WOODLANDS COMMUNITY HOME,WWW.BLACKS.CO.UK,27.99,EQUIPMENT,SPORTING GOODS STORES
24/10/2016,http://opendatacommunities.org/id/county-council/surrey,Surrey,http://id.esd.org.uk/service/1465,Council expenditure,07/07/2016,THE BRIDGE YC,TESCO STORES 2812,20.05,PURCHASE OF FOOD (RAW MATERIALS),"GROCERY STORES, SUPERMARKETS"
24/10/2016,http://opendatacommunities.org/id/county-council/surrey,Surrey,http://id.esd.org.uk/service/1465,Council expenditure,07/07/2016,PORTAGE SERVICE (SE),AMAZON UK MARKETPLACE,8.98,EQUIPMENT,BOOK STORES
24/10/2016,http://opendatacommunities.org/id/county-council/surrey,Surrey,http://id.esd.org.uk/service/1465,Council expenditure,07/07/2016,SERVICE DELIVERY RESOURCES,CROWN PET FOODS,200.52,OPERATIONAL FIRE EQUIPMENT,PET SHOPS - PET FOODS AND SUPPLIES
24/10/2016,http://opendatacommunities.org/id/county-council/surrey,Surrey,http://id.esd.org.uk/service/1465,Council expenditure,07/07/2016,THE STREET YC,WM MORRISONS,21.77,PURCHASE OF FOOD (RAW MATERIALS),"GROCERY STORES, SUPERMARKETS"
24/10/2016,http://opendatacommunities.org/id/county-council/surrey,Surrey,http://id.esd.org.uk/service/1465,Council expenditure,07/07/2016,INVESTIGATIONS & ENFORCEMENT TEAM       ,SEYMOUR HOTELS LTD,"1,138.00",SUBSISTENCE AND CONFERENCE EXPENSES,"LODGING-HOTELS,MOTELS,RESORTS-NOT CLASSIFIED"
24/10/2016,http://opendatacommunities.org/id/county-council/surrey,Surrey,http://id.esd.org.uk/service/1465,Council expenditure,07/07/2016,E&I - DRIVE SMART                       ,FACEBOOK URGM9AJAK2,600.39,PUBLICITY,ADVERTISING SERVICES
24/10/2016,http://opendatacommunities.org/id/county-council/surrey,Surrey,http://id.esd.org.uk/service/1465,Council expenditure,07/07/2016,IMT SUPPORT FOR FIRE & RESCUE,AMAZON EU,41.61,COMPUTER CONSUMABLES,DIRECT MARKETING-OTHER DIRECT MARKETERS/NOT ELSEW.
24/10/2016,http://opendatacommunities.org/id/county-council/surrey,Surrey,http://id.esd.org.uk/service/1465,Council expenditure,07/07/2016,WOODLANDS COMMUNITY HOME,SAINSBURYS 0686,185.66,PURCHASE OF FOOD (RAW MATERIALS),"GROCERY STORES, SUPERMARKETS"
24/10/2016,http://opendatacommunities.org/id/county-council/surrey,Surrey,http://id.esd.org.uk/service/1465,Council expenditure,07/07/2016,NW CARE - NON-LAC CP & COURT,TRAVELODGE,490.00,CHILDREN ACT SEC 17 PAYMENTS,TRAVELODGE
24/10/2016,http://opendatacommunities.org/id/county-council/surrey,Surrey,http://id.esd.org.uk/service/1465,Council expenditure,07/07/2016,CAMHS SOCIAL WORKERS,MILANO PIZZA,22.97,REFRESHMENT COSTS,"GROCERY STORES, SUPERMARKETS"
24/10/2016,http://opendatacommunities.org/id/county-council/surrey,Surrey,http://id.esd.org.uk/service/1465,Council expenditure,07/07/2016,TARGETED INTERVENTION,FARNBOROUGH RECREATION,8.00,EDUC VISITS/HOLS/CAMPS/TOYS,"CLUBS-CNTRY,MBRSHIP(ATHLET,REC,SPRTS,PRIVATE GOLF"
24/10/2016,http://opendatacommunities.org/id/county-council/surrey,Surrey,http://id.esd.org.uk/service/1465,Council expenditure,07/07/2016,PORTAGE SERVICE (SE),AMAZON UK MARKETPLACE,18.74,EQUIPMENT,BOOK STORES
24/10/2016,http://opendatacommunities.org/id/county-council/surrey,Surrey,http://id.esd.org.uk/service/1465,Council expenditure,07/07/2016,ACL CENTRAL EXPENDITURE,TRADE GAZEBOS & BARRIE,40.00,PUBLICITY,MISCELLANEOUS AND SPECIALTY RETAIL STORES
24/10/2016,http://opendatacommunities.org/id/county-council/surrey,Surrey,http://id.esd.org.uk/service/1465,Council expenditure,07/07/2016,LEAVING CARE PACKAGES,TRAVELODGE,978.65,3RD PARTY PAYMENTS PRIVATE INDIV,TRAVELODGE
24/10/2016,http://opendatacommunities.org/id/county-council/surrey,Surrey,http://id.esd.org.uk/service/1465,Council expenditure,07/07/2016,PE/CDT MAINTENANCE OVERHEADS,HOMEBASE LTD 127,11.99,EQUIPMENT,"BUILDING MATERIALS, LUMBER STORES"
24/10/2016,http://opendatacommunities.org/id/county-council/surrey,Surrey,http://id.esd.org.uk/service/1465,Council expenditure,07/07/2016,HOPE SERVICE - WEST,TESCO STORE 2590,98.38,PURCHASE OF FOOD (RAW MATERIALS),"GROCERY STORES, SUPERMARKETS"
24/10/2016,http://opendatacommunities.org/id/county-council/surrey,Surrey,http://id.esd.org.uk/service/1465,Council expenditure,07/07/2016,BURBANK COMMUNITY HOME,JOHNFOWLERHOLIDAYS.COM,780.10,EDUC VISITS/HOLS/CAMPS/TOYS,CAMPGROUNDS AND TRAILER PARKS
24/10/2016,http://opendatacommunities.org/id/county-council/surrey,Surrey,http://id.esd.org.uk/service/1465,Council expenditure,07/07/2016,ASHTEAD YC,MCDONALDS,11.28,REFRESHMENT COSTS,"EATING PLACES, RESTAURANTS"
24/10/2016,http://opendatacommunities.org/id/county-council/surrey,Surrey,http://id.esd.org.uk/service/1465,Council expenditure,07/07/2016,LAKERS YC,MILLETS,27.50,EQUIPMENT,SPORTING GOODS STORES
24/10/2016,http://opendatacommunities.org/id/county-council/surrey,Surrey,http://id.esd.org.uk/service/1465,Council expenditure,07/07/2016,HARRY'S YC,STACKS,3.96,EQUIPMENT,HARDWARE STORES
24/10/2016,http://opendatacommunities.org/id/county-council/surrey,Surrey,http://id.esd.org.uk/service/1465,Council expenditure,07/07/2016,HOPE SERVICE - EAST,ASDA SUPERSTORE,33.62,PURCHASE OF FOOD (RAW MATERIALS),"GROCERY STORES, SUPERMARKETS"
24/10/2016,http://opendatacommunities.org/id/county-council/surrey,Surrey,http://id.esd.org.uk/service/1465,Council expenditure,07/07/2016,TARGETED INTERVENTION,STARBUCKS,4.75,EDUC VISITS/HOLS/CAMPS/TOYS,FAST FOOD RESTAURANTS
24/10/2016,http://opendatacommunities.org/id/county-council/surrey,Surrey,http://id.esd.org.uk/service/1465,Council expenditure,07/07/2016,PE/CDT MAINTENANCE OVERHEADS,LIFE FITNESS (UK) LTD,23.27,ITEMS PURCHASED FOR RE-SALE,DIRECT MARKETING-OTHER DIRECT MARKETERS/NOT ELSEW.
24/10/2016,http://opendatacommunities.org/id/county-council/surrey,Surrey,http://id.esd.org.uk/service/1465,Council expenditure,07/07/2016,FAIRCROFT COMMUNITY HOME,ARGOS LTD,38.00,EQUIPMENT,DISCOUNT STORES
24/10/2016,http://opendatacommunities.org/id/county-council/surrey,Surrey,http://id.esd.org.uk/service/1465,Council expenditure,07/07/2016,SW CARE - LAC,OCEAN BAY HOTEL,67.80,INDEPENDENT LIVING PLACEMENTS,"LODGING-HOTELS,MOTELS,RESORTS-NOT CLASSIFIED"
24/10/2016,http://opendatacommunities.org/id/county-council/surrey,Surrey,http://id.esd.org.uk/service/1465,Council expenditure,07/07/2016,HOPE SERVICE - WEST,SAINSBURYS SACAT(4409),6.95,PURCHASE OF FOOD (RAW MATERIALS),"GROCERY STORES, SUPERMARKETS"
24/10/2016,http://opendatacommunities.org/id/county-council/surrey,Surrey,http://id.esd.org.uk/service/1465,Council expenditure,07/07/2016,SOLD DAY TO DAY OPERATIONS,AMAZON EU,40.37,EQUIPMENT,DIRECT MARKETING-OTHER DIRECT MARKETERS/NOT ELSEW.
24/10/2016,http://opendatacommunities.org/id/county-council/surrey,Surrey,http://id.esd.org.uk/service/1465,Council expenditure,07/07/2016,HOPE SERVICE - EAST,TESCO PFS 2342,5.13,REFRESHMENT COSTS,SERVICE STATIONS WITH OR WITHOUT ANCILLARY SERVICE
24/10/2016,http://opendatacommunities.org/id/county-council/surrey,Surrey,http://id.esd.org.uk/service/1465,Council expenditure,07/07/2016,ASH YC,POST OFFICE COUNTER,1.74,POSTAGE AND COURIER CHARGES,POSTAL SERVICES-GOVERNMENT ONLY
24/10/2016,http://opendatacommunities.org/id/county-council/surrey,Surrey,http://id.esd.org.uk/service/1465,Council expenditure,07/07/2016,SW SECTION 17 CARE,COUNTRYWIDE RESIDENTIA,"1,024.85",INDEPENDENT LIVING PLACEMENTS,PROFESSIONAL SERVICES-NOT ELSEWHERE CLASSIFIED
24/10/2016,http://opendatacommunities.org/id/county-council/surrey,Surrey,http://id.esd.org.uk/service/1465,Council expenditure,07/07/2016,TARGETED INTERVENTION,FREEDOM LEISURE,4.85,EDUC VISITS/HOLS/CAMPS/TOYS,GOVERNMENT SERVICES-NOT ELSEWHERE CLASSIFIED
24/10/2016,http://opendatacommunities.org/id/county-council/surrey,Surrey,http://id.esd.org.uk/service/1465,Council expenditure,07/07/2016,WOODLANDS COMMUNITY HOME,GO OUTDOORS,174.92,EQUIPMENT,MEN'S AND WOMEN'S CLOTHING STORES
24/10/2016,http://opendatacommunities.org/id/county-council/surrey,Surrey,http://id.esd.org.uk/service/1465,Council expenditure,07/07/2016,WOKING LOCALITY TEAM,PREMIER INN,97.00,OTHER COMMUNITY CARE PRIV,PREMIER INN
24/10/2016,http://opendatacommunities.org/id/county-council/surrey,Surrey,http://id.esd.org.uk/service/1465,Council expenditure,07/07/2016,ARUNDEL,TESCO STORES 5999,49.57,REFRESHMENT COSTS,"GROCERY STORES, SUPERMARKETS"
24/10/2016,http://opendatacommunities.org/id/county-council/surrey,Surrey,http://id.esd.org.uk/service/1465,Council expenditure,07/07/2016,SE CARE - CP & COURT LAC,SURREY CC CARD PAY,11.00,CHILDREN ACT SEC 17 PAYMENTS,COMPUTER NETWORK/INFORMATION SERVICES
24/10/2016,http://opendatacommunities.org/id/county-council/surrey,Surrey,http://id.esd.org.uk/service/1465,Council expenditure,07/07/2016,BURBANK COMMUNITY HOME,HOMEBASE LTD 050,49.95,DAY TO DAY MAINTENANCE,"BUILDING MATERIALS, LUMBER STORES"
24/10/2016,http://opendatacommunities.org/id/county-council/surrey,Surrey,http://id.esd.org.uk/service/1465,Council expenditure,07/07/2016,RUTH HOUSE,AMAZON UK MARKETPLACE,4.82,EDUC VISITS/HOLS/CAMPS/TOYS,BOOK STORES
24/10/2016,http://opendatacommunities.org/id/county-council/surrey,Surrey,http://id.esd.org.uk/service/1465,Council expenditure,07/07/2016,BURBANK COMMUNITY HOME,B & Q 1029,46.71,DAY TO DAY MAINTENANCE,"BUILDING MATERIALS, LUMBER STORES"
24/10/2016,http://opendatacommunities.org/id/county-council/surrey,Surrey,http://id.esd.org.uk/service/1465,Council expenditure,07/07/2016,PE/CDT MAINTENANCE OVERHEADS,SCREWFIX DIRECT,78.81,EQUIPMENT,"BUILDING MATERIALS, LUMBER STORES"
24/10/2016,http://opendatacommunities.org/id/county-council/surrey,Surrey,http://id.esd.org.uk/service/1465,Council expenditure,07/07/2016,BURBANK COMMUNITY HOME,JOHNFOWLERHOLIDAYS.COM,780.10,EDUC VISITS/HOLS/CAMPS/TOYS,CAMPGROUNDS AND TRAILER PARKS
24/10/2016,http://opendatacommunities.org/id/county-council/surrey,Surrey,http://id.esd.org.uk/service/1465,Council expenditure,07/07/2016,BUSINESS SUPPORT & CUSTOMER SERVICE TEAM,WWW.TENNANTSUK.COM,-108.07,EQUIPMENT,INDUSTRIAL SUPPLIES NOT ELSEWHERE CLASSIFIED
24/10/2016,http://opendatacommunities.org/id/county-council/surrey,Surrey,http://id.esd.org.uk/service/1465,Council expenditure,07/07/2016,SOLD ESTATES MANAGEMENT,AFFILIATED AUTO RENTAL,372.00,HIRE OF VEHICLES,AFFILIATED AUTO RENTAL
24/10/2016,http://opendatacommunities.org/id/county-council/surrey,Surrey,http://id.esd.org.uk/service/1465,Council expenditure,07/07/2016,ACL CENTRAL EXPENDITURE,AMAZON UK MARKETPLACE,75.18,PUBLICITY,BOOK STORES
24/10/2016,http://opendatacommunities.org/id/county-council/surrey,Surrey,http://id.esd.org.uk/service/1465,Council expenditure,07/07/2016,ORBIS HR BUSINESS SERVICES & TRAINING,AMAZON UK RETAIL AMAZO,12.32,EQUIPMENT,MISCELLANEOUS AND SPECIALTY RETAIL STORES
24/10/2016,http://opendatacommunities.org/id/county-council/surrey,Surrey,http://id.esd.org.uk/service/1465,Council expenditure,07/07/2016,ASHTEAD YC,RONTEC KINGSCROFT,62.00,VEHICLE RUNNING COSTS,SERVICE STATIONS WITH OR WITHOUT ANCILLARY SERVICE
24/10/2016,http://opendatacommunities.org/id/county-council/surrey,Surrey,http://id.esd.org.uk/service/1465,Council expenditure,07/07/2016,KARIBU COMMUNITY HOME,COSTA COFFEE,7.55,PURCHASE OF FOOD (RAW MATERIALS),"EATING PLACES, RESTAURANTS"
24/10/2016,http://opendatacommunities.org/id/county-council/surrey,Surrey,http://id.esd.org.uk/service/1465,Council expenditure,07/07/2016,IMT SUPPORT FOR FIRE & RESCUE,PAYPAL  XSITEMS LTD,20.97,EQUIPMENT,ELECTRONIC SALES
24/10/2016,http://opendatacommunities.org/id/county-council/surrey,Surrey,http://id.esd.org.uk/service/1465,Council expenditure,08/07/2016,BURBANK COMMUNITY HOME,CANE ADAM LTD,60.00,DAY TO DAY MAINTENANCE,"BUILDING MATERIALS, LUMBER STORES"
24/10/2016,http://opendatacommunities.org/id/county-council/surrey,Surrey,http://id.esd.org.uk/service/1465,Council expenditure,08/07/2016,MALLOW CRESCENT,TVLICENSING.CO.UK,145.50,EQUIPMENT,"CONSULTING, MANAGEMENT, AND PUBLIC RELATIONS SVCS"
24/10/2016,http://opendatacommunities.org/id/county-council/surrey,Surrey,http://id.esd.org.uk/service/1465,Council expenditure,08/07/2016,MALLOW CRESCENT,TVLICENSING.CO.UK,145.50,EQUIPMENT,"CONSULTING, MANAGEMENT, AND PUBLIC RELATIONS SVCS"
24/10/2016,http://opendatacommunities.org/id/county-council/surrey,Surrey,http://id.esd.org.uk/service/1465,Council expenditure,08/07/2016,MALLOW CRESCENT,TVLICENSING.CO.UK,145.50,EQUIPMENT,"CONSULTING, MANAGEMENT, AND PUBLIC RELATIONS SVCS"
24/10/2016,http://opendatacommunities.org/id/county-council/surrey,Surrey,http://id.esd.org.uk/service/1465,Council expenditure,08/07/2016,SW CP & COURT TEAM,AMAZON UK MARKETPLACE,3.19,STATIONERY,BOOK STORES
24/10/2016,http://opendatacommunities.org/id/county-council/surrey,Surrey,http://id.esd.org.uk/service/1465,Council expenditure,08/07/2016,LOWER MOLE COUNTRYSIDE PROJECT,FARM SUPPLIES GARDEN S,310.00,EQUIPMENT,LAWN AND GARDEN SUPPLY STORES
24/10/2016,http://opendatacommunities.org/id/county-council/surrey,Surrey,http://id.esd.org.uk/service/1465,Council expenditure,08/07/2016,KARIBU COMMUNITY HOME,SAINSBURYS SACAT 0683,18.95,PURCHASE OF FOOD (RAW MATERIALS),"GROCERY STORES, SUPERMARKETS"
24/10/2016,http://opendatacommunities.org/id/county-council/surrey,Surrey,http://id.esd.org.uk/service/1465,Council expenditure,08/07/2016,RUTH HOUSE,SAINSBURYS TO YOU 0686,54.65,PURCHASE OF FOOD (RAW MATERIALS),"GROCERY STORES, SUPERMARKETS"
24/10/2016,http://opendatacommunities.org/id/county-council/surrey,Surrey,http://id.esd.org.uk/service/1465,Council expenditure,08/07/2016,RUTH HOUSE,SAINSBURYS TO YOU 0686,295.10,PURCHASE OF FOOD (RAW MATERIALS),"GROCERY STORES, SUPERMARKETS"
24/10/2016,http://opendatacommunities.org/id/county-council/surrey,Surrey,http://id.esd.org.uk/service/1465,Council expenditure,08/07/2016,SERVICE DELIVERY RESOURCES,AMAZON UK MARKETPLACE,9.35,OPERATIONAL FIRE EQUIPMENT,BOOK STORES
24/10/2016,http://opendatacommunities.org/id/county-council/surrey,Surrey,http://id.esd.org.uk/service/1465,Council expenditure,08/07/2016,EQUIPMENT SCC BUDGET,LAKELAND LIMITED,17.96,EQUIPMENT,HOUSEHOLD APPLIANCE STORES
24/10/2016,http://opendatacommunities.org/id/county-council/surrey,Surrey,http://id.esd.org.uk/service/1465,Council expenditure,08/07/2016,LIBERTAS COMMUNITY HOME,SAINSBURYS 0652,7.25,EQUIPMENT,"GROCERY STORES, SUPERMARKETS"
24/10/2016,http://opendatacommunities.org/id/county-council/surrey,Surrey,http://id.esd.org.uk/service/1465,Council expenditure,08/07/2016,LIBERTAS COMMUNITY HOME,SAINSBURYS 0652,5.20,PURCHASE OF FOOD (RAW MATERIALS),"GROCERY STORES, SUPERMARKETS"
24/10/2016,http://opendatacommunities.org/id/county-council/surrey,Surrey,http://id.esd.org.uk/service/1465,Council expenditure,08/07/2016,LIBERTAS COMMUNITY HOME,SAINSBURYS 0652,170.85,PURCHASE OF FOOD (RAW MATERIALS),"GROCERY STORES, SUPERMARKETS"
24/10/2016,http://opendatacommunities.org/id/county-council/surrey,Surrey,http://id.esd.org.uk/service/1465,Council expenditure,08/07/2016,MALLOW CRESCENT,BUTLINS HOLIDAYS,499.00,EDUC VISITS/HOLS/CAMPS/TOYS,"LODGING-HOTELS,MOTELS,RESORTS-NOT CLASSIFIED"
24/10/2016,http://opendatacommunities.org/id/county-council/surrey,Surrey,http://id.esd.org.uk/service/1465,Council expenditure,08/07/2016,ACL CENTRAL EXPENDITURE,AMAZON UK MARKETPLACE,72.64,PUBLICITY,BOOK STORES
24/10/2016,http://opendatacommunities.org/id/county-council/surrey,Surrey,http://id.esd.org.uk/service/1465,Council expenditure,08/07/2016,FAIRCROFT COMMUNITY HOME,PARENTPAY.COM,20.00,REFRESHMENT COSTS,"COLLEGES, UNIV, PRO SCHOOLS, JUNIOR COLLEGES"
24/10/2016,http://opendatacommunities.org/id/county-council/surrey,Surrey,http://id.esd.org.uk/service/1465,Council expenditure,08/07/2016,TRANSPORT,AMAZON UK MARKETPLACE,14.20,FURNITURE,BOOK STORES
24/10/2016,http://opendatacommunities.org/id/county-council/surrey,Surrey,http://id.esd.org.uk/service/1465,Council expenditure,08/07/2016,TARGETED INTERVENTION,HOBBYCRAFT,8.00,EDUC VISITS/HOLS/CAMPS/TOYS,"ARTIST SUPPLY STORES, CRAFT SHOPS"
24/10/2016,http://opendatacommunities.org/id/county-council/surrey,Surrey,http://id.esd.org.uk/service/1465,Council expenditure,08/07/2016,ASHTEAD YC,TESCO STORES 3235,24.00,REFRESHMENT COSTS,"GROCERY STORES, SUPERMARKETS"
24/10/2016,http://opendatacommunities.org/id/county-council/surrey,Surrey,http://id.esd.org.uk/service/1465,Council expenditure,08/07/2016,FAIRCROFT COMMUNITY HOME,AMAZON EU,129.99,EQUIPMENT,DIRECT MARKETING-OTHER DIRECT MARKETERS/NOT ELSEW.
24/10/2016,http://opendatacommunities.org/id/county-council/surrey,Surrey,http://id.esd.org.uk/service/1465,Council expenditure,08/07/2016,PE/CDT MAINTENANCE OVERHEADS,HARROD UK SPORT,123.43,ITEMS PURCHASED FOR RE-SALE,"SPORTS APPAREL, RIDING APPAREL STORES"
24/10/2016,http://opendatacommunities.org/id/county-council/surrey,Surrey,http://id.esd.org.uk/service/1465,Council expenditure,08/07/2016,HOPE SERVICE - EAST,HORTON PARK GOLF,52.00,EDUC VISITS/HOLS/CAMPS/TOYS,"EATING PLACES, RESTAURANTS"
24/10/2016,http://opendatacommunities.org/id/county-council/surrey,Surrey,http://id.esd.org.uk/service/1465,Council expenditure,08/07/2016,TRANSPORT,ILASCO LTD,73.25,"CLOTHING, UNIFORM AND LAUNDRY",CHILDREN'S AND INFANT'S WEAR STORES
24/10/2016,http://opendatacommunities.org/id/county-council/surrey,Surrey,http://id.esd.org.uk/service/1465,Council expenditure,08/07/2016,HEAD OF C&D &PA,UNIVERSITY OF SURREY,298.95,VENUE COSTS (INCLUDING HIRE OF ROOMS),"COLLEGES, UNIV, PRO SCHOOLS, JUNIOR COLLEGES"
24/10/2016,http://opendatacommunities.org/id/county-council/surrey,Surrey,http://id.esd.org.uk/service/1465,Council expenditure,08/07/2016,ACL CENTRAL EXPENDITURE,AMAZON UK MARKETPLACE,3.99,PUBLICITY,BOOK STORES
24/10/2016,http://opendatacommunities.org/id/county-council/surrey,Surrey,http://id.esd.org.uk/service/1465,Council expenditure,08/07/2016,TARGETED INTERVENTION,GMS/GLORYDALE,14.60,EDUC VISITS/HOLS/CAMPS/TOYS,MISCELLANEOUS GENERAL MERCHANDISE
24/10/2016,http://opendatacommunities.org/id/county-council/surrey,Surrey,http://id.esd.org.uk/service/1465,Council expenditure,08/07/2016,TARGETED INTERVENTION,WOKING TURNSTYLE LTD,14.00,EDUC VISITS/HOLS/CAMPS/TOYS,"THEATRICAL PRODUCERS(EXCL MOTION PIX),TICKET AGNCY"
24/10/2016,http://opendatacommunities.org/id/county-council/surrey,Surrey,http://id.esd.org.uk/service/1465,Council expenditure,08/07/2016,FAIRCROFT COMMUNITY HOME,PARENTPAY.COM,20.00,REFRESHMENT COSTS,"COLLEGES, UNIV, PRO SCHOOLS, JUNIOR COLLEGES"
24/10/2016,http://opendatacommunities.org/id/county-council/surrey,Surrey,http://id.esd.org.uk/service/1465,Council expenditure,08/07/2016,ARUNDEL,TESCO STORES 5999,100.29,REFRESHMENT COSTS,"GROCERY STORES, SUPERMARKETS"
24/10/2016,http://opendatacommunities.org/id/county-council/surrey,Surrey,http://id.esd.org.uk/service/1465,Council expenditure,08/07/2016,MALLOW CRESCENT,BUTLINS HOLIDAYS,440.00,EDUC VISITS/HOLS/CAMPS/TOYS,"LODGING-HOTELS,MOTELS,RESORTS-NOT CLASSIFIED"
24/10/2016,http://opendatacommunities.org/id/county-council/surrey,Surrey,http://id.esd.org.uk/service/1465,Council expenditure,08/07/2016,SOLD CURRICULUM PROGRAMME DELIVERY,AMAZON UK MARKETPLACE,20.46,EQUIPMENT,BOOK STORES
24/10/2016,http://opendatacommunities.org/id/county-council/surrey,Surrey,http://id.esd.org.uk/service/1465,Council expenditure,08/07/2016,E&I - LOVE FOOD HATE WASTE              ,GOOGLE  ADWS2060179426,500.00,PUBLICITY,DIRECT MARKETING-CONTINUITY/SUBSCRIPTION MERCHANTS
24/10/2016,http://opendatacommunities.org/id/county-council/surrey,Surrey,http://id.esd.org.uk/service/1465,Council expenditure,08/07/2016,WOODLANDS COMMUNITY HOME,BEEFEATER40014795,13.48,EDUC VISITS/HOLS/CAMPS/TOYS,"EATING PLACES, RESTAURANTS"
24/10/2016,http://opendatacommunities.org/id/county-council/surrey,Surrey,http://id.esd.org.uk/service/1465,Council expenditure,08/07/2016,NW CARE - CP & COURT LAC,THE OLD OAK TREE,150.00,INDEPENDENT LIVING PLACEMENTS,"LODGING-HOTELS,MOTELS,RESORTS-NOT CLASSIFIED"
24/10/2016,http://opendatacommunities.org/id/county-council/surrey,Surrey,http://id.esd.org.uk/service/1465,Council expenditure,08/07/2016,HOPE SERVICE - EAST,TESCO STORES-2160,4.05,PURCHASE OF FOOD (RAW MATERIALS),"GROCERY STORES, SUPERMARKETS"
24/10/2016,http://opendatacommunities.org/id/county-council/surrey,Surrey,http://id.esd.org.uk/service/1465,Council expenditure,08/07/2016,LEAVING CARE PACKAGES,TRAVELODGE,899.00,3RD PARTY PAYMENTS PRIVATE INDIV,TRAVELODGE
24/10/2016,http://opendatacommunities.org/id/county-council/surrey,Surrey,http://id.esd.org.uk/service/1465,Council expenditure,08/07/2016,ACL CENTRAL EXPENDITURE,AMAZON UK RETAIL AMAZO,12.98,CURRIC BOOKS,MISCELLANEOUS AND SPECIALTY RETAIL STORES
24/10/2016,http://opendatacommunities.org/id/county-council/surrey,Surrey,http://id.esd.org.uk/service/1465,Council expenditure,08/07/2016,TARGETED INTERVENTION,COSTA COFFEE,9.50,EDUC VISITS/HOLS/CAMPS/TOYS,FAST FOOD RESTAURANTS
24/10/2016,http://opendatacommunities.org/id/county-council/surrey,Surrey,http://id.esd.org.uk/service/1465,Council expenditure,08/07/2016,TRANSPORT,TOYE KENNING & SPENCER,156.00,"CLOTHING, UNIFORM AND LAUNDRY",MISCELLANEOUS AND SPECIALTY RETAIL STORES
24/10/2016,http://opendatacommunities.org/id/county-council/surrey,Surrey,http://id.esd.org.uk/service/1465,Council expenditure,08/07/2016,CYWS COMMISSIONING,WAITROSE 667,6.69,TRAINING EXPENSES EXTERNAL GENERAL,"GROCERY STORES, SUPERMARKETS"
24/10/2016,http://opendatacommunities.org/id/county-council/surrey,Surrey,http://id.esd.org.uk/service/1465,Council expenditure,08/07/2016,THE EDGE YC,CO-OP GROUP 310385,14.26,REFRESHMENT COSTS,"GROCERY STORES, SUPERMARKETS"
24/10/2016,http://opendatacommunities.org/id/county-council/surrey,Surrey,http://id.esd.org.uk/service/1465,Council expenditure,08/07/2016,TARGETED INTERVENTION,WAITROSE 235,18.63,EDUC VISITS/HOLS/CAMPS/TOYS,"GROCERY STORES, SUPERMARKETS"
24/10/2016,http://opendatacommunities.org/id/county-council/surrey,Surrey,http://id.esd.org.uk/service/1465,Council expenditure,08/07/2016,SOLD DAY TO DAY OPERATIONS,TRANSAIR /UK/ LTD,53.70,EQUIPMENT,SPORTING GOODS STORES
24/10/2016,http://opendatacommunities.org/id/county-council/surrey,Surrey,http://id.esd.org.uk/service/1465,Council expenditure,08/07/2016,SW SECTION 17 CARE,TRAVELODGE,745.00,CHILDREN ACT SEC 17 PAYMENTS,TRAVELODGE
24/10/2016,http://opendatacommunities.org/id/county-council/surrey,Surrey,http://id.esd.org.uk/service/1465,Council expenditure,08/07/2016,DEVOLUTION FUND,ELIOR@WEST SUSSEX COUN,17.64,REFRESHMENT COSTS,CATERERS
24/10/2016,http://opendatacommunities.org/id/county-council/surrey,Surrey,http://id.esd.org.uk/service/1465,Council expenditure,08/07/2016,WOODLANDS COMMUNITY HOME,SAINSBURYS 0652,50.00,EQUIPMENT,"GROCERY STORES, SUPERMARKETS"
24/10/2016,http://opendatacommunities.org/id/county-council/surrey,Surrey,http://id.esd.org.uk/service/1465,Council expenditure,08/07/2016,ENSEMBLES & TOURS,PHOENIX MUSIC & GIFTWA,117.75,CURRIC BOOKS,"GIFT, CARD, NOVELTY AND SOUVENIR SHOPS"
24/10/2016,http://opendatacommunities.org/id/county-council/surrey,Surrey,http://id.esd.org.uk/service/1465,Council expenditure,08/07/2016,SE CARE - NON-LAC CP & COURT,ARGOS RETAIL GROUP,88.94,EQUIPMENT,DISCOUNT STORES
24/10/2016,http://opendatacommunities.org/id/county-council/surrey,Surrey,http://id.esd.org.uk/service/1465,Council expenditure,08/07/2016,CHEYNE WALK COMMUNITY HOME,TESCO STORE 2560,86.31,PURCHASE OF FOOD (RAW MATERIALS),"GROCERY STORES, SUPERMARKETS"
24/10/2016,http://opendatacommunities.org/id/county-council/surrey,Surrey,http://id.esd.org.uk/service/1465,Council expenditure,08/07/2016,TARGETED INTERVENTION,ATG TICKETS,21.00,EDUC VISITS/HOLS/CAMPS/TOYS,"THEATRICAL PRODUCERS(EXCL MOTION PIX),TICKET AGNCY"
24/10/2016,http://opendatacommunities.org/id/county-council/surrey,Surrey,http://id.esd.org.uk/service/1465,Council expenditure,08/07/2016,HEAD OF SERVICES FOR YOUNG PEOPLE,WWW.SOLACE.ORG.UK,203.00,SUBSCRIPTIONS,"ORGANIZATIONS, MEMBERSHIP-NOT ELSEWHERE CLASSIFIED"
24/10/2016,http://opendatacommunities.org/id/county-council/surrey,Surrey,http://id.esd.org.uk/service/1465,Council expenditure,08/07/2016,NE EDUCATION PSYCHOLOGISTS,AMAZON UK MARKETPLACE,210.98,BOOKS,BOOK STORES
24/10/2016,http://opendatacommunities.org/id/county-council/surrey,Surrey,http://id.esd.org.uk/service/1465,Council expenditure,08/07/2016,TARGETED INTERVENTION,THE BIG APPLE,33.25,EDUC VISITS/HOLS/CAMPS/TOYS,BOWLING ALLEYS
24/10/2016,http://opendatacommunities.org/id/county-council/surrey,Surrey,http://id.esd.org.uk/service/1465,Council expenditure,08/07/2016,HILLSIDE,SAINSBURYS 0675,99.22,PURCHASE OF FOOD (RAW MATERIALS),"GROCERY STORES, SUPERMARKETS"
24/10/2016,http://opendatacommunities.org/id/county-council/surrey,Surrey,http://id.esd.org.uk/service/1465,Council expenditure,08/07/2016,PROPERTY OPERATIONS TEAM,SCREWFIX GUILDFORD,42.85,PURCHASE OF BUILDING MATERIALS,"BUILDING MATERIALS, LUMBER STORES"
24/10/2016,http://opendatacommunities.org/id/county-council/surrey,Surrey,http://id.esd.org.uk/service/1465,Council expenditure,08/07/2016,PSS COUNTYWIDE,AMAZON UK MARKETPLACE,173.42,EQUIPMENT,BOOK STORES
24/10/2016,http://opendatacommunities.org/id/county-council/surrey,Surrey,http://id.esd.org.uk/service/1465,Council expenditure,08/07/2016,NW SECTION 17 CARE,TRAVELODGE,155.90,CHILDREN ACT SEC 17 PAYMENTS,TRAVELODGE
24/10/2016,http://opendatacommunities.org/id/county-council/surrey,Surrey,http://id.esd.org.uk/service/1465,Council expenditure,08/07/2016,PROPERTY OPERATIONS TEAM,WICKES,5.63,PURCHASE OF BUILDING MATERIALS,"BUILDING MATERIALS, LUMBER STORES"
24/10/2016,http://opendatacommunities.org/id/county-council/surrey,Surrey,http://id.esd.org.uk/service/1465,Council expenditure,08/07/2016,TRAINING AND DEVELOPMENT,WWW.PMGLTD.CO.UK,418.80,SUBSISTENCE AND CONFERENCE EXPENSES,BUSINESS SERVICES-NOT ELSEWHERE CLASSIFIED
24/10/2016,http://opendatacommunities.org/id/county-council/surrey,Surrey,http://id.esd.org.uk/service/1465,Council expenditure,08/07/2016,BURBANK COMMUNITY HOME,CAR PARKS SPH,3.20,EDUC VISITS/HOLS/CAMPS/TOYS,GOVERNMENT SERVICES-NOT ELSEWHERE CLASSIFIED
24/10/2016,http://opendatacommunities.org/id/county-council/surrey,Surrey,http://id.esd.org.uk/service/1465,Council expenditure,08/07/2016,TARGETED INTERVENTION,COSTA COFFEE,10.30,EDUC VISITS/HOLS/CAMPS/TOYS,FAST FOOD RESTAURANTS
24/10/2016,http://opendatacommunities.org/id/county-council/surrey,Surrey,http://id.esd.org.uk/service/1465,Council expenditure,08/07/2016,PE/CDT MAINTENANCE OVERHEADS,JOHNSON HEALTH TECH UK,75.78,ITEMS PURCHASED FOR RE-SALE,SPORTING GOODS STORES
24/10/2016,http://opendatacommunities.org/id/county-council/surrey,Surrey,http://id.esd.org.uk/service/1465,Council expenditure,08/07/2016,TARGETED INTERVENTION,VUE BSL LTD,22.37,EDUC VISITS/HOLS/CAMPS/TOYS,MOTION PICTURE THEATERS
24/10/2016,http://opendatacommunities.org/id/county-council/surrey,Surrey,http://id.esd.org.uk/service/1465,Council expenditure,08/07/2016,NW CARE - CP & COURT LAC,THE OLD OAK TREE,800.00,INDEPENDENT LIVING PLACEMENTS,"LODGING-HOTELS,MOTELS,RESORTS-NOT CLASSIFIED"
24/10/2016,http://opendatacommunities.org/id/county-council/surrey,Surrey,http://id.esd.org.uk/service/1465,Council expenditure,08/07/2016,WOODLANDS COMMUNITY HOME,HOMEBASE LTD 084,5.72,EQUIPMENT,"BUILDING MATERIALS, LUMBER STORES"
24/10/2016,http://opendatacommunities.org/id/county-council/surrey,Surrey,http://id.esd.org.uk/service/1465,Council expenditure,08/07/2016,SW CARE - LAC,TRAVELODGE,87.00,CHILDREN ACT SEC 17 PAYMENTS,TRAVELODGE
24/10/2016,http://opendatacommunities.org/id/county-council/surrey,Surrey,http://id.esd.org.uk/service/1465,Council expenditure,08/07/2016,TRANSPORT,LINTON FUEL OILS,355.20,VEHICLE REPAIRS AND MAINTENANCE,"FUEL DEALERS-COAL, FUEL OIL, LIQ PETROLEUM, WOOD"
24/10/2016,http://opendatacommunities.org/id/county-council/surrey,Surrey,http://id.esd.org.uk/service/1465,Council expenditure,08/07/2016,KARIBU COMMUNITY HOME,GLL BANSTEAD SPORTS CE,25.20,EDUC VISITS/HOLS/CAMPS/TOYS,PROFESSIONAL SERVICES-NOT ELSEWHERE CLASSIFIED
24/10/2016,http://opendatacommunities.org/id/county-council/surrey,Surrey,http://id.esd.org.uk/service/1465,Council expenditure,08/07/2016,HOPE SERVICE - EAST,AMAZON UK MARKETPLACE,14.95,FURNITURE,BOOK STORES
24/10/2016,http://opendatacommunities.org/id/county-council/surrey,Surrey,http://id.esd.org.uk/service/1465,Council expenditure,08/07/2016,THE BRIDGE YC,AMAZON EU,4.99,EQUIPMENT,DIRECT MARKETING-OTHER DIRECT MARKETERS/NOT ELSEW.
24/10/2016,http://opendatacommunities.org/id/county-council/surrey,Surrey,http://id.esd.org.uk/service/1465,Council expenditure,08/07/2016,COVEHAM,AMAZON EU,30.92,EQUIPMENT,DIRECT MARKETING-OTHER DIRECT MARKETERS/NOT ELSEW.
24/10/2016,http://opendatacommunities.org/id/county-council/surrey,Surrey,http://id.esd.org.uk/service/1465,Council expenditure,08/07/2016,SE CARE - NON-LAC CP & COURT,ARGOS RETAIL GROUP,89.99,EQUIPMENT,DISCOUNT STORES
